Departmental Family,Entity,Date,Expense type,Expense area,Supplier,Transaction Number,Amount,Description
Department for Education,DEPARTMENT FOR EDUCATION,01/07/2016,Grants,Academies Regional Delivery Group,REACH 2 ESSEX ACADEMY TRUST,4000241385,70000.00,Grants to educational establishments or not for profit organisations including other businesses
Department for Education,DEPARTMENT FOR EDUCATION,01/07/2016,Grants,Academies Regional Delivery Group,ST THOMAS OF CANTERBURY CATHOLIC MULTI ACADEMY TRUST,4000241398,79000.00,Grants to educational establishments or not for profit organisations including other businesses
Department for Education,DEPARTMENT FOR EDUCATION,01/07/2016,Grants,Academies Regional Delivery Group,DENHOLME PRIMARY SCHOOL,4000241399,25000.00,Grants to educational establishments or not for profit organisations including other businesses
Department for Education,DEPARTMENT FOR EDUCATION,01/07/2016,Grants,Academies Regional Delivery Group,VICTORIA PRIMARY SCHOOL,4000241400,25000.00,Grants to educational establishments or not for profit organisations including other businesses
Department for Education,DEPARTMENT FOR EDUCATION,01/07/2016,Grants,Academies Regional Delivery Group,PARKWOOD PRIMARY SCHOOL,4000241401,25000.00,Grants to educational establishments or not for profit organisations including other businesses
Department for Education,DEPARTMENT FOR EDUCATION,01/07/2016,Grants,Academies Regional Delivery Group,LINCOLNSHIRE EDUCATIONAL TRUST LTD,4000241403,25000.00,Grants to educational establishments or not for profit organisations including other businesses
Department for Education,NATIONAL COLLEGE FOR TEACHING AND LEADERSHIP AGENCY,01/07/2016,Programme costs,Operations Directorate,TEXUNA TECHNOLOGIES,4000241417,27453.52,Funding to deliver policies (excluding consultancy) paid to third parties via a service delivery contract
Department for Education,STANDARDS AND TESTING AGENCY,01/07/2016,Office Solutions,Test Operations Division,PARCELFORCE WORLDWIDE,4000241433,717825.74,Post and courier services
Department for Education,DEPARTMENT FOR EDUCATION,01/07/2016,Programme costs,"Assessment, Curriculum and General Qualifications Group",IOP INSTITUTE OF PHYSICS,4000241436,316380.36,Funding to deliver policies (excluding consultancy) paid to third parties via a service delivery contract
Department for Education,DEPARTMENT FOR EDUCATION,01/07/2016,Professional Services Consultancy and Contingent Labour,Information Technology Group,BOTTOMLINE,4000241438,33734.76,Costs related to temporary workers
Department for Education,DEPARTMENT FOR EDUCATION,01/07/2016,ICT,Information Technology Group,BOTTOMLINE,1100146,66771.62,ICT Services
Department for Education,DEPARTMENT FOR EDUCATION,01/07/2016,Grants,Adoption and Children in Care Division,WIGAN MBC,4000241451,50000.00,Grants to local authorities / other establishments within aggregate external funding or aggregate exchequer grant
Department for Education,DEPARTMENT FOR EDUCATION,01/07/2016,Grants,Children's Services Special Educational Needs Group,THE FAMILY FUND TRUST,4000241453,2157000.00,Grants to educational establishments or not for profit organisations including other businesses
Department for Education,DEPARTMENT FOR EDUCATION,01/07/2016,Grants,Academies Regional Delivery Group,THE JOHN WARNER SCHOOL,4000241456,50000.00,Grants to educational establishments or not for profit organisations including other businesses
Department for Education,STANDARDS AND TESTING AGENCY,01/07/2016,Professional Services Other,Test Development Division,CIVICA UK LTD STA,1100147,25064.50,"Fees / expenses of professionals, for example to implement advice or changes"
Department for Education,DEPARTMENT FOR EDUCATION,01/07/2016,Professional Services Consultancy and Contingent Labour,Information Technology Group,METHODS PROFESSIONAL SERVICES LTD,4000241411,420.00,Costs related to temporary workers
Department for Education,DEPARTMENT FOR EDUCATION,01/07/2016,Professional Services Consultancy and Contingent Labour,Information Technology Group,METHODS PROFESSIONAL SERVICES LTD,4000241411,37792.22,Costs related to temporary workers
Department for Education,DEPARTMENT FOR EDUCATION,01/07/2016,Professional Services Consultancy and Contingent Labour,Information Technology Group,METHODS PROFESSIONAL SERVICES LTD,4000241411,25156.44,Costs related to temporary workers
Department for Education,DEPARTMENT FOR EDUCATION,01/07/2016,ICT,Information Technology Group,IBM LTD,4000241461,141956.98,ICT Software
Department for Education,DEPARTMENT FOR EDUCATION,01/07/2016,ICT,Information Technology Group,ZAIZI LTD,4000241446,78375.00,ICT Services
Department for Education,DEPARTMENT FOR EDUCATION,01/07/2016,Redactions,Various,EDUCATION FUNDING AGENCY,Various,5011836415.02,"The total redacted transactions, including funding payment to Education Funding Agency. See Technical Notes for further information."
Department for Education,NATIONAL COLLEGE FOR TEACHING AND LEADERSHIP AGENCY,04/07/2016,Grants,Operations Directorate,UCL INSTITUTE OF EDUCATION,4000241470,772400.00,Grants to educational establishments or not for profit organisations including other businesses
Department for Education,NATIONAL COLLEGE FOR TEACHING AND LEADERSHIP AGENCY,04/07/2016,Grants,Operations Directorate,UCL INSTITUTE OF EDUCATION,4000241470,53908.00,Grants to educational establishments or not for profit organisations including other businesses
Department for Education,NATIONAL COLLEGE FOR TEACHING AND LEADERSHIP AGENCY,04/07/2016,Grants,Delivery Directorate,UCL INSTITUTE OF EDUCATION,4000241470,18340.00,Grants to educational establishments or not for profit organisations including other businesses
Department for Education,NATIONAL COLLEGE FOR TEACHING AND LEADERSHIP AGENCY,04/07/2016,Grants,Delivery Directorate,PENINSULA TEACHER TRAINING CORNWALL SCITT,4000241472,2400.00,Grants to educational establishments or not for profit organisations including other businesses
Department for Education,NATIONAL COLLEGE FOR TEACHING AND LEADERSHIP AGENCY,04/07/2016,Grants,Operations Directorate,PENINSULA TEACHER TRAINING CORNWALL SCITT,4000241472,28500.00,Grants to educational establishments or not for profit organisations including other businesses
Department for Education,NATIONAL COLLEGE FOR TEACHING AND LEADERSHIP AGENCY,04/07/2016,Grants,Operations Directorate,NORWICH CITY COLLEGE,4000241473,26800.00,Grants to educational establishments or not for profit organisations including other businesses
Department for Education,DEPARTMENT FOR EDUCATION,04/07/2016,Grants,Academies Regional Delivery Group,STAFFORDSHIRE UNIVERSITY ACADEMY,4000241477,25000.00,Grants to educational establishments or not for profit organisations including other businesses
Department for Education,NATIONAL COLLEGE FOR TEACHING AND LEADERSHIP AGENCY,04/07/2016,Grants,Operations Directorate,UNIVERSITY OF BRISTOL,4000241484,270800.00,Grants to educational establishments or not for profit organisations including other businesses
Department for Education,DEPARTMENT FOR EDUCATION,04/07/2016,Grants,Academies Regional Delivery Group,HOYLAND COMMON PRIMARY SCHOOL,4000241485,25000.00,Grants to educational establishments or not for profit organisations including other businesses
Department for Education,NATIONAL COLLEGE FOR TEACHING AND LEADERSHIP AGENCY,04/07/2016,Grants,Delivery Directorate,ST MARY & ST PAULS CE PRIMARY SCHOOL TS ACCOUNT,4000241486,10200.00,Grants to educational establishments or not for profit organisations including other businesses
Department for Education,NATIONAL COLLEGE FOR TEACHING AND LEADERSHIP AGENCY,04/07/2016,Grants,Operations Directorate,ST MARY & ST PAULS CE PRIMARY SCHOOL TS ACCOUNT,4000241486,14100.00,Grants to educational establishments or not for profit organisations including other businesses
Department for Education,NATIONAL COLLEGE FOR TEACHING AND LEADERSHIP AGENCY,04/07/2016,Grants,Operations Directorate,ST MARY & ST PAULS CE PRIMARY SCHOOL TS ACCOUNT,4000241486,28195.00,Grants to educational establishments or not for profit organisations including other businesses
Department for Education,NATIONAL COLLEGE FOR TEACHING AND LEADERSHIP AGENCY,04/07/2016,Grants,Delivery Directorate,LONDON METROPOLITAN UNIVERSITY,4000241488,30800.00,Grants to educational establishments or not for profit organisations including other businesses
Department for Education,NATIONAL COLLEGE FOR TEACHING AND LEADERSHIP AGENCY,04/07/2016,Grants,Operations Directorate,LONDON METROPOLITAN UNIVERSITY,4000241488,146900.00,Grants to educational establishments or not for profit organisations including other businesses
Department for Education,NATIONAL COLLEGE FOR TEACHING AND LEADERSHIP AGENCY,04/07/2016,Grants,Delivery Directorate,LONDON METROPOLITAN UNIVERSITY,4000241488,4480.00,Grants to educational establishments or not for profit organisations including other businesses
Department for Education,DEPARTMENT FOR EDUCATION,04/07/2016,Grants,Academies Regional Delivery Group,NORTH EAST LEARNING TRUST,4000241492,25000.00,Grants to educational establishments or not for profit organisations including other businesses
Department for Education,DEPARTMENT FOR EDUCATION,04/07/2016,Grants,Free School Group,ALTIUS TRUST,4000241493,25000.00,Grants to educational establishments or not for profit organisations including other businesses
Department for Education,DEPARTMENT FOR EDUCATION,04/07/2016,Grants,Academies Regional Delivery Group,LAPAGE PRIMARY SCHOOL & NURSERY,4000241494,25000.00,Grants to educational establishments or not for profit organisations including other businesses
Department for Education,DEPARTMENT FOR EDUCATION,04/07/2016,Programme costs,Finance and Commercial Group,GOOD PRACTICE LTD,4000241506,156000.00,Funding to deliver policies (excluding consultancy) paid to third parties via a service delivery contract
Department for Education,NATIONAL COLLEGE FOR TEACHING AND LEADERSHIP AGENCY,04/07/2016,Grants,Delivery Directorate,NOTTINGHAM TRENT UNIVERSITY,4000241512,48000.00,Grants to educational establishments or not for profit organisations including other businesses
Department for Education,NATIONAL COLLEGE FOR TEACHING AND LEADERSHIP AGENCY,04/07/2016,Grants,Operations Directorate,NOTTINGHAM TRENT UNIVERSITY,4000241512,145200.00,Grants to educational establishments or not for profit organisations including other businesses
Department for Education,NATIONAL COLLEGE FOR TEACHING AND LEADERSHIP AGENCY,04/07/2016,Grants,Operations Directorate,NOTTINGHAM TRENT UNIVERSITY,4000241512,57300.00,Grants to educational establishments or not for profit organisations including other businesses
Department for Education,NATIONAL COLLEGE FOR TEACHING AND LEADERSHIP AGENCY,04/07/2016,Grants,Operations Directorate,NOTTINGHAM TRENT UNIVERSITY,4000241512,3030.00,Grants to educational establishments or not for profit organisations including other businesses
Department for Education,NATIONAL COLLEGE FOR TEACHING AND LEADERSHIP AGENCY,04/07/2016,Grants,Delivery Directorate,NOTTINGHAM TRENT UNIVERSITY,4000241512,8400.00,Grants to educational establishments or not for profit organisations including other businesses
Department for Education,NATIONAL COLLEGE FOR TEACHING AND LEADERSHIP AGENCY,04/07/2016,Grants,Delivery Directorate,UNIVERSITY OF WORCESTER,4000241513,58399.94,Grants to educational establishments or not for profit organisations including other businesses
Department for Education,NATIONAL COLLEGE FOR TEACHING AND LEADERSHIP AGENCY,04/07/2016,Grants,Operations Directorate,UNIVERSITY OF WORCESTER,4000241513,189200.00,Grants to educational establishments or not for profit organisations including other businesses
Department for Education,NATIONAL COLLEGE FOR TEACHING AND LEADERSHIP AGENCY,04/07/2016,Grants,Operations Directorate,UNIVERSITY OF WORCESTER,4000241513,135610.00,Grants to educational establishments or not for profit organisations including other businesses
Department for Education,NATIONAL COLLEGE FOR TEACHING AND LEADERSHIP AGENCY,04/07/2016,Grants,Delivery Directorate,UNIVERSITY OF WORCESTER,4000241513,9600.00,Grants to educational establishments or not for profit organisations including other businesses
Department for Education,NATIONAL COLLEGE FOR TEACHING AND LEADERSHIP AGENCY,04/07/2016,Grants,Operations Directorate,UNIVERSITY OF HERTFORDSHIRE,4000241515,123800.00,Grants to educational establishments or not for profit organisations including other businesses
Department for Education,NATIONAL COLLEGE FOR TEACHING AND LEADERSHIP AGENCY,04/07/2016,Grants,Operations Directorate,UNIVERSITY OF NORTHUMBRIA,4000241516,161370.00,Grants to educational establishments or not for profit organisations including other businesses
Department for Education,NATIONAL COLLEGE FOR TEACHING AND LEADERSHIP AGENCY,04/07/2016,Grants,Delivery Directorate,UNIVERSITY OF NORTHUMBRIA,4000241516,20500.00,Grants to educational establishments or not for profit organisations including other businesses
Department for Education,DEPARTMENT FOR EDUCATION,04/07/2016,Grants,Academies Regional Delivery Group,GILLAS LANE PRIMARY SCHOOL,4000241517,25000.00,Grants to educational establishments or not for profit organisations including other businesses
Department for Education,DEPARTMENT FOR EDUCATION,04/07/2016,Grants,Academies Regional Delivery Group,LILYCROFT PRIMARY SCHOOL,4000241518,25000.00,Grants to educational establishments or not for profit organisations including other businesses
Department for Education,DEPARTMENT FOR EDUCATION,04/07/2016,Grants,Academies Regional Delivery Group,LISTER PRIMARY SCHOOL,4000241519,25000.00,Grants to educational establishments or not for profit organisations including other businesses
Department for Education,DEPARTMENT FOR EDUCATION,04/07/2016,Grants,Academies Regional Delivery Group,GREEN LANE PRIMARY SCHOOL,4000241520,25000.00,Grants to educational establishments or not for profit organisations including other businesses
Department for Education,DEPARTMENT FOR EDUCATION,04/07/2016,Grants,Academies Regional Delivery Group,MARGARET MCMILLAN PRIMARY SCHOOL,4000241521,25000.00,Grants to educational establishments or not for profit organisations including other businesses
Department for Education,DEPARTMENT FOR EDUCATION,04/07/2016,Grants,Academies Regional Delivery Group,PRINCE ROCK SCHOOL FUND,4000241522,150000.00,Grants to educational establishments or not for profit organisations including other businesses
Department for Education,NATIONAL COLLEGE FOR TEACHING AND LEADERSHIP AGENCY,04/07/2016,Grants,Operations Directorate,LIVERPOOL JOHN MOORES UNIVERSITY,4000241533,175100.00,Grants to educational establishments or not for profit organisations including other businesses
Department for Education,NATIONAL COLLEGE FOR TEACHING AND LEADERSHIP AGENCY,04/07/2016,Grants,Delivery Directorate,BIRMINGHAM CITY UNIVERSITY,4000241534,36586.54,Grants to educational establishments or not for profit organisations including other businesses
Department for Education,NATIONAL COLLEGE FOR TEACHING AND LEADERSHIP AGENCY,04/07/2016,Grants,Operations Directorate,BIRMINGHAM CITY UNIVERSITY,4000241534,175800.00,Grants to educational establishments or not for profit organisations including other businesses
Department for Education,NATIONAL COLLEGE FOR TEACHING AND LEADERSHIP AGENCY,04/07/2016,Grants,Operations Directorate,BIRMINGHAM CITY UNIVERSITY,4000241534,4720.00,Grants to educational establishments or not for profit organisations including other businesses
Department for Education,NATIONAL COLLEGE FOR TEACHING AND LEADERSHIP AGENCY,04/07/2016,Grants,Operations Directorate,BIRMINGHAM CITY UNIVERSITY,4000241534,17040.00,Grants to educational establishments or not for profit organisations including other businesses
Department for Education,NATIONAL COLLEGE FOR TEACHING AND LEADERSHIP AGENCY,04/07/2016,Grants,Operations Directorate,UNIVERSITY OF WARWICK,4000241536,223000.00,Grants to educational establishments or not for profit organisations including other businesses
Department for Education,NATIONAL COLLEGE FOR TEACHING AND LEADERSHIP AGENCY,04/07/2016,Grants,Operations Directorate,UNIVERSITY OF WARWICK,4000241536,15736.80,Grants to educational establishments or not for profit organisations including other businesses
Department for Education,NATIONAL COLLEGE FOR TEACHING AND LEADERSHIP AGENCY,04/07/2016,Grants,Delivery Directorate,UNIVERSITY OF WARWICK,4000241536,21250.00,Grants to educational establishments or not for profit organisations including other businesses
Department for Education,NATIONAL COLLEGE FOR TEACHING AND LEADERSHIP AGENCY,04/07/2016,Grants,Operations Directorate,UNIVERSITY OF BEDFORDSHIRE,4000241538,1899.00,Grants to educational establishments or not for profit organisations including other businesses
Department for Education,NATIONAL COLLEGE FOR TEACHING AND LEADERSHIP AGENCY,04/07/2016,Grants,Operations Directorate,UNIVERSITY OF BEDFORDSHIRE,4000241538,69700.00,Grants to educational establishments or not for profit organisations including other businesses
Department for Education,NATIONAL COLLEGE FOR TEACHING AND LEADERSHIP AGENCY,04/07/2016,Grants,Delivery Directorate,UNIVERSITY OF BEDFORDSHIRE,4000241538,40600.00,Grants to educational establishments or not for profit organisations including other businesses
Department for Education,NATIONAL COLLEGE FOR TEACHING AND LEADERSHIP AGENCY,04/07/2016,Grants,Operations Directorate,LOUGHBOROUGH UNIVERSITY ENTERPRISE LTD,4000241539,29500.00,Grants to educational establishments or not for profit organisations including other businesses
Department for Education,DEPARTMENT FOR EDUCATION,04/07/2016,Grants,Academies Regional Delivery Group,HILL TOP PRIMARY SCHOOL,4000241542,70000.00,Grants to educational establishments or not for profit organisations including other businesses
Department for Education,NATIONAL COLLEGE FOR TEACHING AND LEADERSHIP AGENCY,04/07/2016,Grants,Delivery Directorate,UNIVERSITY OF EAST LONDON,4000241544,53960.00,Grants to educational establishments or not for profit organisations including other businesses
Department for Education,NATIONAL COLLEGE FOR TEACHING AND LEADERSHIP AGENCY,04/07/2016,Grants,Operations Directorate,UNIVERSITY OF EAST LONDON,4000241544,342000.00,Grants to educational establishments or not for profit organisations including other businesses
Department for Education,NATIONAL COLLEGE FOR TEACHING AND LEADERSHIP AGENCY,04/07/2016,Grants,Operations Directorate,UNIVERSITY OF EAST LONDON,4000241544,26855.00,Grants to educational establishments or not for profit organisations including other businesses
Department for Education,NATIONAL COLLEGE FOR TEACHING AND LEADERSHIP AGENCY,04/07/2016,Grants,Delivery Directorate,NOTTINGHAMSHIRE TORCH SCITT,4000241551,1600.00,Grants to educational establishments or not for profit organisations including other businesses
Department for Education,NATIONAL COLLEGE FOR TEACHING AND LEADERSHIP AGENCY,04/07/2016,Grants,Operations Directorate,NOTTINGHAMSHIRE TORCH SCITT,4000241551,25800.00,Grants to educational establishments or not for profit organisations including other businesses
Department for Education,NATIONAL COLLEGE FOR TEACHING AND LEADERSHIP AGENCY,04/07/2016,Grants,Delivery Directorate,LINCOLNSHIRE TEACHING SCHOOL ALLIANCE,4000241556,4333.33,Grants to educational establishments or not for profit organisations including other businesses
Department for Education,NATIONAL COLLEGE FOR TEACHING AND LEADERSHIP AGENCY,04/07/2016,Grants,Operations Directorate,LINCOLNSHIRE TEACHING SCHOOL ALLIANCE,4000241556,30600.00,Grants to educational establishments or not for profit organisations including other businesses
Department for Education,NATIONAL COLLEGE FOR TEACHING AND LEADERSHIP AGENCY,04/07/2016,Grants,Operations Directorate,LINCOLNSHIRE TEACHING SCHOOL ALLIANCE,4000241556,3705.00,Grants to educational establishments or not for profit organisations including other businesses
Department for Education,NATIONAL COLLEGE FOR TEACHING AND LEADERSHIP AGENCY,04/07/2016,Grants,Operations Directorate,UNIVERSITY OF CAMBRIDGE,4000241559,403254.00,Grants to educational establishments or not for profit organisations including other businesses
Department for Education,NATIONAL COLLEGE FOR TEACHING AND LEADERSHIP AGENCY,04/07/2016,Grants,Delivery Directorate,SUFFOLK COUNTY COUNCIL,4000241561,1066.66,Grants to educational establishments or not for profit organisations including other businesses
Department for Education,NATIONAL COLLEGE FOR TEACHING AND LEADERSHIP AGENCY,04/07/2016,Grants,Operations Directorate,SUFFOLK COUNTY COUNCIL,4000241561,49200.00,Grants to educational establishments or not for profit organisations including other businesses
Department for Education,NATIONAL COLLEGE FOR TEACHING AND LEADERSHIP AGENCY,04/07/2016,Grants,Operations Directorate,NOTLEY HIGH SCHOOL & BRAINTREE SIXTH FORM,4000241564,33900.00,Grants to educational establishments or not for profit organisations including other businesses
Department for Education,NATIONAL COLLEGE FOR TEACHING AND LEADERSHIP AGENCY,04/07/2016,Grants,Delivery Directorate,BRADFORD COLLEGE,4000241565,81111.48,Grants to educational establishments or not for profit organisations including other businesses
Department for Education,NATIONAL COLLEGE FOR TEACHING AND LEADERSHIP AGENCY,04/07/2016,Grants,Operations Directorate,BRADFORD COLLEGE,4000241565,138250.00,Grants to educational establishments or not for profit organisations including other businesses
Department for Education,NATIONAL COLLEGE FOR TEACHING AND LEADERSHIP AGENCY,04/07/2016,Grants,Operations Directorate,BRADFORD COLLEGE,4000241565,85135.00,Grants to educational establishments or not for profit organisations including other businesses
Department for Education,NATIONAL COLLEGE FOR TEACHING AND LEADERSHIP AGENCY,04/07/2016,Grants,Operations Directorate,BRADFORD COLLEGE,4000241565,8360.00,Grants to educational establishments or not for profit organisations including other businesses
Department for Education,NATIONAL COLLEGE FOR TEACHING AND LEADERSHIP AGENCY,04/07/2016,Grants,Operations Directorate,LIVERPOOL HOPE UNIVERSITY,4000241566,1101.60,Grants to educational establishments or not for profit organisations including other businesses
Department for Education,NATIONAL COLLEGE FOR TEACHING AND LEADERSHIP AGENCY,04/07/2016,Grants,Operations Directorate,LIVERPOOL HOPE UNIVERSITY,4000241566,331250.00,Grants to educational establishments or not for profit organisations including other businesses
Department for Education,NATIONAL COLLEGE FOR TEACHING AND LEADERSHIP AGENCY,04/07/2016,Grants,Operations Directorate,UNIVERSITY OF GLOUCESTERSHIRE,4000241567,75600.00,Grants to educational establishments or not for profit organisations including other businesses
Department for Education,NATIONAL COLLEGE FOR TEACHING AND LEADERSHIP AGENCY,04/07/2016,Grants,Delivery Directorate,UNIVERSITY OF GLOUCESTERSHIRE,4000241567,32200.00,Grants to educational establishments or not for profit organisations including other businesses
Department for Education,NATIONAL COLLEGE FOR TEACHING AND LEADERSHIP AGENCY,04/07/2016,Grants,Delivery Directorate,UNIVERSITY OF OXFORD,4000241569,1066.66,Grants to educational establishments or not for profit organisations including other businesses
Department for Education,NATIONAL COLLEGE FOR TEACHING AND LEADERSHIP AGENCY,04/07/2016,Grants,Operations Directorate,UNIVERSITY OF OXFORD,4000241569,261200.00,Grants to educational establishments or not for profit organisations including other businesses
Department for Education,NATIONAL COLLEGE FOR TEACHING AND LEADERSHIP AGENCY,04/07/2016,Grants,Operations Directorate,YORK ST JOHN UNIVERSITY,4000241571,97200.00,Grants to educational establishments or not for profit organisations including other businesses
Department for Education,NATIONAL COLLEGE FOR TEACHING AND LEADERSHIP AGENCY,04/07/2016,Grants,Delivery Directorate,THE POLESWORTH SCHOOL,4000241572,11371.92,Grants to educational establishments or not for profit organisations including other businesses
Department for Education,NATIONAL COLLEGE FOR TEACHING AND LEADERSHIP AGENCY,04/07/2016,Grants,Operations Directorate,THE POLESWORTH SCHOOL,4000241572,17445.00,Grants to educational establishments or not for profit organisations including other businesses
Department for Education,NATIONAL COLLEGE FOR TEACHING AND LEADERSHIP AGENCY,04/07/2016,Grants,Operations Directorate,SWINDON SCITT,4000241574,27700.00,Grants to educational establishments or not for profit organisations including other businesses
Department for Education,NATIONAL COLLEGE FOR TEACHING AND LEADERSHIP AGENCY,04/07/2016,Grants,Operations Directorate,PADDINGTON ACADEMY,4000241578,47400.00,Grants to educational establishments or not for profit organisations including other businesses
Department for Education,NATIONAL COLLEGE FOR TEACHING AND LEADERSHIP AGENCY,04/07/2016,Grants,Delivery Directorate,THE UNIVERSITY OF MANCHESTER,4000241579,29200.00,Grants to educational establishments or not for profit organisations including other businesses
Department for Education,NATIONAL COLLEGE FOR TEACHING AND LEADERSHIP AGENCY,04/07/2016,Grants,Operations Directorate,THE UNIVERSITY OF MANCHESTER,4000241579,367450.00,Grants to educational establishments or not for profit organisations including other businesses
Department for Education,NATIONAL COLLEGE FOR TEACHING AND LEADERSHIP AGENCY,04/07/2016,Grants,Operations Directorate,THE UNIVERSITY OF MANCHESTER,4000241579,25232.00,Grants to educational establishments or not for profit organisations including other businesses
Department for Education,NATIONAL COLLEGE FOR TEACHING AND LEADERSHIP AGENCY,04/07/2016,Grants,Operations Directorate,UNIVERSITY OF LEICESTER,4000241580,196500.00,Grants to educational establishments or not for profit organisations including other businesses
Department for Education,NATIONAL COLLEGE FOR TEACHING AND LEADERSHIP AGENCY,04/07/2016,Grants,Delivery Directorate,EDGE HILL UNIVERSITY,4000241582,38159.97,Grants to educational establishments or not for profit organisations including other businesses
Department for Education,NATIONAL COLLEGE FOR TEACHING AND LEADERSHIP AGENCY,04/07/2016,Grants,Operations Directorate,EDGE HILL UNIVERSITY,4000241582,614000.00,Grants to educational establishments or not for profit organisations including other businesses
Department for Education,NATIONAL COLLEGE FOR TEACHING AND LEADERSHIP AGENCY,04/07/2016,Grants,Operations Directorate,EDGE HILL UNIVERSITY,4000241582,5730.00,Grants to educational establishments or not for profit organisations including other businesses
Department for Education,NATIONAL COLLEGE FOR TEACHING AND LEADERSHIP AGENCY,04/07/2016,Grants,Operations Directorate,EDGE HILL UNIVERSITY,4000241582,36201.00,Grants to educational establishments or not for profit organisations including other businesses
Department for Education,NATIONAL COLLEGE FOR TEACHING AND LEADERSHIP AGENCY,04/07/2016,Grants,Delivery Directorate,EDGE HILL UNIVERSITY,4000241582,95200.00,Grants to educational establishments or not for profit organisations including other businesses
Department for Education,NATIONAL COLLEGE FOR TEACHING AND LEADERSHIP AGENCY,04/07/2016,Grants,Delivery Directorate,UNIVERSITY OF SHEFFIELD,4000241584,1386.67,Grants to educational establishments or not for profit organisations including other businesses
Department for Education,NATIONAL COLLEGE FOR TEACHING AND LEADERSHIP AGENCY,04/07/2016,Grants,Operations Directorate,UNIVERSITY OF SHEFFIELD,4000241584,171600.00,Grants to educational establishments or not for profit organisations including other businesses
Department for Education,NATIONAL COLLEGE FOR TEACHING AND LEADERSHIP AGENCY,04/07/2016,Grants,Operations Directorate,NOTRE DAME HIGH SCHOOL,4000241585,37000.00,Grants to educational establishments or not for profit organisations including other businesses
Department for Education,NATIONAL COLLEGE FOR TEACHING AND LEADERSHIP AGENCY,04/07/2016,Grants,Operations Directorate,MIDDLESEX UNIVERSITY,4000241593,140600.00,Grants to educational establishments or not for profit organisations including other businesses
Department for Education,NATIONAL COLLEGE FOR TEACHING AND LEADERSHIP AGENCY,04/07/2016,Grants,Delivery Directorate,MIDDLESEX UNIVERSITY,4000241593,48360.00,Grants to educational establishments or not for profit organisations including other businesses
Department for Education,DEPARTMENT FOR EDUCATION,04/07/2016,Grants,Early Years Group,HM REVENUE & CUSTOMS,4000241595,465995.41,Current grant funding to other government departments for DfE's contribution to jointly funded programmes 
Department for Education,STANDARDS AND TESTING AGENCY,04/07/2016,Programme costs,Test Development Division,NFER,4000241598,68907.00,Funding to deliver policies (excluding consultancy) paid to third parties via a service delivery contract
Department for Education,STANDARDS AND TESTING AGENCY,04/07/2016,Programme costs,Test Development Division,NFER,4000241598,220173.59,Funding to deliver policies (excluding consultancy) paid to third parties via a service delivery contract
Department for Education,NATIONAL COLLEGE FOR TEACHING AND LEADERSHIP AGENCY,04/07/2016,Grants,Delivery Directorate,UNIVERSITY OF EXETER,4000241602,3000.00,Grants to educational establishments or not for profit organisations including other businesses
Department for Education,NATIONAL COLLEGE FOR TEACHING AND LEADERSHIP AGENCY,04/07/2016,Grants,Operations Directorate,UNIVERSITY OF EXETER,4000241602,416208.00,Grants to educational establishments or not for profit organisations including other businesses
Department for Education,NATIONAL COLLEGE FOR TEACHING AND LEADERSHIP AGENCY,04/07/2016,Grants,Operations Directorate,DONCASTER MBC,4000241604,28100.00,Grants to educational establishments or not for profit organisations including other businesses
Department for Education,NATIONAL COLLEGE FOR TEACHING AND LEADERSHIP AGENCY,04/07/2016,Grants,Operations Directorate,LEEDS CITY COUNCIL,4000241606,35900.00,Grants to educational establishments or not for profit organisations including other businesses
Department for Education,NATIONAL COLLEGE FOR TEACHING AND LEADERSHIP AGENCY,04/07/2016,Grants,Delivery Directorate,UNIVERSITY OF THE WEST OF ENGLAND,4000241607,94000.00,Grants to educational establishments or not for profit organisations including other businesses
Department for Education,NATIONAL COLLEGE FOR TEACHING AND LEADERSHIP AGENCY,04/07/2016,Grants,Operations Directorate,UNIVERSITY OF THE WEST OF ENGLAND,4000241607,227630.00,Grants to educational establishments or not for profit organisations including other businesses
Department for Education,NATIONAL COLLEGE FOR TEACHING AND LEADERSHIP AGENCY,04/07/2016,Grants,Operations Directorate,UNIVERSITY OF THE WEST OF ENGLAND,4000241607,164221.75,Grants to educational establishments or not for profit organisations including other businesses
Department for Education,NATIONAL COLLEGE FOR TEACHING AND LEADERSHIP AGENCY,04/07/2016,Grants,Delivery Directorate,UNIVERSITY OF THE WEST OF ENGLAND,4000241607,11200.00,Grants to educational establishments or not for profit organisations including other businesses
Department for Education,NATIONAL COLLEGE FOR TEACHING AND LEADERSHIP AGENCY,04/07/2016,Grants,Operations Directorate,UNIVERSITY OF PORTSMOUTH,4000241609,155600.00,Grants to educational establishments or not for profit organisations including other businesses
Department for Education,NATIONAL COLLEGE FOR TEACHING AND LEADERSHIP AGENCY,04/07/2016,Grants,Operations Directorate,UNIVERSITY OF PORTSMOUTH,4000241609,1560.00,Grants to educational establishments or not for profit organisations including other businesses
Department for Education,NATIONAL COLLEGE FOR TEACHING AND LEADERSHIP AGENCY,04/07/2016,Grants,Delivery Directorate,UNIVERSITY OF PORTSMOUTH,4000241609,11200.00,Grants to educational establishments or not for profit organisations including other businesses
Department for Education,NATIONAL COLLEGE FOR TEACHING AND LEADERSHIP AGENCY,04/07/2016,Grants,Operations Directorate,UNIVERSITY OF YORK,4000241612,190800.00,Grants to educational establishments or not for profit organisations including other businesses
Department for Education,NATIONAL COLLEGE FOR TEACHING AND LEADERSHIP AGENCY,04/07/2016,Grants,Operations Directorate,PILGRIM SCITT,4000241616,29100.00,Grants to educational establishments or not for profit organisations including other businesses
Department for Education,STANDARDS AND TESTING AGENCY,04/07/2016,Programme costs,Test Operations Division,WILLIAMS LEA,4000241619,36058.50,Funding to deliver policies (excluding consultancy) paid to third parties via a service delivery contract
Department for Education,NATIONAL COLLEGE FOR TEACHING AND LEADERSHIP AGENCY,04/07/2016,Communications,Operations Directorate,CARAT,4000241621,22189.13,Marketing services
Department for Education,NATIONAL COLLEGE FOR TEACHING AND LEADERSHIP AGENCY,04/07/2016,Professional Services Consultancy and Contingent Labour,Operations Directorate,CARAT,4000241621,3765.24,"Fees / expenses of professionals such as auditors, accountants, lawyers, etc. engaged to provide advice or opinion on how to affect something"
Department for Education,NATIONAL COLLEGE FOR TEACHING AND LEADERSHIP AGENCY,04/07/2016,Communications,Operations Directorate,CARAT,4000241621,5809.44,Marketing services
Department for Education,NATIONAL COLLEGE FOR TEACHING AND LEADERSHIP AGENCY,04/07/2016,Grants,Operations Directorate,UNIVERSITY OF NEWCASTLE UPON TYNE,4000241631,148300.00,Grants to educational establishments or not for profit organisations including other businesses
Department for Education,NATIONAL COLLEGE FOR TEACHING AND LEADERSHIP AGENCY,04/07/2016,Grants,Delivery Directorate,UNIVERSITY OF WOLVERHAMPTON,4000241632,27523.76,Grants to educational establishments or not for profit organisations including other businesses
Department for Education,NATIONAL COLLEGE FOR TEACHING AND LEADERSHIP AGENCY,04/07/2016,Grants,Operations Directorate,UNIVERSITY OF WOLVERHAMPTON,4000241632,223200.00,Grants to educational establishments or not for profit organisations including other businesses
Department for Education,NATIONAL COLLEGE FOR TEACHING AND LEADERSHIP AGENCY,04/07/2016,Grants,Operations Directorate,UNIVERSITY OF WOLVERHAMPTON,4000241632,91680.00,Grants to educational establishments or not for profit organisations including other businesses
Department for Education,NATIONAL COLLEGE FOR TEACHING AND LEADERSHIP AGENCY,04/07/2016,Grants,Operations Directorate,UNIVERSITY OF WOLVERHAMPTON,4000241632,9720.00,Grants to educational establishments or not for profit organisations including other businesses
Department for Education,NATIONAL COLLEGE FOR TEACHING AND LEADERSHIP AGENCY,04/07/2016,Grants,Delivery Directorate,UNIVERSITY OF WOLVERHAMPTON,4000241632,22400.00,Grants to educational establishments or not for profit organisations including other businesses
Department for Education,NATIONAL COLLEGE FOR TEACHING AND LEADERSHIP AGENCY,04/07/2016,Grants,Operations Directorate,UNIVERSITY OF DURHAM,4000241633,183400.00,Grants to educational establishments or not for profit organisations including other businesses
Department for Education,NATIONAL COLLEGE FOR TEACHING AND LEADERSHIP AGENCY,04/07/2016,Grants,Operations Directorate,LEEDS TRINITY UNIVERSITY COLLEGE,4000241634,2478.60,Grants to educational establishments or not for profit organisations including other businesses
Department for Education,NATIONAL COLLEGE FOR TEACHING AND LEADERSHIP AGENCY,04/07/2016,Grants,Operations Directorate,LEEDS TRINITY UNIVERSITY COLLEGE,4000241634,227500.00,Grants to educational establishments or not for profit organisations including other businesses
Department for Education,NATIONAL COLLEGE FOR TEACHING AND LEADERSHIP AGENCY,04/07/2016,Grants,Delivery Directorate,LEEDS TRINITY UNIVERSITY COLLEGE,4000241634,12600.00,Grants to educational establishments or not for profit organisations including other businesses
Department for Education,NATIONAL COLLEGE FOR TEACHING AND LEADERSHIP AGENCY,04/07/2016,Grants,Operations Directorate,NORTH BEDS SCITT CONSORTIUM,4000241636,46620.00,Grants to educational establishments or not for profit organisations including other businesses
Department for Education,NATIONAL COLLEGE FOR TEACHING AND LEADERSHIP AGENCY,04/07/2016,Grants,Delivery Directorate,NEWMAN COLLEGE,4000241637,17657.09,Grants to educational establishments or not for profit organisations including other businesses
Department for Education,NATIONAL COLLEGE FOR TEACHING AND LEADERSHIP AGENCY,04/07/2016,Grants,Operations Directorate,NEWMAN COLLEGE,4000241637,167400.00,Grants to educational establishments or not for profit organisations including other businesses
Department for Education,NATIONAL COLLEGE FOR TEACHING AND LEADERSHIP AGENCY,04/07/2016,Grants,Operations Directorate,NEWMAN COLLEGE,4000241637,38960.00,Grants to educational establishments or not for profit organisations including other businesses
Department for Education,NATIONAL COLLEGE FOR TEACHING AND LEADERSHIP AGENCY,04/07/2016,Grants,Delivery Directorate,NEWMAN COLLEGE,4000241637,11600.00,Grants to educational establishments or not for profit organisations including other businesses
Department for Education,NATIONAL COLLEGE FOR TEACHING AND LEADERSHIP AGENCY,04/07/2016,Grants,Delivery Directorate,CANTERBURY CHRIST CHURCH UNIVERSITY,4000241648,244866.67,Grants to educational establishments or not for profit organisations including other businesses
Department for Education,NATIONAL COLLEGE FOR TEACHING AND LEADERSHIP AGENCY,04/07/2016,Grants,Operations Directorate,CANTERBURY CHRIST CHURCH UNIVERSITY,4000241648,545440.00,Grants to educational establishments or not for profit organisations including other businesses
Department for Education,NATIONAL COLLEGE FOR TEACHING AND LEADERSHIP AGENCY,04/07/2016,Grants,Operations Directorate,CANTERBURY CHRIST CHURCH UNIVERSITY,4000241648,369840.00,Grants to educational establishments or not for profit organisations including other businesses
Department for Education,NATIONAL COLLEGE FOR TEACHING AND LEADERSHIP AGENCY,04/07/2016,Grants,Operations Directorate,CANTERBURY CHRIST CHURCH UNIVERSITY,4000241648,32760.00,Grants to educational establishments or not for profit organisations including other businesses
Department for Education,NATIONAL COLLEGE FOR TEACHING AND LEADERSHIP AGENCY,04/07/2016,Grants,Delivery Directorate,CANTERBURY CHRIST CHURCH UNIVERSITY,4000241648,19000.00,Grants to educational establishments or not for profit organisations including other businesses
Department for Education,NATIONAL COLLEGE FOR TEACHING AND LEADERSHIP AGENCY,04/07/2016,Grants,Delivery Directorate,THE ARTHUR TERRY SCHOOL SCITT,4000241649,1066.67,Grants to educational establishments or not for profit organisations including other businesses
Department for Education,NATIONAL COLLEGE FOR TEACHING AND LEADERSHIP AGENCY,04/07/2016,Grants,Operations Directorate,THE ARTHUR TERRY SCHOOL SCITT,4000241649,34800.00,Grants to educational establishments or not for profit organisations including other businesses
Department for Education,NATIONAL COLLEGE FOR TEACHING AND LEADERSHIP AGENCY,04/07/2016,Grants,Operations Directorate,THE ARTHUR TERRY SCHOOL SCITT,4000241649,3705.00,Grants to educational establishments or not for profit organisations including other businesses
Department for Education,NATIONAL COLLEGE FOR TEACHING AND LEADERSHIP AGENCY,04/07/2016,Grants,Delivery Directorate,UNIVERSITY OF SUNDERLAND,4000241652,12840.00,Grants to educational establishments or not for profit organisations including other businesses
Department for Education,NATIONAL COLLEGE FOR TEACHING AND LEADERSHIP AGENCY,04/07/2016,Grants,Operations Directorate,UNIVERSITY OF SUNDERLAND,4000241652,178875.00,Grants to educational establishments or not for profit organisations including other businesses
Department for Education,NATIONAL COLLEGE FOR TEACHING AND LEADERSHIP AGENCY,04/07/2016,Grants,Operations Directorate,UNIVERSITY OF SUNDERLAND,4000241652,12810.00,Grants to educational establishments or not for profit organisations including other businesses
Department for Education,NATIONAL COLLEGE FOR TEACHING AND LEADERSHIP AGENCY,04/07/2016,Grants,Delivery Directorate,UNIVERSITY OF SUNDERLAND,4000241652,21400.00,Grants to educational establishments or not for profit organisations including other businesses
Department for Education,NATIONAL COLLEGE FOR TEACHING AND LEADERSHIP AGENCY,04/07/2016,Grants,Operations Directorate,UNIVERSITY OF HUDDERSFIELD,4000241655,77700.00,Grants to educational establishments or not for profit organisations including other businesses
Department for Education,NATIONAL COLLEGE FOR TEACHING AND LEADERSHIP AGENCY,04/07/2016,Grants,Operations Directorate,UNIVERSITY OF HUDDERSFIELD,4000241655,15230.00,Grants to educational establishments or not for profit organisations including other businesses
Department for Education,NATIONAL COLLEGE FOR TEACHING AND LEADERSHIP AGENCY,04/07/2016,Grants,Delivery Directorate,UNIVERSITY OF HUDDERSFIELD,4000241655,18800.00,Grants to educational establishments or not for profit organisations including other businesses
Department for Education,NATIONAL COLLEGE FOR TEACHING AND LEADERSHIP AGENCY,04/07/2016,Grants,Operations Directorate,SOUTHEND HIGH SCHOOL FOR GIRLS,4000241656,32400.00,Grants to educational establishments or not for profit organisations including other businesses
Department for Education,NATIONAL COLLEGE FOR TEACHING AND LEADERSHIP AGENCY,04/07/2016,Grants,Operations Directorate,THE KIRKLEES PARTNERSHIP,4000241658,28400.00,Grants to educational establishments or not for profit organisations including other businesses
Department for Education,NATIONAL COLLEGE FOR TEACHING AND LEADERSHIP AGENCY,04/07/2016,Grants,Delivery Directorate,THE COLLEGE OF ST MARK & ST JOHN,4000241659,44400.00,Grants to educational establishments or not for profit organisations including other businesses
Department for Education,NATIONAL COLLEGE FOR TEACHING AND LEADERSHIP AGENCY,04/07/2016,Grants,Operations Directorate,THE COLLEGE OF ST MARK & ST JOHN,4000241659,72765.00,Grants to educational establishments or not for profit organisations including other businesses
Department for Education,NATIONAL COLLEGE FOR TEACHING AND LEADERSHIP AGENCY,04/07/2016,Grants,Operations Directorate,THE COLLEGE OF ST MARK & ST JOHN,4000241659,42150.00,Grants to educational establishments or not for profit organisations including other businesses
Department for Education,NATIONAL COLLEGE FOR TEACHING AND LEADERSHIP AGENCY,04/07/2016,Grants,Delivery Directorate,THE COLLEGE OF ST MARK & ST JOHN,4000241659,20600.00,Grants to educational establishments or not for profit organisations including other businesses
Department for Education,NATIONAL COLLEGE FOR TEACHING AND LEADERSHIP AGENCY,04/07/2016,Grants,Delivery Directorate,BISHOP GROSSETESTE COLLEGE,4000241660,16000.00,Grants to educational establishments or not for profit organisations including other businesses
Department for Education,NATIONAL COLLEGE FOR TEACHING AND LEADERSHIP AGENCY,04/07/2016,Grants,Operations Directorate,BISHOP GROSSETESTE COLLEGE,4000241660,138500.00,Grants to educational establishments or not for profit organisations including other businesses
Department for Education,NATIONAL COLLEGE FOR TEACHING AND LEADERSHIP AGENCY,04/07/2016,Grants,Operations Directorate,BISHOP GROSSETESTE COLLEGE,4000241660,19100.00,Grants to educational establishments or not for profit organisations including other businesses
Department for Education,NATIONAL COLLEGE FOR TEACHING AND LEADERSHIP AGENCY,04/07/2016,Grants,Delivery Directorate,BISHOP GROSSETESTE COLLEGE,4000241660,7480.00,Grants to educational establishments or not for profit organisations including other businesses
Department for Education,NATIONAL COLLEGE FOR TEACHING AND LEADERSHIP AGENCY,04/07/2016,Grants,Operations Directorate,BILLERICAY EDUCATIONAL CONSORTIUM,4000241662,50000.00,Grants to educational establishments or not for profit organisations including other businesses
Department for Education,NATIONAL COLLEGE FOR TEACHING AND LEADERSHIP AGENCY,04/07/2016,Grants,Operations Directorate,KEELE AND NORTH STAFFS PRIMARY SCITT,4000241663,27300.00,Grants to educational establishments or not for profit organisations including other businesses
Department for Education,NATIONAL COLLEGE FOR TEACHING AND LEADERSHIP AGENCY,04/07/2016,Grants,Delivery Directorate,THE OAKS SCITT,4000241667,17600.00,Grants to educational establishments or not for profit organisations including other businesses
Department for Education,NATIONAL COLLEGE FOR TEACHING AND LEADERSHIP AGENCY,04/07/2016,Grants,Operations Directorate,THE OAKS SCITT,4000241667,80200.00,Grants to educational establishments or not for profit organisations including other businesses
Department for Education,NATIONAL COLLEGE FOR TEACHING AND LEADERSHIP AGENCY,04/07/2016,Grants,Operations Directorate,THE OAKS SCITT,4000241667,22920.00,Grants to educational establishments or not for profit organisations including other businesses
Department for Education,NATIONAL COLLEGE FOR TEACHING AND LEADERSHIP AGENCY,04/07/2016,Grants,Operations Directorate,KENT & MEDWAY TRAINING,4000241671,67300.00,Grants to educational establishments or not for profit organisations including other businesses
Department for Education,NATIONAL COLLEGE FOR TEACHING AND LEADERSHIP AGENCY,04/07/2016,Grants,Operations Directorate,UNIVERSITY OF BIRMINGHAM,4000241675,315700.00,Grants to educational establishments or not for profit organisations including other businesses
Department for Education,NATIONAL COLLEGE FOR TEACHING AND LEADERSHIP AGENCY,04/07/2016,Grants,Delivery Directorate,BATH SPA UNIVERSITY,4000241680,14400.00,Grants to educational establishments or not for profit organisations including other businesses
Department for Education,NATIONAL COLLEGE FOR TEACHING AND LEADERSHIP AGENCY,04/07/2016,Grants,Operations Directorate,BATH SPA UNIVERSITY,4000241680,232500.00,Grants to educational establishments or not for profit organisations including other businesses
Department for Education,NATIONAL COLLEGE FOR TEACHING AND LEADERSHIP AGENCY,04/07/2016,Grants,Delivery Directorate,BATH SPA UNIVERSITY,4000241680,35660.00,Grants to educational establishments or not for profit organisations including other businesses
Department for Education,NATIONAL COLLEGE FOR TEACHING AND LEADERSHIP AGENCY,04/07/2016,Grants,Operations Directorate,SHEFFIELD HALLAM UNIVERSITY,4000241683,399800.00,Grants to educational establishments or not for profit organisations including other businesses
Department for Education,NATIONAL COLLEGE FOR TEACHING AND LEADERSHIP AGENCY,04/07/2016,Grants,Operations Directorate,SHEFFIELD HALLAM UNIVERSITY,4000241683,11157.60,Grants to educational establishments or not for profit organisations including other businesses
Department for Education,NATIONAL COLLEGE FOR TEACHING AND LEADERSHIP AGENCY,04/07/2016,Grants,Delivery Directorate,SHEFFIELD HALLAM UNIVERSITY,4000241683,23200.00,Grants to educational establishments or not for profit organisations including other businesses
Department for Education,NATIONAL COLLEGE FOR TEACHING AND LEADERSHIP AGENCY,04/07/2016,Grants,Delivery Directorate,UNIVERSITY OF BRIGHTON,4000241684,22790.48,Grants to educational establishments or not for profit organisations including other businesses
Department for Education,NATIONAL COLLEGE FOR TEACHING AND LEADERSHIP AGENCY,04/07/2016,Grants,Operations Directorate,UNIVERSITY OF BRIGHTON,4000241684,21010.00,Grants to educational establishments or not for profit organisations including other businesses
Department for Education,NATIONAL COLLEGE FOR TEACHING AND LEADERSHIP AGENCY,04/07/2016,Grants,Operations Directorate,UNIVERSITY OF BRIGHTON,4000241685,179.45,Grants to educational establishments or not for profit organisations including other businesses
Department for Education,NATIONAL COLLEGE FOR TEACHING AND LEADERSHIP AGENCY,04/07/2016,Grants,Operations Directorate,UNIVERSITY OF BRIGHTON,4000241685,257400.00,Grants to educational establishments or not for profit organisations including other businesses
Department for Education,NATIONAL COLLEGE FOR TEACHING AND LEADERSHIP AGENCY,04/07/2016,Grants,Operations Directorate,UNIVERSITY OF BRIGHTON,4000241685,3960.00,Grants to educational establishments or not for profit organisations including other businesses
Department for Education,NATIONAL COLLEGE FOR TEACHING AND LEADERSHIP AGENCY,04/07/2016,Grants,Delivery Directorate,UNIVERSITY OF BRIGHTON,4000241685,21000.00,Grants to educational establishments or not for profit organisations including other businesses
Department for Education,NATIONAL COLLEGE FOR TEACHING AND LEADERSHIP AGENCY,04/07/2016,Grants,Delivery Directorate,UNIVERSITY OF ROEHAMPTON,4000241686,3946.66,Grants to educational establishments or not for profit organisations including other businesses
Department for Education,NATIONAL COLLEGE FOR TEACHING AND LEADERSHIP AGENCY,04/07/2016,Grants,Operations Directorate,UNIVERSITY OF ROEHAMPTON,4000241686,250190.00,Grants to educational establishments or not for profit organisations including other businesses
Department for Education,NATIONAL COLLEGE FOR TEACHING AND LEADERSHIP AGENCY,04/07/2016,Grants,Operations Directorate,SHOTTON HALL SCITT,4000241691,76300.00,Grants to educational establishments or not for profit organisations including other businesses
Department for Education,NATIONAL COLLEGE FOR TEACHING AND LEADERSHIP AGENCY,04/07/2016,Grants,Operations Directorate,SOUTH WEST TEACHER TRAINING,4000241699,29700.00,Grants to educational establishments or not for profit organisations including other businesses
Department for Education,NATIONAL COLLEGE FOR TEACHING AND LEADERSHIP AGENCY,04/07/2016,Grants,Delivery Directorate,MANCHESTER METROPOLITAN UNIVERSITY,4000241700,18000.00,Grants to educational establishments or not for profit organisations including other businesses
Department for Education,NATIONAL COLLEGE FOR TEACHING AND LEADERSHIP AGENCY,04/07/2016,Grants,Operations Directorate,MANCHESTER METROPOLITAN UNIVERSITY,4000241700,607600.00,Grants to educational establishments or not for profit organisations including other businesses
Department for Education,NATIONAL COLLEGE FOR TEACHING AND LEADERSHIP AGENCY,04/07/2016,Grants,Delivery Directorate,MANCHESTER METROPOLITAN UNIVERSITY,4000241700,26600.00,Grants to educational establishments or not for profit organisations including other businesses
Department for Education,NATIONAL COLLEGE FOR TEACHING AND LEADERSHIP AGENCY,04/07/2016,Grants,Operations Directorate,OXFORD BROOKES UNIVERSITY,4000241705,52000.00,Grants to educational establishments or not for profit organisations including other businesses
Department for Education,NATIONAL COLLEGE FOR TEACHING AND LEADERSHIP AGENCY,04/07/2016,Grants,Operations Directorate,OXFORD BROOKES UNIVERSITY,4000241705,2445.60,Grants to educational establishments or not for profit organisations including other businesses
Department for Education,NATIONAL COLLEGE FOR TEACHING AND LEADERSHIP AGENCY,04/07/2016,Grants,Delivery Directorate,OXFORD BROOKES UNIVERSITY,4000241705,6720.00,Grants to educational establishments or not for profit organisations including other businesses
Department for Education,NATIONAL COLLEGE FOR TEACHING AND LEADERSHIP AGENCY,04/07/2016,Grants,Operations Directorate,THE MORLEY ACADEMY,4000241707,71700.00,Grants to educational establishments or not for profit organisations including other businesses
Department for Education,NATIONAL COLLEGE FOR TEACHING AND LEADERSHIP AGENCY,04/07/2016,Grants,Delivery Directorate,BRUNEL UNIVERSITY,4000241708,3400.00,Grants to educational establishments or not for profit organisations including other businesses
Department for Education,NATIONAL COLLEGE FOR TEACHING AND LEADERSHIP AGENCY,04/07/2016,Grants,Operations Directorate,BRUNEL UNIVERSITY,4000241708,137600.00,Grants to educational establishments or not for profit organisations including other businesses
Department for Education,NATIONAL COLLEGE FOR TEACHING AND LEADERSHIP AGENCY,04/07/2016,Grants,Operations Directorate,BRUNEL UNIVERSITY,4000241708,5620.00,Grants to educational establishments or not for profit organisations including other businesses
Department for Education,NATIONAL COLLEGE FOR TEACHING AND LEADERSHIP AGENCY,04/07/2016,Grants,Operations Directorate,CHEADLE HULME HIGH SCHOOL,4000241710,29300.00,Grants to educational establishments or not for profit organisations including other businesses
Department for Education,NATIONAL COLLEGE FOR TEACHING AND LEADERSHIP AGENCY,04/07/2016,Grants,Delivery Directorate,UNIVERSITY OF NOTTINGHAM,4000241711,1066.67,Grants to educational establishments or not for profit organisations including other businesses
Department for Education,NATIONAL COLLEGE FOR TEACHING AND LEADERSHIP AGENCY,04/07/2016,Grants,Operations Directorate,UNIVERSITY OF NOTTINGHAM,4000241711,303200.00,Grants to educational establishments or not for profit organisations including other businesses
Department for Education,NATIONAL COLLEGE FOR TEACHING AND LEADERSHIP AGENCY,04/07/2016,Grants,Operations Directorate,UNIVERSITY OF NOTTINGHAM,4000241711,1577.00,Grants to educational establishments or not for profit organisations including other businesses
Department for Education,NATIONAL COLLEGE FOR TEACHING AND LEADERSHIP AGENCY,04/07/2016,Grants,Operations Directorate,BLUECOAT ACADEMY,4000241713,26800.00,Grants to educational establishments or not for profit organisations including other businesses
Department for Education,NATIONAL COLLEGE FOR TEACHING AND LEADERSHIP AGENCY,04/07/2016,Grants,Operations Directorate,KINGSTON UNIVERSITY,4000241714,132700.00,Grants to educational establishments or not for profit organisations including other businesses
Department for Education,NATIONAL COLLEGE FOR TEACHING AND LEADERSHIP AGENCY,04/07/2016,Grants,Delivery Directorate,KINGSTON UNIVERSITY,4000241714,26600.00,Grants to educational establishments or not for profit organisations including other businesses
Department for Education,NATIONAL COLLEGE FOR TEACHING AND LEADERSHIP AGENCY,04/07/2016,Grants,Operations Directorate,SUTTON SCITT,4000241718,51100.00,Grants to educational establishments or not for profit organisations including other businesses
Department for Education,DEPARTMENT FOR EDUCATION,04/07/2016,Grants,Academies Regional Delivery Group,THE DIOCESE OF CHELMSFORD VINE SCHOOLS TRUST,4000241723,70000.00,Grants to educational establishments or not for profit organisations including other businesses
Department for Education,DEPARTMENT FOR EDUCATION,04/07/2016,Grants,Academies Regional Delivery Group,THE DIOCESE OF CHELMSFORD VINE SCHOOLS TRUST,4000241723,25000.00,Grants to educational establishments or not for profit organisations including other businesses
Department for Education,NATIONAL COLLEGE FOR TEACHING AND LEADERSHIP AGENCY,04/07/2016,Grants,Operations Directorate,ARK SCHOOLS,4000241725,29100.00,Grants to educational establishments or not for profit organisations including other businesses
Department for Education,NATIONAL COLLEGE FOR TEACHING AND LEADERSHIP AGENCY,04/07/2016,Grants,Operations Directorate,KING EDWARDS CONSORTIUM,4000241727,29200.00,Grants to educational establishments or not for profit organisations including other businesses
Department for Education,NATIONAL COLLEGE FOR TEACHING AND LEADERSHIP AGENCY,04/07/2016,Grants,Operations Directorate,HAVERING BEACON PARTNERSHIP,4000241730,29600.00,Grants to educational establishments or not for profit organisations including other businesses
Department for Education,NATIONAL COLLEGE FOR TEACHING AND LEADERSHIP AGENCY,04/07/2016,Grants,Delivery Directorate,GRAND UNION TRAINING PARTNERSHIP,4000241732,1760.00,Grants to educational establishments or not for profit organisations including other businesses
Department for Education,NATIONAL COLLEGE FOR TEACHING AND LEADERSHIP AGENCY,04/07/2016,Grants,Operations Directorate,GRAND UNION TRAINING PARTNERSHIP,4000241732,45700.00,Grants to educational establishments or not for profit organisations including other businesses
Department for Education,NATIONAL COLLEGE FOR TEACHING AND LEADERSHIP AGENCY,04/07/2016,Grants,Delivery Directorate,ST MARYS UNIVERSITY COLLEGE,4000241736,69740.91,Grants to educational establishments or not for profit organisations including other businesses
Department for Education,NATIONAL COLLEGE FOR TEACHING AND LEADERSHIP AGENCY,04/07/2016,Grants,Operations Directorate,ST MARYS UNIVERSITY COLLEGE,4000241736,239200.00,Grants to educational establishments or not for profit organisations including other businesses
Department for Education,NATIONAL COLLEGE FOR TEACHING AND LEADERSHIP AGENCY,04/07/2016,Grants,Operations Directorate,ST MARYS UNIVERSITY COLLEGE,4000241736,20110.00,Grants to educational establishments or not for profit organisations including other businesses
Department for Education,NATIONAL COLLEGE FOR TEACHING AND LEADERSHIP AGENCY,04/07/2016,Grants,Operations Directorate,UNIVERSITY OF NORTHAMPTON,4000241738,28800.00,Grants to educational establishments or not for profit organisations including other businesses
Department for Education,NATIONAL COLLEGE FOR TEACHING AND LEADERSHIP AGENCY,04/07/2016,Grants,Delivery Directorate,UNIVERSITY OF NORTHAMPTON,4000241738,19920.00,Grants to educational establishments or not for profit organisations including other businesses
Department for Education,NATIONAL COLLEGE FOR TEACHING AND LEADERSHIP AGENCY,04/07/2016,Grants,Operations Directorate,DURHAM SECONDARY APPLIED SCITT,4000241747,63000.00,Grants to educational establishments or not for profit organisations including other businesses
Department for Education,DEPARTMENT FOR EDUCATION,04/07/2016,Professional Services Consultancy and Contingent Labour,Information Technology Group,CAPITA BUSINESS SERVICES LTD,4000241697,61345.26,Costs related to temporary workers
Department for Education,NATIONAL COLLEGE FOR TEACHING AND LEADERSHIP AGENCY,04/07/2016,Grants,Operations Directorate,GOLDSMITH COLLEGE,4000241752,179900.00,Grants to educational establishments or not for profit organisations including other businesses
Department for Education,NATIONAL COLLEGE FOR TEACHING AND LEADERSHIP AGENCY,04/07/2016,Grants,Operations Directorate,GLOUCESTERSHIRE ITE PARTNERSHIP,4000241759,38300.00,Grants to educational establishments or not for profit organisations including other businesses
Department for Education,NATIONAL COLLEGE FOR TEACHING AND LEADERSHIP AGENCY,04/07/2016,Grants,Operations Directorate,EAST LINCOLNSHIRE DRB,4000241761,37740.00,Grants to educational establishments or not for profit organisations including other businesses
Department for Education,NATIONAL COLLEGE FOR TEACHING AND LEADERSHIP AGENCY,04/07/2016,Grants,Delivery Directorate,UNIVERSITY OF PLYMOUTH,4000241763,1066.67,Grants to educational establishments or not for profit organisations including other businesses
Department for Education,NATIONAL COLLEGE FOR TEACHING AND LEADERSHIP AGENCY,04/07/2016,Grants,Operations Directorate,UNIVERSITY OF PLYMOUTH,4000241763,90800.00,Grants to educational establishments or not for profit organisations including other businesses
Department for Education,NATIONAL COLLEGE FOR TEACHING AND LEADERSHIP AGENCY,04/07/2016,Grants,Operations Directorate,UNIVERSITY OF PLYMOUTH,4000241763,3705.00,Grants to educational establishments or not for profit organisations including other businesses
Department for Education,NATIONAL COLLEGE FOR TEACHING AND LEADERSHIP AGENCY,04/07/2016,Grants,Delivery Directorate,UNIVERSITY OF PLYMOUTH,4000241763,24300.00,Grants to educational establishments or not for profit organisations including other businesses
Department for Education,NATIONAL COLLEGE FOR TEACHING AND LEADERSHIP AGENCY,04/07/2016,Grants,Delivery Directorate,UNIVERSITY OF SUSSEX,4000241764,188139.86,Grants to educational establishments or not for profit organisations including other businesses
Department for Education,NATIONAL COLLEGE FOR TEACHING AND LEADERSHIP AGENCY,04/07/2016,Grants,Operations Directorate,UNIVERSITY OF SUSSEX,4000241764,294300.00,Grants to educational establishments or not for profit organisations including other businesses
Department for Education,NATIONAL COLLEGE FOR TEACHING AND LEADERSHIP AGENCY,04/07/2016,Grants,Operations Directorate,UNIVERSITY OF SUSSEX,4000241764,261800.00,Grants to educational establishments or not for profit organisations including other businesses
Department for Education,NATIONAL COLLEGE FOR TEACHING AND LEADERSHIP AGENCY,04/07/2016,Grants,Delivery Directorate,UNIVERSITY OF SUSSEX,4000241764,17300.00,Grants to educational establishments or not for profit organisations including other businesses
Department for Education,NATIONAL COLLEGE FOR TEACHING AND LEADERSHIP AGENCY,04/07/2016,Grants,Operations Directorate,KINGS COLLEGE GUILDFORD,4000241766,352400.00,Grants to educational establishments or not for profit organisations including other businesses
Department for Education,NATIONAL COLLEGE FOR TEACHING AND LEADERSHIP AGENCY,04/07/2016,Grants,Operations Directorate,NEWCASTLE COLLEGE GROUP,4000241769,41710.00,Grants to educational establishments or not for profit organisations including other businesses
Department for Education,NATIONAL COLLEGE FOR TEACHING AND LEADERSHIP AGENCY,04/07/2016,Grants,Operations Directorate,UNIVERSITY OF BOLTON,4000241770,81840.00,Grants to educational establishments or not for profit organisations including other businesses
Department for Education,NATIONAL COLLEGE FOR TEACHING AND LEADERSHIP AGENCY,04/07/2016,Communications,Operations Directorate,INFERNO LTD,4000241772,8535.95,"Publicity, advertising, media advertising campaigns (excluding recruitment adverts)"
Department for Education,NATIONAL COLLEGE FOR TEACHING AND LEADERSHIP AGENCY,04/07/2016,Communications,Delivery Directorate,INFERNO LTD,4000241772,42644.00,"Publicity, advertising, media advertising campaigns (excluding recruitment adverts)"
Department for Education,NATIONAL COLLEGE FOR TEACHING AND LEADERSHIP AGENCY,04/07/2016,Grants,Delivery Directorate,UNIVERSITY OF CHICHESTER,4000241775,9200.00,Grants to educational establishments or not for profit organisations including other businesses
Department for Education,NATIONAL COLLEGE FOR TEACHING AND LEADERSHIP AGENCY,04/07/2016,Grants,Operations Directorate,UNIVERSITY OF CHICHESTER,4000241775,176109.00,Grants to educational establishments or not for profit organisations including other businesses
Department for Education,NATIONAL COLLEGE FOR TEACHING AND LEADERSHIP AGENCY,04/07/2016,Grants,Delivery Directorate,UNIVERSITY OF CHICHESTER,4000241775,12600.00,Grants to educational establishments or not for profit organisations including other businesses
Department for Education,NATIONAL COLLEGE FOR TEACHING AND LEADERSHIP AGENCY,04/07/2016,Grants,Delivery Directorate,UNIVERSITY OF CHESTER,4000241776,10200.00,Grants to educational establishments or not for profit organisations including other businesses
Department for Education,NATIONAL COLLEGE FOR TEACHING AND LEADERSHIP AGENCY,04/07/2016,Grants,Operations Directorate,UNIVERSITY OF CHESTER,4000241776,236800.00,Grants to educational establishments or not for profit organisations including other businesses
Department for Education,NATIONAL COLLEGE FOR TEACHING AND LEADERSHIP AGENCY,04/07/2016,Grants,Operations Directorate,UNIVERSITY OF CHESTER,4000241776,16070.00,Grants to educational establishments or not for profit organisations including other businesses
Department for Education,NATIONAL COLLEGE FOR TEACHING AND LEADERSHIP AGENCY,04/07/2016,Grants,Delivery Directorate,UNIVERSITY OF CHESTER,4000241776,4200.00,Grants to educational establishments or not for profit organisations including other businesses
Department for Education,NATIONAL COLLEGE FOR TEACHING AND LEADERSHIP AGENCY,04/07/2016,Grants,Delivery Directorate,UNIVERSITY OF CUMBRIA,4000241778,9000.00,Grants to educational establishments or not for profit organisations including other businesses
Department for Education,NATIONAL COLLEGE FOR TEACHING AND LEADERSHIP AGENCY,04/07/2016,Grants,Operations Directorate,UNIVERSITY OF CUMBRIA,4000241778,183.60,Grants to educational establishments or not for profit organisations including other businesses
Department for Education,NATIONAL COLLEGE FOR TEACHING AND LEADERSHIP AGENCY,04/07/2016,Grants,Operations Directorate,UNIVERSITY OF CUMBRIA,4000241778,608787.00,Grants to educational establishments or not for profit organisations including other businesses
Department for Education,NATIONAL COLLEGE FOR TEACHING AND LEADERSHIP AGENCY,04/07/2016,Grants,Operations Directorate,UNIVERSITY OF CUMBRIA,4000241778,1910.00,Grants to educational establishments or not for profit organisations including other businesses
Department for Education,NATIONAL COLLEGE FOR TEACHING AND LEADERSHIP AGENCY,04/07/2016,Grants,Delivery Directorate,UNIVERSITY OF CUMBRIA,4000241778,50000.00,Grants to educational establishments or not for profit organisations including other businesses
Department for Education,NATIONAL COLLEGE FOR TEACHING AND LEADERSHIP AGENCY,04/07/2016,Grants,Operations Directorate,GEORGE SPENCER TRAINING SCHOOL,4000241780,29300.00,Grants to educational establishments or not for profit organisations including other businesses
Department for Education,NATIONAL COLLEGE FOR TEACHING AND LEADERSHIP AGENCY,04/07/2016,Grants,Operations Directorate,E QUALITAS PROFESSIONAL SERVICES LTD,4000241782,29500.00,Grants to educational establishments or not for profit organisations including other businesses
Department for Education,NATIONAL COLLEGE FOR TEACHING AND LEADERSHIP AGENCY,04/07/2016,Grants,Delivery Directorate,E QUALITAS PROFESSIONAL SERVICES LTD,4000241782,80600.00,Grants to educational establishments or not for profit organisations including other businesses
Department for Education,NATIONAL COLLEGE FOR TEACHING AND LEADERSHIP AGENCY,04/07/2016,Grants,Operations Directorate,EDUCATION MANAGEMENT DIRECT LTD,4000241783,28200.00,Grants to educational establishments or not for profit organisations including other businesses
Department for Education,NATIONAL COLLEGE FOR TEACHING AND LEADERSHIP AGENCY,04/07/2016,Grants,Delivery Directorate,UNIVERSITY OF EAST ANGLIA,4000241786,1800.00,Grants to educational establishments or not for profit organisations including other businesses
Department for Education,NATIONAL COLLEGE FOR TEACHING AND LEADERSHIP AGENCY,04/07/2016,Grants,Operations Directorate,UNIVERSITY OF EAST ANGLIA,4000241786,236600.00,Grants to educational establishments or not for profit organisations including other businesses
Department for Education,NATIONAL COLLEGE FOR TEACHING AND LEADERSHIP AGENCY,04/07/2016,Grants,Operations Directorate,UNIVERSITY OF EAST ANGLIA,4000241786,2810.00,Grants to educational establishments or not for profit organisations including other businesses
Department for Education,NATIONAL COLLEGE FOR TEACHING AND LEADERSHIP AGENCY,04/07/2016,Grants,Operations Directorate,UNIVERSITY OF DERBY,4000241788,2295.00,Grants to educational establishments or not for profit organisations including other businesses
Department for Education,NATIONAL COLLEGE FOR TEACHING AND LEADERSHIP AGENCY,04/07/2016,Grants,Operations Directorate,UNIVERSITY OF DERBY,4000241788,101340.00,Grants to educational establishments or not for profit organisations including other businesses
Department for Education,NATIONAL COLLEGE FOR TEACHING AND LEADERSHIP AGENCY,04/07/2016,Grants,Operations Directorate,UNIVERSITY OF DERBY,4000241788,646.40,Grants to educational establishments or not for profit organisations including other businesses
Department for Education,NATIONAL COLLEGE FOR TEACHING AND LEADERSHIP AGENCY,04/07/2016,Grants,Delivery Directorate,UNIVERSITY OF DERBY,4000241788,22100.00,Grants to educational establishments or not for profit organisations including other businesses
Department for Education,NATIONAL COLLEGE FOR TEACHING AND LEADERSHIP AGENCY,04/07/2016,Grants,Delivery Directorate,STAFFORDSHIRE UNIVERSITY,4000241789,3200.00,Grants to educational establishments or not for profit organisations including other businesses
Department for Education,NATIONAL COLLEGE FOR TEACHING AND LEADERSHIP AGENCY,04/07/2016,Grants,Operations Directorate,STAFFORDSHIRE UNIVERSITY,4000241789,45800.00,Grants to educational establishments or not for profit organisations including other businesses
Department for Education,NATIONAL COLLEGE FOR TEACHING AND LEADERSHIP AGENCY,04/07/2016,Grants,Operations Directorate,STAFFORDSHIRE UNIVERSITY,4000241789,5730.00,Grants to educational establishments or not for profit organisations including other businesses
Department for Education,NATIONAL COLLEGE FOR TEACHING AND LEADERSHIP AGENCY,04/07/2016,Grants,Operations Directorate,STAFFORDSHIRE UNIVERSITY,4000241789,6820.00,Grants to educational establishments or not for profit organisations including other businesses
Department for Education,NATIONAL COLLEGE FOR TEACHING AND LEADERSHIP AGENCY,04/07/2016,Grants,Delivery Directorate,STAFFORDSHIRE UNIVERSITY,4000241789,9800.00,Grants to educational establishments or not for profit organisations including other businesses
Department for Education,NATIONAL COLLEGE FOR TEACHING AND LEADERSHIP AGENCY,04/07/2016,Grants,Operations Directorate,LEEDS BECKETT UNIVERSITY,4000241790,734.40,Grants to educational establishments or not for profit organisations including other businesses
Department for Education,NATIONAL COLLEGE FOR TEACHING AND LEADERSHIP AGENCY,04/07/2016,Grants,Operations Directorate,LEEDS BECKETT UNIVERSITY,4000241790,63800.00,Grants to educational establishments or not for profit organisations including other businesses
Department for Education,NATIONAL COLLEGE FOR TEACHING AND LEADERSHIP AGENCY,04/07/2016,Grants,Delivery Directorate,LEEDS BECKETT UNIVERSITY,4000241790,6900.00,Grants to educational establishments or not for profit organisations including other businesses
Department for Education,DEPARTMENT FOR EDUCATION,04/07/2016,Grants,Academies Regional Delivery Group,ST BARTS MULTI ACADEMY TRUST,4000241793,45000.00,Grants to educational establishments or not for profit organisations including other businesses
Department for Education,NATIONAL COLLEGE FOR TEACHING AND LEADERSHIP AGENCY,04/07/2016,Grants,Operations Directorate,MINSTHORPE COMMUNITY COLLEGE,4000241799,35000.00,Grants to educational establishments or not for profit organisations including other businesses
Department for Education,NATIONAL COLLEGE FOR TEACHING AND LEADERSHIP AGENCY,04/07/2016,Grants,Operations Directorate,CHILTERN TRAINING GROUP,4000241803,39900.00,Grants to educational establishments or not for profit organisations including other businesses
Department for Education,NATIONAL COLLEGE FOR TEACHING AND LEADERSHIP AGENCY,04/07/2016,Grants,Operations Directorate,CARMEL TEACHER TRAINING PARTNERSHIP,4000241804,81700.00,Grants to educational establishments or not for profit organisations including other businesses
Department for Education,NATIONAL COLLEGE FOR TEACHING AND LEADERSHIP AGENCY,04/07/2016,Grants,Delivery Directorate,THE UNIVERSITY OF READING,4000241805,42533.38,Grants to educational establishments or not for profit organisations including other businesses
Department for Education,NATIONAL COLLEGE FOR TEACHING AND LEADERSHIP AGENCY,04/07/2016,Grants,Operations Directorate,THE UNIVERSITY OF READING,4000241805,228700.00,Grants to educational establishments or not for profit organisations including other businesses
Department for Education,NATIONAL COLLEGE FOR TEACHING AND LEADERSHIP AGENCY,04/07/2016,Grants,Operations Directorate,THE UNIVERSITY OF READING,4000241805,12250.00,Grants to educational establishments or not for profit organisations including other businesses
Department for Education,NATIONAL COLLEGE FOR TEACHING AND LEADERSHIP AGENCY,04/07/2016,Grants,Delivery Directorate,THE UNIVERSITY OF READING,4000241805,27900.00,Grants to educational establishments or not for profit organisations including other businesses
Department for Education,NATIONAL COLLEGE FOR TEACHING AND LEADERSHIP AGENCY,04/07/2016,Grants,Operations Directorate,LONDON SOUTH BANK UNIVERSITY,4000241806,27990.00,Grants to educational establishments or not for profit organisations including other businesses
Department for Education,NATIONAL COLLEGE FOR TEACHING AND LEADERSHIP AGENCY,04/07/2016,Grants,Operations Directorate,LEICESTERSHIRE SECONDARY SCITT,4000241807,38500.00,Grants to educational establishments or not for profit organisations including other businesses
Department for Education,DEPARTMENT FOR EDUCATION,04/07/2016,Grants,Academies Regional Delivery Group,CHESTNUTS PRIMARY SCHOOL,4000241809,25000.00,Grants to educational establishments or not for profit organisations including other businesses
Department for Education,NATIONAL COLLEGE FOR TEACHING AND LEADERSHIP AGENCY,04/07/2016,Grants,Delivery Directorate,UNIVERSITY OF GREENWICH,4000241814,22026.66,Grants to educational establishments or not for profit organisations including other businesses
Department for Education,NATIONAL COLLEGE FOR TEACHING AND LEADERSHIP AGENCY,04/07/2016,Grants,Operations Directorate,UNIVERSITY OF GREENWICH,4000241814,358892.00,Grants to educational establishments or not for profit organisations including other businesses
Department for Education,NATIONAL COLLEGE FOR TEACHING AND LEADERSHIP AGENCY,04/07/2016,Grants,Operations Directorate,UNIVERSITY OF GREENWICH,4000241814,7640.00,Grants to educational establishments or not for profit organisations including other businesses
Department for Education,NATIONAL COLLEGE FOR TEACHING AND LEADERSHIP AGENCY,04/07/2016,Grants,Operations Directorate,UNIVERSITY OF GREENWICH,4000241814,18720.00,Grants to educational establishments or not for profit organisations including other businesses
Department for Education,NATIONAL COLLEGE FOR TEACHING AND LEADERSHIP AGENCY,04/07/2016,Grants,Delivery Directorate,UNIVERSITY OF GREENWICH,4000241814,10660.00,Grants to educational establishments or not for profit organisations including other businesses
Department for Education,NATIONAL COLLEGE FOR TEACHING AND LEADERSHIP AGENCY,04/07/2016,Grants,Delivery Directorate,UNIVERSITY OF SOUTHAMPTON,4000241817,34373.26,Grants to educational establishments or not for profit organisations including other businesses
Department for Education,NATIONAL COLLEGE FOR TEACHING AND LEADERSHIP AGENCY,04/07/2016,Grants,Operations Directorate,UNIVERSITY OF SOUTHAMPTON,4000241817,217000.00,Grants to educational establishments or not for profit organisations including other businesses
Department for Education,NATIONAL COLLEGE FOR TEACHING AND LEADERSHIP AGENCY,04/07/2016,Grants,Operations Directorate,UNIVERSITY OF SOUTHAMPTON,4000241817,29805.00,Grants to educational establishments or not for profit organisations including other businesses
Department for Education,NATIONAL COLLEGE FOR TEACHING AND LEADERSHIP AGENCY,04/07/2016,Grants,Operations Directorate,UNIVERSITY OF SOUTHAMPTON,4000241817,6255.20,Grants to educational establishments or not for profit organisations including other businesses
Department for Education,NATIONAL COLLEGE FOR TEACHING AND LEADERSHIP AGENCY,04/07/2016,Grants,Delivery Directorate,CORNWALL SCITT,4000241818,1333.33,Grants to educational establishments or not for profit organisations including other businesses
Department for Education,NATIONAL COLLEGE FOR TEACHING AND LEADERSHIP AGENCY,04/07/2016,Grants,Operations Directorate,CORNWALL SCITT,4000241818,63700.00,Grants to educational establishments or not for profit organisations including other businesses
Department for Education,NATIONAL COLLEGE FOR TEACHING AND LEADERSHIP AGENCY,04/07/2016,Grants,Operations Directorate,CORNWALL SCITT,4000241818,2810.00,Grants to educational establishments or not for profit organisations including other businesses
Department for Education,NATIONAL COLLEGE FOR TEACHING AND LEADERSHIP AGENCY,04/07/2016,Grants,Operations Directorate,UNIVERSITY OF WINCHESTER,4000241820,58000.00,Grants to educational establishments or not for profit organisations including other businesses
Department for Education,NATIONAL COLLEGE FOR TEACHING AND LEADERSHIP AGENCY,04/07/2016,Grants,Delivery Directorate,UNIVERSITY OF WINCHESTER,4000241820,28200.00,Grants to educational establishments or not for profit organisations including other businesses
Department for Education,NATIONAL COLLEGE FOR TEACHING AND LEADERSHIP AGENCY,04/07/2016,Grants,Operations Directorate,BROMLEY SCHOOLS COLLEGIATE,4000241822,40500.00,Grants to educational establishments or not for profit organisations including other businesses
Department for Education,NATIONAL COLLEGE FOR TEACHING AND LEADERSHIP AGENCY,04/07/2016,Grants,Operations Directorate,THE GREATER MANCHESTER BRIGHT FUTURES TRUST,4000241826,27400.00,Grants to educational establishments or not for profit organisations including other businesses
Department for Education,NATIONAL COLLEGE FOR TEACHING AND LEADERSHIP AGENCY,04/07/2016,Grants,Delivery Directorate,HIBERNIA COLLEGE UK,4000241831,503628.23,Grants to educational establishments or not for profit organisations including other businesses
Department for Education,NATIONAL COLLEGE FOR TEACHING AND LEADERSHIP AGENCY,04/07/2016,Grants,Operations Directorate,HIBERNIA COLLEGE UK,4000241831,69500.00,Grants to educational establishments or not for profit organisations including other businesses
Department for Education,NATIONAL COLLEGE FOR TEACHING AND LEADERSHIP AGENCY,04/07/2016,Grants,Operations Directorate,HIBERNIA COLLEGE UK,4000241831,652485.00,Grants to educational establishments or not for profit organisations including other businesses
Department for Education,NATIONAL COLLEGE FOR TEACHING AND LEADERSHIP AGENCY,04/07/2016,Grants,Delivery Directorate,UNIVERSITY OF HULL,4000241837,28800.00,Grants to educational establishments or not for profit organisations including other businesses
Department for Education,NATIONAL COLLEGE FOR TEACHING AND LEADERSHIP AGENCY,04/07/2016,Grants,Operations Directorate,UNIVERSITY OF HULL,4000241837,67440.00,Grants to educational establishments or not for profit organisations including other businesses
Department for Education,NATIONAL COLLEGE FOR TEACHING AND LEADERSHIP AGENCY,04/07/2016,Grants,Operations Directorate,ESSEX COUNTY COUNCIL,4000241839,52800.00,Grants to educational establishments or not for profit organisations including other businesses
Department for Education,NATIONAL COLLEGE FOR TEACHING AND LEADERSHIP AGENCY,04/07/2016,Grants,Operations Directorate,DEVON COUNTY COUNCIL,4000241840,26800.00,Grants to educational establishments or not for profit organisations including other businesses
Department for Education,DEPARTMENT FOR EDUCATION,04/07/2016,Programme costs,"Assessment, Curriculum and General Qualifications Group",TRIBAL EDUCATION LIMITED,4000241841,150697.20,Funding to deliver policies (excluding consultancy) paid to third parties via a service delivery contract
Department for Education,NATIONAL COLLEGE FOR TEACHING AND LEADERSHIP AGENCY,04/07/2016,Grants,Operations Directorate,BOURNEMOUTH POOLE & DORSET EAST SECONDARY,4000241843,35900.00,Grants to educational establishments or not for profit organisations including other businesses
Department for Education,NATIONAL COLLEGE FOR TEACHING AND LEADERSHIP AGENCY,04/07/2016,Grants,Operations Directorate,HARRIS CITY ACADEMY,4000241844,44700.00,Grants to educational establishments or not for profit organisations including other businesses
Department for Education,DEPARTMENT FOR EDUCATION,04/07/2016,Programme costs,Finance and Commercial Group,FUTURE LEADERS LTD,4000241846,260000.00,Funding to deliver policies (excluding consultancy) paid to third parties via a service delivery contract
Department for Education,NATIONAL COLLEGE FOR TEACHING AND LEADERSHIP AGENCY,04/07/2016,Grants,Delivery Directorate,UNIVERSITY OF HULL,4000241848,7999.34,Grants to educational establishments or not for profit organisations including other businesses
Department for Education,NATIONAL COLLEGE FOR TEACHING AND LEADERSHIP AGENCY,04/07/2016,Grants,Operations Directorate,UNIVERSITY OF HULL,4000241848,3213.00,Grants to educational establishments or not for profit organisations including other businesses
Department for Education,NATIONAL COLLEGE FOR TEACHING AND LEADERSHIP AGENCY,04/07/2016,Grants,Operations Directorate,UNIVERSITY OF HULL,4000241848,213500.00,Grants to educational establishments or not for profit organisations including other businesses
Department for Education,NATIONAL COLLEGE FOR TEACHING AND LEADERSHIP AGENCY,04/07/2016,Grants,Delivery Directorate,UNIVERSITY OF HULL,4000241848,7000.00,Grants to educational establishments or not for profit organisations including other businesses
Department for Education,DEPARTMENT FOR EDUCATION,04/07/2016,Professional Services Other,Finance and Commercial Group,CAPITA BUSINESS SERVICES LTD,4000241697,5340.22,"Fees / expenses of professionals, for example to implement advice or changes"
Department for Education,DEPARTMENT FOR EDUCATION,04/07/2016,Professional Services Consultancy and Contingent Labour,Information Technology Group,FDM GROUP LTD,4000241555,12636.00,Costs related to temporary workers
Department for Education,DEPARTMENT FOR EDUCATION,04/07/2016,Professional Services Consultancy and Contingent Labour,Information Technology Group,FDM GROUP LTD,4000241555,62826.00,Costs related to temporary workers
Department for Education,DEPARTMENT FOR EDUCATION,04/07/2016,Professional Services Consultancy and Contingent Labour,Information Technology Group,FDM GROUP LTD,4000241555,36775.92,Costs related to temporary workers
Department for Education,DEPARTMENT FOR EDUCATION,04/07/2016,Professional Services Other,Strategic Analysis and Research Group,IFF RESEARCH LTD,4000241525,24000.00,Research and evaluation activities
Department for Education,NATIONAL COLLEGE FOR TEACHING AND LEADERSHIP AGENCY,04/07/2016,Professional Services Other,Operations Directorate,NABARRO LLP,4000241737,42018.16,"Fees / expenses of professionals, for example to implement advice or changes"
Department for Education,NATIONAL COLLEGE FOR TEACHING AND LEADERSHIP AGENCY,04/07/2016,Professional Services Other,Delivery Directorate,TEACHING LEADERS,4000241611,588463.00,"Fees / expenses of professionals, for example to implement advice or changes"
Department for Education,DEPARTMENT FOR EDUCATION,04/07/2016,Professional Services Consultancy and Contingent Labour,Information Technology Group,RUSSAM GMS LTD,4000241751,12318.00,Costs related to temporary workers
Department for Education,DEPARTMENT FOR EDUCATION,04/07/2016,Professional Services Consultancy and Contingent Labour,Information Technology Group,RUSSAM GMS LTD,4000241751,13566.00,Costs related to temporary workers
Department for Education,NATIONAL COLLEGE FOR TEACHING AND LEADERSHIP AGENCY,04/07/2016,Professional Services Other,Delivery Directorate,TEACHING LEADERS,4000241611,256354.00,"Fees / expenses of professionals, for example to implement advice or changes"
Department for Education,DEPARTMENT FOR EDUCATION,05/07/2016,Professional Services Other,Property Asset Management Group,ARCADIS LLP,4000241853,70731.60,"Fees / expenses of professionals, for example to implement advice or changes"
Department for Education,DEPARTMENT FOR EDUCATION,05/07/2016,Grants,Government Equalities Office,EQUALITY & HUMAN RIGHTS COMMISSION,2100068,1060132.00,Current grants paid to organisations including arms length bodies and educational establishments
Department for Education,DEPARTMENT FOR EDUCATION,05/07/2016,Professional Services Consultancy and Contingent Labour,Information Technology Group,ALPINE CONSORTIUM,4000241921,15642.76,Costs related to temporary workers
Department for Education,DEPARTMENT FOR EDUCATION,05/07/2016,Professional Services Consultancy and Contingent Labour,Information Technology Group,ALPINE CONSORTIUM,4000241921,13680.00,Costs related to temporary workers
Department for Education,DEPARTMENT FOR EDUCATION,05/07/2016,Professional Services Consultancy and Contingent Labour,Information Technology Group,CADENCE PARTNERSHIP LLP,4000241915,23522.04,Costs related to temporary workers
Department for Education,DEPARTMENT FOR EDUCATION,05/07/2016,Professional Services Consultancy and Contingent Labour,Information Technology Group,CADENCE PARTNERSHIP LLP,4000241915,33018.00,Costs related to temporary workers
Department for Education,DEPARTMENT FOR EDUCATION,05/07/2016,Programme costs,Systems and Accountability Group,RESEARCH MACHINES PLC,4000241851,499724.40,Funding to deliver policies (excluding consultancy) paid to third parties via a service delivery contract
Department for Education,DEPARTMENT FOR EDUCATION,05/07/2016,Grants,Academies Regional Delivery Group,QUEEN ELIZABETHS GRAMMAR SCHOOL ASHBOURNE,4000241859,80000.00,Grants to educational establishments or not for profit organisations including other businesses
Department for Education,DEPARTMENT FOR EDUCATION,05/07/2016,Grants,Adoption and Children in Care Division,BOURNEMOUTH BOROUGH COUNCIL,4000241863,29947.00,Grants to local authorities / other establishments within aggregate external funding or aggregate exchequer grant
Department for Education,DEPARTMENT FOR EDUCATION,05/07/2016,Grants,Free School Group,NEW SCHOOLS NETWORK,4000241872,146980.69,Grants to educational establishments or not for profit organisations including other businesses
Department for Education,DEPARTMENT FOR EDUCATION,05/07/2016,Grants,Academies Regional Delivery Group,WISE ACADEMIES,4000241873,70000.00,Grants to educational establishments or not for profit organisations including other businesses
Department for Education,DEPARTMENT FOR EDUCATION,05/07/2016,Grants,Academies Regional Delivery Group,BEDFORD HIGH SCHOOL,4000241891,25000.00,Grants to educational establishments or not for profit organisations including other businesses
Department for Education,DEPARTMENT FOR EDUCATION,05/07/2016,Grants,Academies Regional Delivery Group,MOUNT PLEASANT PRIMARY SCHOOL,4000241892,25000.00,Grants to educational establishments or not for profit organisations including other businesses
Department for Education,DEPARTMENT FOR EDUCATION,05/07/2016,Grants,Academies Regional Delivery Group,ADLINGTON PRIMARY SCHOOL,4000241893,25000.00,Grants to educational establishments or not for profit organisations including other businesses
Department for Education,DEPARTMENT FOR EDUCATION,05/07/2016,Grants,Academies Regional Delivery Group,QUINTON CHURCH PRIMARY SCHOOL,4000241894,25000.00,Grants to educational establishments or not for profit organisations including other businesses
Department for Education,DEPARTMENT FOR EDUCATION,05/07/2016,Grants,Teachers and Teaching Group,COLLEGE OF TEACHING LTD,4000241897,300000.00,Grants to educational establishments or not for profit organisations including other businesses
Department for Education,DEPARTMENT FOR EDUCATION,05/07/2016,Facilities,International Education Group,DTZ DEBENHAM TIE LEUNG,4000241902,63096.14,"Building maintenance and repair, including repainting, replacing flooring, etc."
Department for Education,DEPARTMENT FOR EDUCATION,05/07/2016,Professional Services Consultancy and Contingent Labour,Information Technology Group,FDM GROUP LTD,4000241917,2856.00,Costs related to temporary workers
Department for Education,DEPARTMENT FOR EDUCATION,05/07/2016,Professional Services Consultancy and Contingent Labour,Information Technology Group,FDM GROUP LTD,4000241917,11016.00,Costs related to temporary workers
Department for Education,DEPARTMENT FOR EDUCATION,05/07/2016,Grants,"Children's Services, Equalities and Communication Safeguarding Group",THE FRONTLINE ORGANISATION,4000241909,274134.25,Grants to educational establishments or not for profit organisations including other businesses
Department for Education,DEPARTMENT FOR EDUCATION,05/07/2016,Professional Services Consultancy and Contingent Labour,Information Technology Group,FDM GROUP LTD,4000241917,15000.00,Costs related to temporary workers
Department for Education,DEPARTMENT FOR EDUCATION,05/07/2016,Grants,Academies Regional Delivery Group,ESSEX COUNTY COUNCIL,4000241919,25000.00,Grants to educational establishments or not for profit organisations including other businesses
Department for Education,DEPARTMENT FOR EDUCATION,05/07/2016,Grants,Early Years Group,HM REVENUE & CUSTOMS,4000241920,52798.43,Current grant funding to other government departments for DfE's contribution to jointly funded programmes 
Department for Education,DEPARTMENT FOR EDUCATION,05/07/2016,Professional Services Consultancy and Contingent Labour,Information Technology Group,METHODS CONSULTING LTD,4000241874,33199.20,Costs related to temporary workers
Department for Education,STANDARDS AND TESTING AGENCY,05/07/2016,Programme costs,Test Operations Division,WILLIAMS LEA,4000241922,265054.17,Funding to deliver policies (excluding consultancy) paid to third parties via a service delivery contract
Department for Education,DEPARTMENT FOR EDUCATION,05/07/2016,Grants,Adoption and Children in Care Division,GRANDPARENTS PLUS,4000241926,73869.76,Grants to educational establishments or not for profit organisations including other businesses
Department for Education,DEPARTMENT FOR EDUCATION,05/07/2016,Grants,Academies Regional Delivery Group,MATRIX ACADEMY TRUST,4000241928,115000.00,Grants to educational establishments or not for profit organisations including other businesses
Department for Education,DEPARTMENT FOR EDUCATION,05/07/2016,Grants,"Assessment, Curriculum and General Qualifications Group",DEPARTMENT FOR CULTURE MEDIA & SPORT,4000241932,195560.75,Current grant funding to other government departments for DfE's contribution to jointly funded programmes 
Department for Education,DEPARTMENT FOR EDUCATION,05/07/2016,Programme costs,Systems and Accountability Group,RM EDUCATION PLC,4000241933,39969.17,Funding to deliver policies (excluding consultancy) paid to third parties via a service delivery contract
Department for Education,DEPARTMENT FOR EDUCATION,05/07/2016,Grants,Academies Regional Delivery Group,THE ACTIVE LEARNING TRUST LTD,4000241938,25000.00,Grants to educational establishments or not for profit organisations including other businesses
Department for Education,DEPARTMENT FOR EDUCATION,05/07/2016,Miscellaneous Expenditure,Teachers and Teaching Group,HM REVENUE & CUSTOMS,4000241939,84208.00,Pension scheme sanction charge for financial year 2015/16.
Department for Education,DEPARTMENT FOR EDUCATION,05/07/2016,Professional Services Consultancy and Contingent Labour,Human Resources Group,MINISTRY OF JUSTICE,4000241940,31860.00,"Fees / expenses of professionals such as auditors, accountants, lawyers, etc. engaged to provide advice or opinion on how to affect something"
Department for Education,DEPARTMENT FOR EDUCATION,05/07/2016,Professional Services Consultancy and Contingent Labour,Information Technology Group,METHODS CONSULTING LTD,4000241874,16643.40,Costs related to temporary workers
Department for Education,DEPARTMENT FOR EDUCATION,05/07/2016,Professional Services Consultancy and Contingent Labour,Information Technology Group,METHODS CONSULTING LTD,4000241874,384.44,Costs related to temporary workers
Department for Education,DEPARTMENT FOR EDUCATION,05/07/2016,Professional Services Consultancy and Contingent Labour,Information Technology Group,METHODS CONSULTING LTD,4000241874,1096.20,Costs related to temporary workers
Department for Education,DEPARTMENT FOR EDUCATION,05/07/2016,Professional Services Consultancy and Contingent Labour,Information Technology Group,METHODS PROFESSIONAL SERVICES LTD,4000241903,12197.40,Costs related to temporary workers
Department for Education,DEPARTMENT FOR EDUCATION,05/07/2016,Professional Services Consultancy and Contingent Labour,Information Technology Group,METHODS PROFESSIONAL SERVICES LTD,4000241903,21872.04,Costs related to temporary workers
Department for Education,DEPARTMENT FOR EDUCATION,05/07/2016,Facilities,Property Asset Management Group,HIGHWAYS ENGLAND COMPANY LTD,4000241867,38736.01,Rent
Department for Education,DEPARTMENT FOR EDUCATION,05/07/2016,Professional Services Other,Finance and Commercial Group,WILLIS GROUP,4000241865,34950.00,"Fees / expenses of professionals, for example to implement advice or changes"
Department for Education,DEPARTMENT FOR EDUCATION,06/07/2016,Facilities,Property Asset Management Group,BABCOCK CIVIL INFRASTRUCTURE LTD,4000242020,83171.12,"Building maintenance and repair, including repainting, replacing flooring, etc."
Department for Education,DEPARTMENT FOR EDUCATION,06/07/2016,Professional Services Consultancy and Contingent Labour,Information Technology Group,LIBERATA UK LTD,4000241995,55548.00,Costs related to temporary workers
Department for Education,DEPARTMENT FOR EDUCATION,06/07/2016,Grants,Free School Group,GUILDFORD UTC,4000241941,30000.00,Grants to educational establishments or not for profit organisations including other businesses
Department for Education,DEPARTMENT FOR EDUCATION,06/07/2016,Grants,Free School Group,RON DEARING UTC TRUST LTD,4000241945,30000.00,Grants to educational establishments or not for profit organisations including other businesses
Department for Education,DEPARTMENT FOR EDUCATION,06/07/2016,Grants,Free School Group,BROMLEY UNIVERSITY TECHNICAL COLLEGE,4000241953,30000.00,Grants to educational establishments or not for profit organisations including other businesses
Department for Education,STANDARDS AND TESTING AGENCY,06/07/2016,Programme costs,Test Operations Division,NATIONAL FOUNDATION FOR EDUCATIONAL RESEARCH,4000241955,96668.78,Funding to deliver policies (excluding consultancy) paid to third parties via a service delivery contract
Department for Education,DEPARTMENT FOR EDUCATION,06/07/2016,Grants,Free School Group,PETERBOROUGH UTC ACADEMY TRUST,4000241962,40635.00,Grants to educational establishments or not for profit organisations including other businesses
Department for Education,DEPARTMENT FOR EDUCATION,06/07/2016,Grants,Free School Group,LONDON DESIGN & ENGINEERING UTC,4000241971,40920.00,Grants to educational establishments or not for profit organisations including other businesses
Department for Education,DEPARTMENT FOR EDUCATION,06/07/2016,Grants,Academies Regional Delivery Group,TBAP TRUST,4000241976,42500.00,Grants to educational establishments or not for profit organisations including other businesses
Department for Education,DEPARTMENT FOR EDUCATION,06/07/2016,Grants,Free School Group,STOKE DAMEREL COMMUNITY COLLEGE,4000241992,30000.00,Grants to educational establishments or not for profit organisations including other businesses
Department for Education,DEPARTMENT FOR EDUCATION,06/07/2016,Grants,Academies Regional Delivery Group,GRIFFIN SCHOOLS TRUST,4000241994,50000.00,Grants to educational establishments or not for profit organisations including other businesses
Department for Education,DEPARTMENT FOR EDUCATION,06/07/2016,Programme costs,Adoption and Children in Care Division,THE SHARE FOUNDATION,4000241996,69906.00,Funding to deliver policies (excluding consultancy) paid to third parties via a service delivery contract
Department for Education,STANDARDS AND TESTING AGENCY,06/07/2016,Professional Services Consultancy and Contingent Labour,Standards and Testing Agency Admin,EVERSHEDS LLP,4000242024,25023.00,"Advisory services including fees, travel and expenses"
Department for Education,DEPARTMENT FOR EDUCATION,06/07/2016,Professional Services Consultancy and Contingent Labour,Information Technology Group,LOCKHEED MARTIN,4000242030,118814.61,"Fees / expenses of professionals such as auditors, accountants, lawyers, etc. engaged to provide advice or opinion on how to affect something"
Department for Education,DEPARTMENT FOR EDUCATION,06/07/2016,Grants,Free School Group,North East Futures UTC,4000242032,30000.00,Grants to educational establishments or not for profit organisations including other businesses
Department for Education,DEPARTMENT FOR EDUCATION,06/07/2016,Miscellaneous Expenditure,Children's Services Special Educational Needs Group,HMCTS HM COURTS & TRIBUNALS SERVICE,4000242033,34340.00,Tribunals and trials service fees
Department for Education,DEPARTMENT FOR EDUCATION,06/07/2016,Miscellaneous Expenditure,Early Years Group,HMCTS HM COURTS & TRIBUNALS SERVICE,4000242033,47064.00,Tribunals and trials service fees
Department for Education,DEPARTMENT FOR EDUCATION,06/07/2016,Professional Services Consultancy and Contingent Labour,Information Technology Group,METHODS PROFESSIONAL SERVICES LTD,4000242025,66301.93,Costs related to temporary workers
Department for Education,DEPARTMENT FOR EDUCATION,06/07/2016,Professional Services Consultancy and Contingent Labour,Information Technology Group,METHODS PROFESSIONAL SERVICES LTD,4000242025,25200.00,Costs related to temporary workers
Department for Education,DEPARTMENT FOR EDUCATION,06/07/2016,ICT,Information Technology Group,LIBERATA UK LTD,4000241995,52878.00,ICT Services
Department for Education,DEPARTMENT FOR EDUCATION,06/07/2016,ICT,Information Technology Group,LOCKHEED MARTIN,4000242030,15597.76,ICT Services
Department for Education,DEPARTMENT FOR EDUCATION,06/07/2016,Professional Services Other,Strategic Analysis and Research Group,RM EDUCATION,4000242001,109465.00,Research and evaluation activities
Department for Education,DEPARTMENT FOR EDUCATION,06/07/2016,Professional Services Other,Early Years Group,TNS UK LTD,4000241982,345966.00,Research and evaluation activities
Department for Education,DEPARTMENT FOR EDUCATION,06/07/2016,ICT,Information Technology Group,ZAIZI LTD,4000241946,82236.00,ICT Services
Department for Education,DEPARTMENT FOR EDUCATION,06/07/2016,ICT,Information Technology Group,ZAIZI LTD,4000241946,1728.00,ICT Services
Department for Education,DEPARTMENT FOR EDUCATION,06/07/2016,Miscellaneous Expenditure,Finance and Commercial Group,N/A � Risk Protection Arrangement (RPA) member,005921-001114-RC-01,70000.00,Property claim paid out to an academy trust by Gallagher Bassett on behalf of the Department as part of the Department's Risk Protection Arrangement (RPA).
Department for Education,DEPARTMENT FOR EDUCATION,07/07/2016,Professional Services Consultancy and Contingent Labour,Information Technology Group,CADENCE PARTNERSHIP LLP,4000242138,72728.82,Costs related to temporary workers
Department for Education,DEPARTMENT FOR EDUCATION,07/07/2016,Professional Services Consultancy and Contingent Labour,Information Technology Group,CADENCE PARTNERSHIP LLP,4000242138,32313.60,Costs related to temporary workers
Department for Education,DEPARTMENT FOR EDUCATION,07/07/2016,Grants,Free School Group,THE LEIGH ACADEMIES TRUST,4000242035,30000.00,Grants to educational establishments or not for profit organisations including other businesses
Department for Education,NATIONAL COLLEGE FOR TEACHING AND LEADERSHIP AGENCY,07/07/2016,Communications,Operations Directorate,INFERNO LTD,4000242037,2875.24,"Publicity, advertising, media advertising campaigns (excluding recruitment adverts)"
Department for Education,NATIONAL COLLEGE FOR TEACHING AND LEADERSHIP AGENCY,07/07/2016,Communications,Operations Directorate,INFERNO LTD,4000242037,27403.73,"Publicity, advertising, media advertising campaigns (excluding recruitment adverts)"
Department for Education,DEPARTMENT FOR EDUCATION,07/07/2016,Grants,Free School Group,ASPIRATIONS ACADEMIES TRUST,4000242041,150000.00,Grants to educational establishments or not for profit organisations including other businesses
Department for Education,DEPARTMENT FOR EDUCATION,07/07/2016,Grants,Free School Group,HARRIS FEDERATION,4000242043,89000.00,Grants to educational establishments or not for profit organisations including other businesses
Department for Education,DEPARTMENT FOR EDUCATION,07/07/2016,Grants,Free School Group,THE CHERWELL SCHOOL TS ACCOUNT,4000242044,30000.00,Grants to educational establishments or not for profit organisations including other businesses
Department for Education,DEPARTMENT FOR EDUCATION,07/07/2016,Grants,Free School Group,THE LIPA SIXTH FORM COLLEGE,4000242046,25000.00,Grants to educational establishments or not for profit organisations including other businesses
Department for Education,DEPARTMENT FOR EDUCATION,07/07/2016,Grants,Academies Regional Delivery Group,TOLLBAR MULTI ACADEMY TRUST,4000242049,70000.00,Grants to educational establishments or not for profit organisations including other businesses
Department for Education,DEPARTMENT FOR EDUCATION,07/07/2016,Grants,Free School Group,ST CLEMENT DANES SCHOOL,4000242051,30000.00,Grants to educational establishments or not for profit organisations including other businesses
Department for Education,DEPARTMENT FOR EDUCATION,07/07/2016,Grants,Academies Regional Delivery Group,ST JOSEPH CATHOLIC PRIMARY SCHOOL,4000242056,25000.00,Grants to educational establishments or not for profit organisations including other businesses
Department for Education,DEPARTMENT FOR EDUCATION,07/07/2016,Grants,Academies Regional Delivery Group,ST JOHN THE EVANGELIST CATHOLIC PRIMARY SCHOOL,4000242058,25000.00,Grants to educational establishments or not for profit organisations including other businesses
Department for Education,DEPARTMENT FOR EDUCATION,07/07/2016,Grants,Academies Regional Delivery Group,ST WINEFRIDES CATHOLIC PRIMARY SCHOOL,4000242059,25000.00,Grants to educational establishments or not for profit organisations including other businesses
Department for Education,DEPARTMENT FOR EDUCATION,07/07/2016,Grants,Academies Regional Delivery Group,ST WALBURGAS CATHOLIC PRIMARY SCHOOL,4000242060,25000.00,Grants to educational establishments or not for profit organisations including other businesses
Department for Education,DEPARTMENT FOR EDUCATION,07/07/2016,Grants,Academies Regional Delivery Group,OUTWOOD GRANGE ACADEMIES TRUST,4000242062,80000.00,Grants to educational establishments or not for profit organisations including other businesses
Department for Education,DEPARTMENT FOR EDUCATION,07/07/2016,Grants,Free School Group,GREENWICH ACADEMY TRUST,4000242074,25000.00,Grants to educational establishments or not for profit organisations including other businesses
Department for Education,DEPARTMENT FOR EDUCATION,07/07/2016,Grants,Free School Group,WOODLAND ACADEMY TRUST,4000242079,66000.00,Grants to educational establishments or not for profit organisations including other businesses
Department for Education,DEPARTMENT FOR EDUCATION,07/07/2016,Grants,Free School Group,SOUTH GLOUCESTERSHIRE & STROUD ACADEMY TRUST,4000242081,90000.00,Grants to educational establishments or not for profit organisations including other businesses
Department for Education,DEPARTMENT FOR EDUCATION,07/07/2016,Grants,Free School Group,CALLYWITH COLLEGE TRUST,4000242083,75000.00,Grants to educational establishments or not for profit organisations including other businesses
Department for Education,DEPARTMENT FOR EDUCATION,07/07/2016,Grants,Free School Group,WREN ACADEMY,4000242086,30000.00,Grants to educational establishments or not for profit organisations including other businesses
Department for Education,DEPARTMENT FOR EDUCATION,07/07/2016,Grants,Free School Group,LIONHEART ACADEMIES TRUST,4000242090,50000.00,Grants to educational establishments or not for profit organisations including other businesses
Department for Education,DEPARTMENT FOR EDUCATION,07/07/2016,Grants,Free School Group,HABERDASHERS ASKES FEDERATION TRUST,4000242091,30000.00,Grants to educational establishments or not for profit organisations including other businesses
Department for Education,DEPARTMENT FOR EDUCATION,07/07/2016,Grants,Free School Group,FAIR ACCESS SCHOOLS TRUST,4000242092,66000.00,Grants to educational establishments or not for profit organisations including other businesses
Department for Education,DEPARTMENT FOR EDUCATION,07/07/2016,Grants,Free School Group,SHIRELAND HIGH TECH PRIMARY COLLEGIATE ACADEMY TRUST,4000242094,66000.00,Grants to educational establishments or not for profit organisations including other businesses
Department for Education,DEPARTMENT FOR EDUCATION,07/07/2016,Grants,Free School Group,TAUHEEDUL ISLAM BOYS HIGH SCHOOL,4000242095,90000.00,Grants to educational establishments or not for profit organisations including other businesses
Department for Education,DEPARTMENT FOR EDUCATION,07/07/2016,Grants,Free School Group,WALLINGTON COUNTY GRAMMER SCHOOL,4000242097,30000.00,Grants to educational establishments or not for profit organisations including other businesses
Department for Education,DEPARTMENT FOR EDUCATION,07/07/2016,Grants,Free School Group,CHILTERN LEARNING TRUST,4000242100,30000.00,Grants to educational establishments or not for profit organisations including other businesses
Department for Education,DEPARTMENT FOR EDUCATION,07/07/2016,Grants,Free School Group,GOSFORTH FEDERATED ACADEMIES LTD,4000242101,90000.00,Grants to educational establishments or not for profit organisations including other businesses
Department for Education,DEPARTMENT FOR EDUCATION,07/07/2016,Grants,Free School Group,THE LAURUS TRUST,4000242102,30000.00,Grants to educational establishments or not for profit organisations including other businesses
Department for Education,DEPARTMENT FOR EDUCATION,07/07/2016,Grants,Free School Group,NEW GENERATION SCHOOLS TRUST,4000242103,66000.00,Grants to educational establishments or not for profit organisations including other businesses
Department for Education,DEPARTMENT FOR EDUCATION,07/07/2016,Grants,Free School Group,GREEN SPRING EDUCATIONAL TRUST,4000242104,90000.00,Grants to educational establishments or not for profit organisations including other businesses
Department for Education,DEPARTMENT FOR EDUCATION,07/07/2016,Grants,Free School Group,YAVNEH COLLEGE,4000242109,44000.00,Grants to educational establishments or not for profit organisations including other businesses
Department for Education,DEPARTMENT FOR EDUCATION,07/07/2016,Programme costs,Early Years Group,MOTT MACDONALD LTD,4000242110,31950.00,Funding to deliver policies (excluding consultancy) paid to third parties via a service delivery contract
Department for Education,DEPARTMENT FOR EDUCATION,07/07/2016,Grants,Academies Regional Delivery Group,REACH4 ACADEMY TRUST,4000242114,140000.00,Grants to educational establishments or not for profit organisations including other businesses
Department for Education,DEPARTMENT FOR EDUCATION,07/07/2016,Grants,Academies Regional Delivery Group,HEATHFIELD ACADEMY TRUST,4000242116,110000.00,Grants to educational establishments or not for profit organisations including other businesses
Department for Education,DEPARTMENT FOR EDUCATION,07/07/2016,Grants,Free School Group,GIPSY HILL TRUST,4000242124,30000.00,Grants to educational establishments or not for profit organisations including other businesses
Department for Education,DEPARTMENT FOR EDUCATION,07/07/2016,Grants,Free School Group,HARPENDEN SECONDARY EDUCATION TRUST,4000242125,30000.00,Grants to educational establishments or not for profit organisations including other businesses
Department for Education,DEPARTMENT FOR EDUCATION,07/07/2016,Grants,Free School Group,GLF Schools,4000242126,30000.00,Grants to educational establishments or not for profit organisations including other businesses
Department for Education,DEPARTMENT FOR EDUCATION,07/07/2016,Grants,Free School Group,SFTN SCHOOL,4000242127,30000.00,Grants to educational establishments or not for profit organisations including other businesses
Department for Education,DEPARTMENT FOR EDUCATION,07/07/2016,Grants,Free School Group,ST ANNES HIGH SCHOOL FOR GIRLS,4000242128,30000.00,Grants to educational establishments or not for profit organisations including other businesses
Department for Education,DEPARTMENT FOR EDUCATION,07/07/2016,Grants,Free School Group,DIXONS ACADEMY TRUST,4000242131,90000.00,Grants to educational establishments or not for profit organisations including other businesses
Department for Education,DEPARTMENT FOR EDUCATION,07/07/2016,ICT,Information Technology Group,COMPAREX UK LTD,4000242146,224220.18,ICT Software
Department for Education,DEPARTMENT FOR EDUCATION,07/07/2016,Grants,Free School Group,BURY ST EDMUNDS ACADEMY TRUST,4000242135,30000.00,Grants to educational establishments or not for profit organisations including other businesses
Department for Education,DEPARTMENT FOR EDUCATION,07/07/2016,Grants,Free School Group,UNIVERSITY OF BRIGHTON ACADEMIES TRUST,4000242139,30000.00,Grants to educational establishments or not for profit organisations including other businesses
Department for Education,DEPARTMENT FOR EDUCATION,07/07/2016,Grants,Free School Group,PIPER HILL SPECIALIST SUPPORT SCHOOL,4000242140,44000.00,Grants to educational establishments or not for profit organisations including other businesses
Department for Education,DEPARTMENT FOR EDUCATION,07/07/2016,Grants,Free School Group,THE RUNNYMEDE SCHOOL,4000242142,30000.00,Grants to educational establishments or not for profit organisations including other businesses
Department for Education,DEPARTMENT FOR EDUCATION,07/07/2016,Grants,Free School Group,HAMPTON ACADEMIES TRUST,4000242143,30000.00,Grants to educational establishments or not for profit organisations including other businesses
Department for Education,DEPARTMENT FOR EDUCATION,07/07/2016,Grants,Free School Group,GREENSHAW LEARNING TRUST,4000242144,60000.00,Grants to educational establishments or not for profit organisations including other businesses
Department for Education,DEPARTMENT FOR EDUCATION,07/07/2016,Grants,Free School Group,GEMS LEARNING TRUST,4000242147,29000.00,Grants to educational establishments or not for profit organisations including other businesses
Department for Education,DEPARTMENT FOR EDUCATION,07/07/2016,Grants,Free School Group,KNOWLEDGE SCHOOL TRUST,4000242149,60000.00,Grants to educational establishments or not for profit organisations including other businesses
Department for Education,DEPARTMENT FOR EDUCATION,07/07/2016,Grants,Free School Group,THE PARTNERSHIP LEARNING TRUST,4000242150,30000.00,Grants to educational establishments or not for profit organisations including other businesses
Department for Education,DEPARTMENT FOR EDUCATION,07/07/2016,Grants,Free School Group,REACH 2 ESSEX ACADEMY TRUST,4000242153,44000.00,Grants to educational establishments or not for profit organisations including other businesses
Department for Education,DEPARTMENT FOR EDUCATION,07/07/2016,Grants,Free School Group,CATCH22 MULTI ACADEMIES TRUST LTD,4000242154,60000.00,Grants to educational establishments or not for profit organisations including other businesses
Department for Education,DEPARTMENT FOR EDUCATION,07/07/2016,Grants,Free School Group,EALING FIELDS ACADEMY TRUST,4000242158,38000.00,Grants to educational establishments or not for profit organisations including other businesses
Department for Education,DEPARTMENT FOR EDUCATION,07/07/2016,Professional Services Consultancy and Contingent Labour,Information Technology Group,METHODS PROFESSIONAL SERVICES LTD,4000242082,33528.00,Costs related to temporary workers
Department for Education,STANDARDS AND TESTING AGENCY,07/07/2016,ICT,Test Operations Division,THE STATIONERY OFFICE LTD,4000242134,48812.50,ICT Services - hardware maintenance and support
Department for Education,DEPARTMENT FOR EDUCATION,08/07/2016,Grants,"Children's Services, Equalities and Communication Safeguarding Group",OFFICE OF THE CHILDRENS COMMISSIONER,2100070,193032.55,Current grants paid to organisations including arms length bodies and educational establishments
Department for Education,DEPARTMENT FOR EDUCATION,08/07/2016,Professional Services Consultancy and Contingent Labour,Information Technology Group,DELL CORPORATION LTD,4000242182,70531.77,Costs related to temporary workers
Department for Education,NATIONAL COLLEGE FOR TEACHING AND LEADERSHIP AGENCY,08/07/2016,Professional Services Other,Operations Directorate,CARAT,4000242216,18368.24,Research and evaluation activities
Department for Education,DEPARTMENT FOR EDUCATION,08/07/2016,Grants,"Children's Services, Equalities and Communication Safeguarding Group",UNIVERSITY OF KENT,4000242162,51408.54,Grants to educational establishments or not for profit organisations including other businesses
Department for Education,DEPARTMENT FOR EDUCATION,08/07/2016,Grants,Vocational Qualifications Division,TYNE METROPOLITAN COLLEGE,4000242202,40297.80,Grants to educational establishments or not for profit organisations including other businesses
Department for Education,NATIONAL COLLEGE FOR TEACHING AND LEADERSHIP AGENCY,08/07/2016,Programme costs,Delivery Directorate,EDUCATION DEVELOPMENT TRUST,4000242204,34505.81,Funding to deliver policies (excluding consultancy) paid to third parties via a service delivery contract
Department for Education,DEPARTMENT FOR EDUCATION,08/07/2016,Grants,Children's Services Strategy Group,FAMILY LIVES,4000242209,38792.82,Grants to educational establishments or not for profit organisations including other businesses
Department for Education,DEPARTMENT FOR EDUCATION,08/07/2016,Grants,Adoption and Children in Care Division,ADOPTION UK,4000242211,26000.00,Grants to educational establishments or not for profit organisations including other businesses
Department for Education,NATIONAL COLLEGE FOR TEACHING AND LEADERSHIP AGENCY,08/07/2016,Communications,Operations Directorate,CARAT,4000242216,47743.09,Marketing services
Department for Education,DEPARTMENT FOR EDUCATION,08/07/2016,Programme costs,Teachers and Teaching Group,CAPITA LIFE & PENSIONS SERVICES LTD,4000242232,1012281.65,Contract payment to deliver the administration of the Teachers' Pension Scheme.
Department for Education,DEPARTMENT FOR EDUCATION,08/07/2016,Grants,Adoption and Children in Care Division,AFTER ADOPTION,4000242233,43606.60,Grants to educational establishments or not for profit organisations including other businesses
Department for Education,STANDARDS AND TESTING AGENCY,08/07/2016,Office Solutions,Test Operations Division,PARCELFORCE WORLDWIDE,4000242235,449465.12,Post and courier services
Department for Education,DEPARTMENT FOR EDUCATION,08/07/2016,Grants,Children's Services Special Educational Needs Group,YOUNG MINDS,4000242238,40000.00,Grants to educational establishments or not for profit organisations including other businesses
Department for Education,DEPARTMENT FOR EDUCATION,08/07/2016,Grants,Early Years Group,NATIONAL DAY NURSERIES ASSOCIATION,4000242239,50489.89,Grants to educational establishments or not for profit organisations including other businesses
Department for Education,DEPARTMENT FOR EDUCATION,11/07/2016,Programme costs,"Assessment, Curriculum and General Qualifications Group",MATHEMATICS IN EDUCATION & INDUSTRY,4000242244,437000.00,Funding to deliver policies (excluding consultancy) paid to third parties via a service delivery contract
Department for Education,DEPARTMENT FOR EDUCATION,11/07/2016,Grants,Academies Regional Delivery Group,ALLERTON BYWATER PRIMARY SCHOOL,4000242245,25000.00,Grants to educational establishments or not for profit organisations including other businesses
Department for Education,DEPARTMENT FOR EDUCATION,11/07/2016,Programme costs,Adoption and Children in Care Division,BARNARDO'S,4000242257,101864.84,Funding to deliver policies (excluding consultancy) paid to third parties via a service delivery contract
Department for Education,DEPARTMENT FOR EDUCATION,11/07/2016,Grants,Academies Regional Delivery Group,CAMBRIDGE MERIDIAN ACADEMIES TRUST,4000242268,25000.00,Grants to educational establishments or not for profit organisations including other businesses
Department for Education,DEPARTMENT FOR EDUCATION,11/07/2016,Grants,Academies Regional Delivery Group,BROOKFIELD PRIMARY SCHOOL,4000242283,25000.00,Grants to educational establishments or not for profit organisations including other businesses
Department for Education,DEPARTMENT FOR EDUCATION,11/07/2016,Grants,Academies Regional Delivery Group,CHEAM FIELDS PRIMARY SCHOOL,4000242284,25000.00,Grants to educational establishments or not for profit organisations including other businesses
Department for Education,DEPARTMENT FOR EDUCATION,11/07/2016,Grants,Academies Regional Delivery Group,ST HERBERTS COFE VA PRIMARY & NURSERY SCHOOL,4000242285,25000.00,Grants to educational establishments or not for profit organisations including other businesses
Department for Education,DEPARTMENT FOR EDUCATION,11/07/2016,Grants,Academies Regional Delivery Group,WEST SOMERSET ACADEMIES TRUST SPONSORS,4000242286,70000.00,Grants to educational establishments or not for profit organisations including other businesses
Department for Education,DEPARTMENT FOR EDUCATION,11/07/2016,Grants,Academies Regional Delivery Group,HIGHER BEBINGTON JUNIOR SCHOOL,4000242291,25000.00,Grants to educational establishments or not for profit organisations including other businesses
Department for Education,DEPARTMENT FOR EDUCATION,11/07/2016,Grants,Academies Regional Delivery Group,KIPPAX NORTH PRIMARY SCHOOL,4000242292,25000.00,Grants to educational establishments or not for profit organisations including other businesses
Department for Education,DEPARTMENT FOR EDUCATION,11/07/2016,Grants,Academies Regional Delivery Group,KIPPAX GREENFIELD PRIMARY SCHOOL,4000242293,25000.00,Grants to educational establishments or not for profit organisations including other businesses
Department for Education,DEPARTMENT FOR EDUCATION,11/07/2016,Grants,Academies Regional Delivery Group,GLASCOTE ACADEMY,4000242300,25000.00,Grants to educational establishments or not for profit organisations including other businesses
Department for Education,STANDARDS AND TESTING AGENCY,11/07/2016,Programme costs,Test Development Division,NFER,4000242301,68907.00,Funding to deliver policies (excluding consultancy) paid to third parties via a service delivery contract
Department for Education,STANDARDS AND TESTING AGENCY,11/07/2016,Programme costs,Test Development Division,NFER,4000242301,80204.32,Funding to deliver policies (excluding consultancy) paid to third parties via a service delivery contract
Department for Education,DEPARTMENT FOR EDUCATION,11/07/2016,Grants,Academies Regional Delivery Group,FAIRFAX MULTI ACADEMY TRUST,4000242307,80000.00,Grants to educational establishments or not for profit organisations including other businesses
Department for Education,DEPARTMENT FOR EDUCATION,11/07/2016,Grants,Academies Regional Delivery Group,SHREWSBURY ACADEMIES TRUST,4000242320,25000.00,Grants to educational establishments or not for profit organisations including other businesses
Department for Education,DEPARTMENT FOR EDUCATION,11/07/2016,Grants,Academies Regional Delivery Group,HARRIS FEDERATION,4000242322,32000.00,Grants to educational establishments or not for profit organisations including other businesses
Department for Education,DEPARTMENT FOR EDUCATION,11/07/2016,Programme costs,Adoption and Children in Care Division,CORAM,4000242323,77116.50,Funding to deliver policies (excluding consultancy) paid to third parties via a service delivery contract
Department for Education,DEPARTMENT FOR EDUCATION,11/07/2016,ICT,Information Technology Group,REDWEB,4000242272,86367.00,ICT Services
Department for Education,DEPARTMENT FOR EDUCATION,11/07/2016,Miscellaneous Expenditure,Finance and Commercial Group,N/A � Risk Protection Arrangement (RPA) member,005921-000349-RB-01,34389.82,Property claim paid out to an academy trust by Gallagher Bassett on behalf of the Department as part of the Department's Risk Protection Arrangement (RPA).
Department for Education,DEPARTMENT FOR EDUCATION,11/07/2016,Miscellaneous Expenditure,Finance and Commercial Group,N/A � Risk Protection Arrangement (RPA) member,005921-000620-RB-01,150000.00,Property claim paid out to an academy trust by Gallagher Bassett on behalf of the Department as part of the Department's Risk Protection Arrangement (RPA).
Department for Education,DEPARTMENT FOR EDUCATION,11/07/2016,Miscellaneous Expenditure,Finance and Commercial Group,N/A � Risk Protection Arrangement (RPA) member,005921-000620-RC-01,125000.00,Property claim paid out to an academy trust by Gallagher Bassett on behalf of the Department as part of the Department's Risk Protection Arrangement (RPA).
Department for Education,DEPARTMENT FOR EDUCATION,11/07/2016,Miscellaneous Expenditure,Finance and Commercial Group,N/A � Risk Protection Arrangement (RPA) member,005921-000620-TE-01,100000.00,Property claim paid out to an academy trust by Gallagher Bassett on behalf of the Department as part of the Department's Risk Protection Arrangement (RPA).
Department for Education,DEPARTMENT FOR EDUCATION,12/07/2016,ICT,Information Technology Group,EDUSERV,4000242370,348206.80,ICT Services
Department for Education,DEPARTMENT FOR EDUCATION,12/07/2016,ICT,Information Technology Group,EDUSERV,4000242370,135000.00,ICT Services
Department for Education,DEPARTMENT FOR EDUCATION,12/07/2016,Grants,Adoption and Children in Care Division,THE SHARE FOUNDATION 3RD PARTY TRUST,4000242341,39600.00,Grants to educational establishments or not for profit organisations including other businesses
Department for Education,DEPARTMENT FOR EDUCATION,12/07/2016,Energy and Fuels,Property Asset Management Group,EDF ENERGY,4000242336,29517.06,Electricity supply
Department for Education,DEPARTMENT FOR EDUCATION,12/07/2016,Professional Services Other,Finance and Commercial Group,SHARED SERVICES CONNECTED LTD,4000242348,220541.00,Shared corporate accounting services
Department for Education,DEPARTMENT FOR EDUCATION,12/07/2016,Professional Services Other,Finance and Commercial Group,SHARED SERVICES CONNECTED LTD,4000242348,3257.66,Shared corporate payroll services
Department for Education,DEPARTMENT FOR EDUCATION,12/07/2016,Miscellaneous Expenditure,Finance and Commercial Group,N/A � Risk Protection Arrangement (RPA) member,005921-000601-LL-01,27007.73,Property claim paid out to an academy trust by Gallagher Bassett on behalf of the Department as part of the Department's Risk Protection Arrangement (RPA).
Department for Education,DEPARTMENT FOR EDUCATION,13/07/2016,Professional Services Other,Adoption and Children in Care Division,CAPGEMINI UK PLC,4000242554,30000.00,"Fees / expenses of professionals, for example to implement advice or changes"
Department for Education,DEPARTMENT FOR EDUCATION,13/07/2016,Facilities,Property Asset Management Group,CAPITA PROPERTY & INFRASTRUCTURE LTD,4000242537,157658.67,"Building maintenance and repair, including repainting, replacing flooring, etc."
Department for Education,DEPARTMENT FOR EDUCATION,13/07/2016,Grants,Children's Services Strategy Group,CORAM CLC,4000242385,25504.08,Grants to educational establishments or not for profit organisations including other businesses
Department for Education,DEPARTMENT FOR EDUCATION,13/07/2016,Grants,Academies Regional Delivery Group,HALEWOOD COFE PRIMARY SCHOOL,4000242386,25000.00,Grants to educational establishments or not for profit organisations including other businesses
Department for Education,DEPARTMENT FOR EDUCATION,13/07/2016,Grants,Adoption and Children in Care Division,LEEDS CITY COUNCIL,4000242392,27000.00,Grants to local authorities / other establishments within aggregate external funding or aggregate exchequer grant
Department for Education,DEPARTMENT FOR EDUCATION,13/07/2016,Grants,System Reform Group,LEEDS CITY COUNCIL,4000242392,9800.00,Grants to local authorities / other establishments within aggregate external funding or aggregate exchequer grant
Department for Education,DEPARTMENT FOR EDUCATION,13/07/2016,Grants,Adoption and Children in Care Division,WALSALL MBC,4000242393,124000.00,Grants to local authorities / other establishments within aggregate external funding or aggregate exchequer grant
Department for Education,DEPARTMENT FOR EDUCATION,13/07/2016,Grants,System Reform Group,WALSALL MBC,4000242393,1858.00,Grants to local authorities / other establishments within aggregate external funding or aggregate exchequer grant
Department for Education,DEPARTMENT FOR EDUCATION,13/07/2016,Grants,System Reform Group,LEICESTERSHIRE COUNTY COUNCIL,4000242397,29592.00,Grants to local authorities / other establishments within aggregate external funding or aggregate exchequer grant
Department for Education,DEPARTMENT FOR EDUCATION,13/07/2016,Grants,Adoption and Children in Care Division,SOUTHAMPTON CITY COUNCIL,4000242398,70000.00,Grants to local authorities / other establishments within aggregate external funding or aggregate exchequer grant
Department for Education,DEPARTMENT FOR EDUCATION,13/07/2016,Grants,System Reform Group,SOUTHAMPTON CITY COUNCIL,4000242398,2942.00,Grants to local authorities / other establishments within aggregate external funding or aggregate exchequer grant
Department for Education,DEPARTMENT FOR EDUCATION,13/07/2016,Grants,System Reform Group,HAMPSHIRE COUNTY COUNCIL,4000242400,33458.00,Grants to local authorities / other establishments within aggregate external funding or aggregate exchequer grant
Department for Education,DEPARTMENT FOR EDUCATION,13/07/2016,Grants,Adoption and Children in Care Division,LONDON BOROUGH OF HACKNEY,4000242402,108000.00,Grants to local authorities / other establishments within aggregate external funding or aggregate exchequer grant
Department for Education,DEPARTMENT FOR EDUCATION,13/07/2016,Grants,System Reform Group,LONDON BOROUGH OF HACKNEY,4000242402,133.00,Grants to local authorities / other establishments within aggregate external funding or aggregate exchequer grant
Department for Education,DEPARTMENT FOR EDUCATION,13/07/2016,Grants,"Children's Services, Equalities and Communication Safeguarding Group",COUNCIL FOR DISABLED CHILDREN,4000242404,205535.65,Grants to educational establishments or not for profit organisations including other businesses
Department for Education,DEPARTMENT FOR EDUCATION,13/07/2016,Grants,Adoption and Children in Care Division,LONDON BOROUGH OF GREENWICH,4000242410,60000.00,Grants to local authorities / other establishments within aggregate external funding or aggregate exchequer grant
Department for Education,DEPARTMENT FOR EDUCATION,13/07/2016,Grants,System Reform Group,LONDON BOROUGH OF GREENWICH,4000242410,233.00,Grants to local authorities / other establishments within aggregate external funding or aggregate exchequer grant
Department for Education,DEPARTMENT FOR EDUCATION,13/07/2016,Grants,Adoption and Children in Care Division,BRIGHTON & HOVE CITY COUNCIL,4000242411,86000.00,Grants to local authorities / other establishments within aggregate external funding or aggregate exchequer grant
Department for Education,DEPARTMENT FOR EDUCATION,13/07/2016,Grants,System Reform Group,BRIGHTON & HOVE CITY COUNCIL,4000242411,4300.00,Grants to local authorities / other establishments within aggregate external funding or aggregate exchequer grant
Department for Education,DEPARTMENT FOR EDUCATION,13/07/2016,Grants,Adoption and Children in Care Division,DURHAM COUNTY COUNCIL,4000242413,27000.00,Grants to local authorities / other establishments within aggregate external funding or aggregate exchequer grant
Department for Education,DEPARTMENT FOR EDUCATION,13/07/2016,Grants,System Reform Group,DURHAM COUNTY COUNCIL,4000242413,81800.00,Grants to local authorities / other establishments within aggregate external funding or aggregate exchequer grant
Department for Education,DEPARTMENT FOR EDUCATION,13/07/2016,Grants,Adoption and Children in Care Division,BOURNEMOUTH BOROUGH COUNCIL,4000242414,81000.00,Grants to local authorities / other establishments within aggregate external funding or aggregate exchequer grant
Department for Education,DEPARTMENT FOR EDUCATION,13/07/2016,Grants,System Reform Group,BOURNEMOUTH BOROUGH COUNCIL,4000242414,2633.00,Grants to local authorities / other establishments within aggregate external funding or aggregate exchequer grant
Department for Education,DEPARTMENT FOR EDUCATION,13/07/2016,Grants,Adoption and Children in Care Division,HERTFORDSHIRE COUNTY COUNCIL,4000242417,27000.00,Grants to local authorities / other establishments within aggregate external funding or aggregate exchequer grant
Department for Education,DEPARTMENT FOR EDUCATION,13/07/2016,Grants,System Reform Group,HERTFORDSHIRE COUNTY COUNCIL,4000242417,12167.00,Grants to local authorities / other establishments within aggregate external funding or aggregate exchequer grant
Department for Education,DEPARTMENT FOR EDUCATION,13/07/2016,Grants,Adoption and Children in Care Division,EAST SUSSEX COUNTY COUNCIL,4000242420,27000.00,Grants to local authorities / other establishments within aggregate external funding or aggregate exchequer grant
Department for Education,DEPARTMENT FOR EDUCATION,13/07/2016,Grants,System Reform Group,EAST SUSSEX COUNTY COUNCIL,4000242420,40608.00,Grants to local authorities / other establishments within aggregate external funding or aggregate exchequer grant
Department for Education,DEPARTMENT FOR EDUCATION,13/07/2016,Grants,Adoption and Children in Care Division,DORSET COUNTY COUNCIL,4000242426,60000.00,Grants to local authorities / other establishments within aggregate external funding or aggregate exchequer grant
Department for Education,DEPARTMENT FOR EDUCATION,13/07/2016,Grants,System Reform Group,DORSET COUNTY COUNCIL,4000242426,31783.00,Grants to local authorities / other establishments within aggregate external funding or aggregate exchequer grant
Department for Education,DEPARTMENT FOR EDUCATION,13/07/2016,Grants,Adoption and Children in Care Division,DERBY CITY COUNCIL,4000242427,27000.00,Grants to local authorities / other establishments within aggregate external funding or aggregate exchequer grant
Department for Education,DEPARTMENT FOR EDUCATION,13/07/2016,Grants,System Reform Group,DERBY CITY COUNCIL,4000242427,6900.00,Grants to local authorities / other establishments within aggregate external funding or aggregate exchequer grant
Department for Education,DEPARTMENT FOR EDUCATION,13/07/2016,Grants,Adoption and Children in Care Division,DERBYSHIRE COUNTY COUNCIL,4000242428,60000.00,Grants to local authorities / other establishments within aggregate external funding or aggregate exchequer grant
Department for Education,DEPARTMENT FOR EDUCATION,13/07/2016,Grants,System Reform Group,DERBYSHIRE COUNTY COUNCIL,4000242428,66250.00,Grants to local authorities / other establishments within aggregate external funding or aggregate exchequer grant
Department for Education,DEPARTMENT FOR EDUCATION,13/07/2016,Grants,Academies Regional Delivery Group,ST CLERES COOPERATIVE ACADEMY TRUST,4000242434,73240.00,Grants to educational establishments or not for profit organisations including other businesses
Department for Education,DEPARTMENT FOR EDUCATION,13/07/2016,Grants,Adoption and Children in Care Division,CAMBRIDGE EDUCATION,4000242447,1500000.00,Grants to educational establishments or not for profit organisations including other businesses
Department for Education,DEPARTMENT FOR EDUCATION,13/07/2016,Grants,Government Equalities Office,NATIONAL CHILDRENS BUREAU,4000242452,2273.00,Grants to educational establishments or not for profit organisations including other businesses
Department for Education,DEPARTMENT FOR EDUCATION,13/07/2016,Programme costs,Children's Services Special Educational Needs Group,NATIONAL CHILDRENS BUREAU,4000242452,3947392.80,Funding to deliver policies (excluding consultancy) paid to third parties via a service delivery contract
Department for Education,DEPARTMENT FOR EDUCATION,13/07/2016,Grants,System Reform Group,NORTH YORKSHIRE COUNTY COUNCIL,4000242456,26233.00,Grants to local authorities / other establishments within aggregate external funding or aggregate exchequer grant
Department for Education,DEPARTMENT FOR EDUCATION,13/07/2016,Grants,Adoption and Children in Care Division,NEWCASTLE CITY COUNCIL,4000242463,27000.00,Grants to local authorities / other establishments within aggregate external funding or aggregate exchequer grant
Department for Education,DEPARTMENT FOR EDUCATION,13/07/2016,Grants,System Reform Group,NEWCASTLE CITY COUNCIL,4000242463,5500.00,Grants to local authorities / other establishments within aggregate external funding or aggregate exchequer grant
Department for Education,DEPARTMENT FOR EDUCATION,13/07/2016,Grants,Adoption and Children in Care Division,GATESHEAD MBC,4000242464,27000.00,Grants to local authorities / other establishments within aggregate external funding or aggregate exchequer grant
Department for Education,DEPARTMENT FOR EDUCATION,13/07/2016,Grants,System Reform Group,GATESHEAD MBC,4000242464,2867.00,Grants to local authorities / other establishments within aggregate external funding or aggregate exchequer grant
Department for Education,DEPARTMENT FOR EDUCATION,13/07/2016,Grants,Adoption and Children in Care Division,WAKEFIELD MDC,4000242465,33445.00,Grants to local authorities / other establishments within aggregate external funding or aggregate exchequer grant
Department for Education,DEPARTMENT FOR EDUCATION,13/07/2016,Grants,System Reform Group,WAKEFIELD MDC,4000242465,16058.00,Grants to local authorities / other establishments within aggregate external funding or aggregate exchequer grant
Department for Education,NATIONAL COLLEGE FOR TEACHING AND LEADERSHIP AGENCY,13/07/2016,Grants,Operations Directorate,BIS,4000242467,26499.00,Current grant funding to other government departments
Department for Education,DEPARTMENT FOR EDUCATION,13/07/2016,Grants,System Reform Group,NORFOLK COUNTY COUNCIL,4000242469,58008.00,Grants to local authorities / other establishments within aggregate external funding or aggregate exchequer grant
Department for Education,DEPARTMENT FOR EDUCATION,13/07/2016,Grants,System Reform Group,SOMERSET COUNTY COUNCIL,4000242471,29842.00,Grants to local authorities / other establishments within aggregate external funding or aggregate exchequer grant
Department for Education,DEPARTMENT FOR EDUCATION,13/07/2016,Grants,Adoption and Children in Care Division,NORTH EAST LINCOLNSHIRE COUNCIL,4000242472,43000.00,Grants to local authorities / other establishments within aggregate external funding or aggregate exchequer grant
Department for Education,DEPARTMENT FOR EDUCATION,13/07/2016,Grants,System Reform Group,NORTH EAST LINCOLNSHIRE COUNCIL,4000242472,1008.00,Grants to local authorities / other establishments within aggregate external funding or aggregate exchequer grant
Department for Education,DEPARTMENT FOR EDUCATION,13/07/2016,Grants,Adoption and Children in Care Division,CITY OF BRADFORD METROPOLITAN DISTRICT COUNCIL,4000242483,54000.00,Grants to local authorities / other establishments within aggregate external funding or aggregate exchequer grant
Department for Education,DEPARTMENT FOR EDUCATION,13/07/2016,Grants,System Reform Group,CITY OF BRADFORD METROPOLITAN DISTRICT COUNCIL,4000242483,8683.00,Grants to local authorities / other establishments within aggregate external funding or aggregate exchequer grant
Department for Education,DEPARTMENT FOR EDUCATION,13/07/2016,Grants,Adoption and Children in Care Division,BARNSLEY MBC,4000242484,70000.00,Grants to local authorities / other establishments within aggregate external funding or aggregate exchequer grant
Department for Education,DEPARTMENT FOR EDUCATION,13/07/2016,Grants,System Reform Group,BARNSLEY MBC,4000242484,8367.00,Grants to local authorities / other establishments within aggregate external funding or aggregate exchequer grant
Department for Education,DEPARTMENT FOR EDUCATION,13/07/2016,Grants,Adoption and Children in Care Division,WIGAN MBC,4000242485,54000.00,Grants to local authorities / other establishments within aggregate external funding or aggregate exchequer grant
Department for Education,DEPARTMENT FOR EDUCATION,13/07/2016,Grants,System Reform Group,WIGAN MBC,4000242485,5192.00,Grants to local authorities / other establishments within aggregate external funding or aggregate exchequer grant
Department for Education,DEPARTMENT FOR EDUCATION,13/07/2016,Grants,Adoption and Children in Care Division,TAMESIDE MBC,4000242486,27000.00,Grants to local authorities / other establishments within aggregate external funding or aggregate exchequer grant
Department for Education,DEPARTMENT FOR EDUCATION,13/07/2016,Grants,System Reform Group,TAMESIDE MBC,4000242486,1508.00,Grants to local authorities / other establishments within aggregate external funding or aggregate exchequer grant
Department for Education,DEPARTMENT FOR EDUCATION,13/07/2016,Grants,Adoption and Children in Care Division,OXFORDSHIRE COUNTY COUNCIL,4000242487,43000.00,Grants to local authorities / other establishments within aggregate external funding or aggregate exchequer grant
Department for Education,DEPARTMENT FOR EDUCATION,13/07/2016,Grants,System Reform Group,OXFORDSHIRE COUNTY COUNCIL,4000242487,24883.00,Grants to local authorities / other establishments within aggregate external funding or aggregate exchequer grant
Department for Education,DEPARTMENT FOR EDUCATION,13/07/2016,Grants,Adoption and Children in Care Division,NORTHUMBERLAND COUNTY COUNCIL,4000242488,70000.00,Grants to local authorities / other establishments within aggregate external funding or aggregate exchequer grant
Department for Education,DEPARTMENT FOR EDUCATION,13/07/2016,Grants,System Reform Group,NORTHUMBERLAND COUNTY COUNCIL,4000242488,17992.00,Grants to local authorities / other establishments within aggregate external funding or aggregate exchequer grant
Department for Education,DEPARTMENT FOR EDUCATION,13/07/2016,Grants,Adoption and Children in Care Division,NORTHAMPTONSHIRE COUNTY COUNCIL,4000242489,86000.00,Grants to local authorities / other establishments within aggregate external funding or aggregate exchequer grant
Department for Education,DEPARTMENT FOR EDUCATION,13/07/2016,Grants,System Reform Group,NORTHAMPTONSHIRE COUNTY COUNCIL,4000242489,29933.00,Grants to local authorities / other establishments within aggregate external funding or aggregate exchequer grant
Department for Education,DEPARTMENT FOR EDUCATION,13/07/2016,Grants,System Reform Group,LINCOLNSHIRE COUNTY COUNCIL,4000242490,55150.00,Grants to local authorities / other establishments within aggregate external funding or aggregate exchequer grant
Department for Education,DEPARTMENT FOR EDUCATION,13/07/2016,Grants,Adoption and Children in Care Division,MIDDLESBROUGH COUNCIL,4000242493,43000.00,Grants to local authorities / other establishments within aggregate external funding or aggregate exchequer grant
Department for Education,DEPARTMENT FOR EDUCATION,13/07/2016,Grants,System Reform Group,MIDDLESBROUGH COUNCIL,4000242493,3492.00,Grants to local authorities / other establishments within aggregate external funding or aggregate exchequer grant
Department for Education,DEPARTMENT FOR EDUCATION,13/07/2016,Grants,Adoption and Children in Care Division,HARTLEPOOL BOROUGH COUNCIL,4000242494,43000.00,Grants to local authorities / other establishments within aggregate external funding or aggregate exchequer grant
Department for Education,DEPARTMENT FOR EDUCATION,13/07/2016,Grants,System Reform Group,HARTLEPOOL BOROUGH COUNCIL,4000242494,2867.00,Grants to local authorities / other establishments within aggregate external funding or aggregate exchequer grant
Department for Education,DEPARTMENT FOR EDUCATION,13/07/2016,Grants,Adoption and Children in Care Division,SOUTH GLOUCEST,4000242495,43000.00,Grants to local authorities / other establishments within aggregate external funding or aggregate exchequer grant
Department for Education,DEPARTMENT FOR EDUCATION,13/07/2016,Grants,System Reform Group,SOUTH GLOUCEST,4000242495,2250.00,Grants to local authorities / other establishments within aggregate external funding or aggregate exchequer grant
Department for Education,DEPARTMENT FOR EDUCATION,13/07/2016,Grants,Academies Regional Delivery Group,EGREMONT PRIMARY SCHOOL,4000242497,25000.00,Grants to educational establishments or not for profit organisations including other businesses
Department for Education,DEPARTMENT FOR EDUCATION,13/07/2016,Grants,Academies Regional Delivery Group,JAMES DIXON PRIMARY SCHOOL,4000242498,25000.00,Grants to educational establishments or not for profit organisations including other businesses
Department for Education,DEPARTMENT FOR EDUCATION,13/07/2016,Grants,Academies Regional Delivery Group,WHIXALL CE PRIMARY SCHOOL,4000242499,25000.00,Grants to educational establishments or not for profit organisations including other businesses
Department for Education,DEPARTMENT FOR EDUCATION,13/07/2016,Grants,Academies Regional Delivery Group,POULTON LANCELYN PRIMARY SCHOOL,4000242500,25000.00,Grants to educational establishments or not for profit organisations including other businesses
Department for Education,DEPARTMENT FOR EDUCATION,13/07/2016,Grants,Academies Regional Delivery Group,CHURCH DRIVE PRIMARY SCHOOL,4000242501,25000.00,Grants to educational establishments or not for profit organisations including other businesses
Department for Education,DEPARTMENT FOR EDUCATION,13/07/2016,Grants,Adoption and Children in Care Division,STOCKPORT MBC,4000242502,68000.00,Grants to local authorities / other establishments within aggregate external funding or aggregate exchequer grant
Department for Education,DEPARTMENT FOR EDUCATION,13/07/2016,Grants,System Reform Group,STOCKPORT MBC,4000242502,2442.00,Grants to local authorities / other establishments within aggregate external funding or aggregate exchequer grant
Department for Education,DEPARTMENT FOR EDUCATION,13/07/2016,Grants,Adoption and Children in Care Division,OLDHAM MBC,4000242505,183000.00,Grants to local authorities / other establishments within aggregate external funding or aggregate exchequer grant
Department for Education,DEPARTMENT FOR EDUCATION,13/07/2016,Grants,System Reform Group,OLDHAM MBC,4000242505,1900.00,Grants to local authorities / other establishments within aggregate external funding or aggregate exchequer grant
Department for Education,DEPARTMENT FOR EDUCATION,13/07/2016,Grants,Early Years Group,THE NATIONAL LITERACY TRUST,4000242506,88045.09,Grants to educational establishments or not for profit organisations including other businesses
Department for Education,DEPARTMENT FOR EDUCATION,13/07/2016,Grants,System Reform Group,GLOUCESTERSHIRE COUNTY COUNCIL,4000242507,35142.00,Grants to local authorities / other establishments within aggregate external funding or aggregate exchequer grant
Department for Education,DEPARTMENT FOR EDUCATION,13/07/2016,Grants,Adoption and Children in Care Division,CUMBRIA COUNTY COUNCIL,4000242508,51300.00,Grants to local authorities / other establishments within aggregate external funding or aggregate exchequer grant
Department for Education,DEPARTMENT FOR EDUCATION,13/07/2016,Grants,System Reform Group,CUMBRIA COUNTY COUNCIL,4000242508,19758.00,Grants to local authorities / other establishments within aggregate external funding or aggregate exchequer grant
Department for Education,DEPARTMENT FOR EDUCATION,13/07/2016,Grants,Adoption and Children in Care Division,CORNWALL COUNCIL,4000242509,27000.00,Grants to local authorities / other establishments within aggregate external funding or aggregate exchequer grant
Department for Education,DEPARTMENT FOR EDUCATION,13/07/2016,Grants,System Reform Group,CORNWALL COUNCIL,4000242509,42792.00,Grants to local authorities / other establishments within aggregate external funding or aggregate exchequer grant
Department for Education,DEPARTMENT FOR EDUCATION,13/07/2016,Grants,Adoption and Children in Care Division,CENTRAL BEDFORDSHIRE COUNCIL,4000242514,86000.00,Grants to local authorities / other establishments within aggregate external funding or aggregate exchequer grant
Department for Education,DEPARTMENT FOR EDUCATION,13/07/2016,Grants,System Reform Group,CENTRAL BEDFORDSHIRE COUNCIL,4000242514,13958.00,Grants to local authorities / other establishments within aggregate external funding or aggregate exchequer grant
Department for Education,DEPARTMENT FOR EDUCATION,13/07/2016,Grants,Adoption and Children in Care Division,MANCHESTER CITY COUNCIL,4000242521,184000.00,Grants to local authorities / other establishments within aggregate external funding or aggregate exchequer grant
Department for Education,DEPARTMENT FOR EDUCATION,13/07/2016,Grants,System Reform Group,MANCHESTER CITY COUNCIL,4000242521,4492.00,Grants to local authorities / other establishments within aggregate external funding or aggregate exchequer grant
Department for Education,DEPARTMENT FOR EDUCATION,13/07/2016,Grants,Adoption and Children in Care Division,SHROPSHIRE COUNCIL,4000242526,27000.00,Grants to local authorities / other establishments within aggregate external funding or aggregate exchequer grant
Department for Education,DEPARTMENT FOR EDUCATION,13/07/2016,Grants,System Reform Group,SHROPSHIRE COUNCIL,4000242526,15217.00,Grants to local authorities / other establishments within aggregate external funding or aggregate exchequer grant
Department for Education,DEPARTMENT FOR EDUCATION,13/07/2016,Grants,Adoption and Children in Care Division,COVENTRY CITY COUNCIL,4000242527,43000.00,Grants to local authorities / other establishments within aggregate external funding or aggregate exchequer grant
Department for Education,DEPARTMENT FOR EDUCATION,13/07/2016,Grants,System Reform Group,COVENTRY CITY COUNCIL,4000242527,4108.00,Grants to local authorities / other establishments within aggregate external funding or aggregate exchequer grant
Department for Education,DEPARTMENT FOR EDUCATION,13/07/2016,Grants,Adoption and Children in Care Division,NOTTINGHAMSHIRE COUNTY COUNCIL,4000242529,43000.00,Grants to local authorities / other establishments within aggregate external funding or aggregate exchequer grant
Department for Education,DEPARTMENT FOR EDUCATION,13/07/2016,Grants,System Reform Group,NOTTINGHAMSHIRE COUNTY COUNCIL,4000242529,32875.00,Grants to local authorities / other establishments within aggregate external funding or aggregate exchequer grant
Department for Education,DEPARTMENT FOR EDUCATION,13/07/2016,Grants,Academies Regional Delivery Group,UPTON JUNIOR SCHOOL,4000242539,25000.00,Grants to educational establishments or not for profit organisations including other businesses
Department for Education,DEPARTMENT FOR EDUCATION,13/07/2016,Grants,Adoption and Children in Care Division,SANDWELL MBC,4000242542,27000.00,Grants to local authorities / other establishments within aggregate external funding or aggregate exchequer grant
Department for Education,DEPARTMENT FOR EDUCATION,13/07/2016,Grants,System Reform Group,SANDWELL MBC,4000242542,2092.00,Grants to local authorities / other establishments within aggregate external funding or aggregate exchequer grant
Department for Education,DEPARTMENT FOR EDUCATION,13/07/2016,Grants,Adoption and Children in Care Division,BIRMINGHAM CITY COUNCIL,4000242544,54000.00,Grants to local authorities / other establishments within aggregate external funding or aggregate exchequer grant
Department for Education,DEPARTMENT FOR EDUCATION,13/07/2016,Grants,System Reform Group,BIRMINGHAM CITY COUNCIL,4000242544,9458.00,Grants to local authorities / other establishments within aggregate external funding or aggregate exchequer grant
Department for Education,DEPARTMENT FOR EDUCATION,13/07/2016,Grants,Adoption and Children in Care Division,BLACKPOOL BOROUGH COUNCIL,4000242546,43000.00,Grants to local authorities / other establishments within aggregate external funding or aggregate exchequer grant
Department for Education,DEPARTMENT FOR EDUCATION,13/07/2016,Grants,System Reform Group,BLACKPOOL BOROUGH COUNCIL,4000242546,1592.00,Grants to local authorities / other establishments within aggregate external funding or aggregate exchequer grant
Department for Education,DEPARTMENT FOR EDUCATION,13/07/2016,Grants,System Reform Group,LANCASHIRE COUNTY COUNCIL,4000242548,50442.00,Grants to local authorities / other establishments within aggregate external funding or aggregate exchequer grant
Department for Education,DEPARTMENT FOR EDUCATION,13/07/2016,Grants,System Reform Group,KENT COUNTY COUNCIL,4000242550,104167.00,Grants to local authorities / other establishments within aggregate external funding or aggregate exchequer grant
Department for Education,DEPARTMENT FOR EDUCATION,13/07/2016,Programme costs,Children's Services Special Educational Needs Group,CONTACT A FAMILY,4000242553,149961.31,Funding to deliver policies (excluding consultancy) paid to third parties via a service delivery contract
Department for Education,DEPARTMENT FOR EDUCATION,13/07/2016,Grants,System Reform Group,WORCESTERSHIRE COUNTY COUNCIL,4000242567,27075.00,Grants to local authorities / other establishments within aggregate external funding or aggregate exchequer grant
Department for Education,DEPARTMENT FOR EDUCATION,13/07/2016,Grants,Adoption and Children in Care Division,ESSEX COUNTY COUNCIL,4000242571,70000.00,Grants to local authorities / other establishments within aggregate external funding or aggregate exchequer grant
Department for Education,DEPARTMENT FOR EDUCATION,13/07/2016,Grants,System Reform Group,ESSEX COUNTY COUNCIL,4000242571,50025.00,Grants to local authorities / other establishments within aggregate external funding or aggregate exchequer grant
Department for Education,DEPARTMENT FOR EDUCATION,13/07/2016,Grants,Adoption and Children in Care Division,WEST SUSSEX COUNTY COUNCIL,4000242578,43000.00,Grants to local authorities / other establishments within aggregate external funding or aggregate exchequer grant
Department for Education,DEPARTMENT FOR EDUCATION,13/07/2016,Grants,System Reform Group,WEST SUSSEX COUNTY COUNCIL,4000242578,32367.00,Grants to local authorities / other establishments within aggregate external funding or aggregate exchequer grant
Department for Education,DEPARTMENT FOR EDUCATION,13/07/2016,Grants,Academies Regional Delivery Group,CRONTON CE PRIMARY SCHOOL,4000242579,25000.00,Grants to educational establishments or not for profit organisations including other businesses
Department for Education,DEPARTMENT FOR EDUCATION,13/07/2016,Grants,"Children's Services, Equalities and Communication Safeguarding Group",THE FRONTLINE ORGANISATION,4000242581,22062.42,Grants to educational establishments or not for profit organisations including other businesses
Department for Education,DEPARTMENT FOR EDUCATION,13/07/2016,Grants,"Children's Services, Equalities and Communication Safeguarding Group",THE FRONTLINE ORGANISATION,4000242581,217406.77,Grants to educational establishments or not for profit organisations including other businesses
Department for Education,DEPARTMENT FOR EDUCATION,13/07/2016,Grants,Academies Regional Delivery Group,DAVID NIEPER EDUCATION TRUST,4000242582,150000.00,Grants to educational establishments or not for profit organisations including other businesses
Department for Education,DEPARTMENT FOR EDUCATION,13/07/2016,Grants,System Reform Group,SUFFOLK COUNTY COUNCIL,4000242586,42375.00,Grants to local authorities / other establishments within aggregate external funding or aggregate exchequer grant
Department for Education,DEPARTMENT FOR EDUCATION,13/07/2016,Grants,Adoption and Children in Care Division,PLYMOUTH CITY COUNCIL,4000242589,27000.00,Grants to local authorities / other establishments within aggregate external funding or aggregate exchequer grant
Department for Education,DEPARTMENT FOR EDUCATION,13/07/2016,Grants,System Reform Group,PLYMOUTH CITY COUNCIL,4000242589,3175.00,Grants to local authorities / other establishments within aggregate external funding or aggregate exchequer grant
Department for Education,DEPARTMENT FOR EDUCATION,13/07/2016,Grants,Adoption and Children in Care Division,DEVON COUNTY COUNCIL,4000242590,43000.00,Grants to local authorities / other establishments within aggregate external funding or aggregate exchequer grant
Department for Education,DEPARTMENT FOR EDUCATION,13/07/2016,Grants,System Reform Group,DEVON COUNTY COUNCIL,4000242590,40775.00,Grants to local authorities / other establishments within aggregate external funding or aggregate exchequer grant
Department for Education,DEPARTMENT FOR EDUCATION,13/07/2016,Grants,Adoption and Children in Care Division,WARRINGTON BOROUGH COUNCIL,4000242591,113000.00,Grants to local authorities / other establishments within aggregate external funding or aggregate exchequer grant
Department for Education,DEPARTMENT FOR EDUCATION,13/07/2016,Grants,System Reform Group,WARRINGTON BOROUGH COUNCIL,4000242591,2208.00,Grants to local authorities / other establishments within aggregate external funding or aggregate exchequer grant
Department for Education,DEPARTMENT FOR EDUCATION,13/07/2016,Grants,"Children's Services, Equalities and Communication Safeguarding Group",SLOUGH CHILDRENS SERVICES TRUST LTD,4000242598,1290457.00,Grants to local authorities / other establishments within aggregate external funding or aggregate exchequer grant
Department for Education,DEPARTMENT FOR EDUCATION,13/07/2016,Grants,Adoption and Children in Care Division,PETERBOROUGH CITY COUNCIL,4000242607,43000.00,Grants to local authorities / other establishments within aggregate external funding or aggregate exchequer grant
Department for Education,DEPARTMENT FOR EDUCATION,13/07/2016,Grants,System Reform Group,PETERBOROUGH CITY COUNCIL,4000242607,2675.00,Grants to local authorities / other establishments within aggregate external funding or aggregate exchequer grant
Department for Education,DEPARTMENT FOR EDUCATION,13/07/2016,Grants,System Reform Group,CAMBRIDGESHIRE COUNTY COUNCIL,4000242608,38842.00,Grants to local authorities / other establishments within aggregate external funding or aggregate exchequer grant
Department for Education,DEPARTMENT FOR EDUCATION,13/07/2016,Grants,Academies Regional Delivery Group,WILLIAM STOCKTON COMMUNITY PRIMARY SCHOOL,4000242613,25000.00,Grants to educational establishments or not for profit organisations including other businesses
Department for Education,DEPARTMENT FOR EDUCATION,13/07/2016,Grants,Adoption and Children in Care Division,DONCASTER CHILDRENS TRUST,4000242621,43000.00,Grants to local authorities / other establishments within aggregate external funding or aggregate exchequer grant
Department for Education,STANDARDS AND TESTING AGENCY,13/07/2016,Programme costs,Test Development Division,NFER,4000242639,22454.00,Funding to deliver policies (excluding consultancy) paid to third parties via a service delivery contract
Department for Education,STANDARDS AND TESTING AGENCY,13/07/2016,Programme costs,Test Development Division,NFER,4000242639,133256.25,Funding to deliver policies (excluding consultancy) paid to third parties via a service delivery contract
Department for Education,DEPARTMENT FOR EDUCATION,13/07/2016,Grants,Adoption and Children in Care Division,LONDON BOROUGH OF BEXLEY COUNCIL,4000242642,27000.00,Grants to local authorities / other establishments within aggregate external funding or aggregate exchequer grant
Department for Education,DEPARTMENT FOR EDUCATION,13/07/2016,Grants,System Reform Group,LONDON BOROUGH OF BEXLEY COUNCIL,4000242642,425.00,Grants to local authorities / other establishments within aggregate external funding or aggregate exchequer grant
Department for Education,DEPARTMENT FOR EDUCATION,13/07/2016,Grants,Adoption and Children in Care Division,WILTSHIRE COUNCIL,4000242648,43000.00,Grants to local authorities / other establishments within aggregate external funding or aggregate exchequer grant
Department for Education,DEPARTMENT FOR EDUCATION,13/07/2016,Grants,System Reform Group,WILTSHIRE COUNCIL,4000242648,19758.00,Grants to local authorities / other establishments within aggregate external funding or aggregate exchequer grant
Department for Education,DEPARTMENT FOR EDUCATION,13/07/2016,Grants,Adoption and Children in Care Division,STOKE ON TRENT CITY COUNCIL,4000242649,27000.00,Grants to local authorities / other establishments within aggregate external funding or aggregate exchequer grant
Department for Education,DEPARTMENT FOR EDUCATION,13/07/2016,Grants,System Reform Group,STOKE ON TRENT CITY COUNCIL,4000242649,3175.00,Grants to local authorities / other establishments within aggregate external funding or aggregate exchequer grant
Department for Education,DEPARTMENT FOR EDUCATION,13/07/2016,Grants,Academies Regional Delivery Group,THE DEAN TRUST,4000242654,70000.00,Grants to educational establishments or not for profit organisations including other businesses
Department for Education,DEPARTMENT FOR EDUCATION,13/07/2016,Grants,Adoption and Children in Care Division,ROTHERHAM MBC,4000242657,140000.00,Grants to local authorities / other establishments within aggregate external funding or aggregate exchequer grant
Department for Education,DEPARTMENT FOR EDUCATION,13/07/2016,Grants,System Reform Group,ROTHERHAM MBC,4000242657,4725.00,Grants to local authorities / other establishments within aggregate external funding or aggregate exchequer grant
Department for Education,DEPARTMENT FOR EDUCATION,13/07/2016,Grants,"Children's Services, Equalities and Communication Safeguarding Group",MORNING LANE ASSOCIATES,4000242660,327146.42,Grants to educational establishments or not for profit organisations including other businesses
Department for Education,DEPARTMENT FOR EDUCATION,13/07/2016,Grants,Adoption and Children in Care Division,LONDON BOROUGH OF SUTTON,4000242670,27000.00,Grants to local authorities / other establishments within aggregate external funding or aggregate exchequer grant
Department for Education,DEPARTMENT FOR EDUCATION,13/07/2016,Grants,System Reform Group,LONDON BOROUGH OF SUTTON,4000242670,217.00,Grants to local authorities / other establishments within aggregate external funding or aggregate exchequer grant
Department for Education,NATIONAL COLLEGE FOR TEACHING AND LEADERSHIP AGENCY,13/07/2016,Professional Services Other,Operations Directorate,NATIONAL FOUNDATION FOR EDUCATIONAL RESEARCH,4000242389,7646.40,Research and evaluation activities
Department for Education,NATIONAL COLLEGE FOR TEACHING AND LEADERSHIP AGENCY,13/07/2016,Professional Services Consultancy and Contingent Labour,Delivery Directorate,NATIONAL FOUNDATION FOR EDUCATIONAL RESEARCH,4000242389,58353.60,Costs related to temporary workers
Department for Education,DEPARTMENT FOR EDUCATION,13/07/2016,Professional Services Consultancy and Contingent Labour,Information Technology Group,RUSSAM GMS LTD,4000242418,33906.37,Costs related to temporary workers
Department for Education,NATIONAL COLLEGE FOR TEACHING AND LEADERSHIP AGENCY,14/07/2016,Professional Services Other,Delivery Directorate,MM TELEPERFORMANCE,4000242755,60255.00,"Fees / expenses of professionals, for example to implement advice or changes"
Department for Education,DEPARTMENT FOR EDUCATION,14/07/2016,Programme costs,"Assessment, Curriculum and General Qualifications Group",MATHEMATICS IN EDUCATION & INDUSTRY,4000242678,367000.00,Funding to deliver policies (excluding consultancy) paid to third parties via a service delivery contract
Department for Education,DEPARTMENT FOR EDUCATION,14/07/2016,Grants,Academies Regional Delivery Group,STANTON BRIDGE PRIMARY SCHOOL,4000242689,25000.00,Grants to educational establishments or not for profit organisations including other businesses
Department for Education,DEPARTMENT FOR EDUCATION,14/07/2016,Programme costs,"Children's Services, Equalities and Communication Safeguarding Group",KPMG LLP,4000242702,132839.89,Funding to deliver policies (excluding consultancy) paid to third parties via a service delivery contract
Department for Education,DEPARTMENT FOR EDUCATION,14/07/2016,Grants,Academies Regional Delivery Group,GREAT MEOLS PRIMARY SCHOOL,4000242707,25000.00,Grants to educational establishments or not for profit organisations including other businesses
Department for Education,DEPARTMENT FOR EDUCATION,14/07/2016,Grants,Academies Regional Delivery Group,STANTON ROAD PRIMARY SCHOOL,4000242710,25000.00,Grants to educational establishments or not for profit organisations including other businesses
Department for Education,DEPARTMENT FOR EDUCATION,14/07/2016,Grants,Academies Regional Delivery Group,JAMES MONTGOMERY ACADEMY TRUST,4000242717,25000.00,Grants to educational establishments or not for profit organisations including other businesses
Department for Education,DEPARTMENT FOR EDUCATION,14/07/2016,Grants,Academies Regional Delivery Group,THE STEP ACADEMY TRUST,4000242721,160000.00,Grants to educational establishments or not for profit organisations including other businesses
Department for Education,DEPARTMENT FOR EDUCATION,14/07/2016,Grants,Academies Regional Delivery Group,REACH4 ACADEMY TRUST,4000242723,70000.00,Grants to educational establishments or not for profit organisations including other businesses
Department for Education,DEPARTMENT FOR EDUCATION,14/07/2016,Grants,Academies Regional Delivery Group,REACH4 ACADEMY TRUST,4000242723,25000.00,Grants to educational establishments or not for profit organisations including other businesses
Department for Education,DEPARTMENT FOR EDUCATION,14/07/2016,Grants,Academies Regional Delivery Group,HAMWIC TRUST,4000242730,50000.00,Grants to educational establishments or not for profit organisations including other businesses
Department for Education,DEPARTMENT FOR EDUCATION,14/07/2016,Grants,Academies Regional Delivery Group,WEST NORFOLK ACADEMY TRUST,4000242752,80000.00,Grants to educational establishments or not for profit organisations including other businesses
Department for Education,DEPARTMENT FOR EDUCATION,14/07/2016,Personnel Related,Human Resources Group,FIDELITI LTD,4000242754,85768.06,Childcare voucher scheme for staff
Department for Education,DEPARTMENT FOR EDUCATION,14/07/2016,Programme costs,"Children's Services, Equalities and Communication Safeguarding Group",NWG NETWORK,4000242756,109401.00,Funding to deliver policies (excluding consultancy) paid to third parties via a service delivery contract
Department for Education,STANDARDS AND TESTING AGENCY,14/07/2016,Office Solutions,Test Operations Division,PARCELFORCE WORLDWIDE,4000242757,90470.76,Post and courier services
Department for Education,DEPARTMENT FOR EDUCATION,14/07/2016,Programme costs,Teachers and Teaching Group,CAPITA LIFE & PENSIONS SERVICES LTD,4000242758,269258.38,Contract payment to deliver the administration of the Teachers' Pension Scheme.
Department for Education,DEPARTMENT FOR EDUCATION,14/07/2016,Travel,Property Asset Management Group,CROWN COMMERCIAL SERVICE,4000242740,54369.76,Non-contractor's travel expenses
Department for Education,DEPARTMENT FOR EDUCATION,14/07/2016,Programme costs,Children in Care Division,BRITISH DYSLEXIA ASSOCIATION,4000242766,59187.67,Funding to deliver policies (excluding consultancy) paid to third parties via a service delivery contract
Department for Education,DEPARTMENT FOR EDUCATION,14/07/2016,Professional Services Consultancy and Contingent Labour,Information Technology Group,METHODS PROFESSIONAL SERVICES LTD,4000242720,49990.80,Costs related to temporary workers
Department for Education,DEPARTMENT FOR EDUCATION,14/07/2016,Facilities,Property Asset Management Group,THE ROYAL PARKS,4000242713,177207.92,Programme management for construction work
Department for Education,DEPARTMENT FOR EDUCATION,14/07/2016,Professional Services Consultancy and Contingent Labour,Information Technology Group,RUSSAM GMS LTD,4000242749,10651.61,Costs related to temporary workers
Department for Education,DEPARTMENT FOR EDUCATION,14/07/2016,Professional Services Consultancy and Contingent Labour,Information Technology Group,RUSSAM GMS LTD,4000242749,30780.00,Costs related to temporary workers
Department for Education,DEPARTMENT FOR EDUCATION,14/07/2016,Facilities,Property Asset Management Group,UNIVERSITY OF NOTTINGHAM,4000242765,3674.04,Rent
Department for Education,DEPARTMENT FOR EDUCATION,14/07/2016,Facilities,Property Asset Management Group,UNIVERSITY OF NOTTINGHAM,4000242765,33311.88,Rent
Department for Education,DEPARTMENT FOR EDUCATION,15/07/2016,Professional Services Consultancy and Contingent Labour,Information Technology Group,6 POINT 6 LIMITED,4000242802,38100.00,Costs related to temporary workers
Department for Education,DEPARTMENT FOR EDUCATION,15/07/2016,Facilities,Property Asset Management Group,SODEXO LTD,4000242806,45335.57,"Building maintenance and repair, including repainting, replacing flooring, etc."
Department for Education,DEPARTMENT FOR EDUCATION,15/07/2016,Professional Services Consultancy and Contingent Labour,Academies Regional Delivery Group,GOVERNMENT LEGAL DEPARTMENT,4000242773,226.30,"Fees / expenses of professionals such as auditors, accountants, lawyers, etc. engaged to provide advice or opinion on how to affect something"
Department for Education,DEPARTMENT FOR EDUCATION,15/07/2016,Professional Services Consultancy and Contingent Labour,Legal Advisers Office,GOVERNMENT LEGAL DEPARTMENT,4000242773,950161.00,Legal advisory services from the Government Legal Department including the provision of external specialist advice and opinion
Department for Education,STANDARDS AND TESTING AGENCY,15/07/2016,Programme costs,Test Development Division,SCOTTISH QUALIFICATIONS AUTHORITY,4000242781,295208.98,Funding to deliver policies (excluding consultancy) paid to third parties via a service delivery contract
Department for Education,DEPARTMENT FOR EDUCATION,15/07/2016,Professional Services Consultancy and Contingent Labour,Information Technology Group,PROLOG,4000242783,6340.47,"Advisory services including fees, travel and expenses"
Department for Education,DEPARTMENT FOR EDUCATION,15/07/2016,Professional Services Consultancy and Contingent Labour,Information Technology Group,PROLOG,4000242783,6435.00,"Advisory services including fees, travel and expenses"
Department for Education,DEPARTMENT FOR EDUCATION,15/07/2016,Communications,Information Technology Group,PROLOG,4000242783,8115.90,Digital media and web production
Department for Education,DEPARTMENT FOR EDUCATION,15/07/2016,Communications,Information Technology Group,PROLOG,4000242783,871.20,Digital media and web production
Department for Education,DEPARTMENT FOR EDUCATION,15/07/2016,ICT,Information Technology Group,PROLOG,4000242783,4140.00,ICT Services
Department for Education,DEPARTMENT FOR EDUCATION,15/07/2016,ICT,Information Technology Group,PROLOG,4000242783,8104.21,ICT Services
Department for Education,DEPARTMENT FOR EDUCATION,15/07/2016,Travel,"Independent Education, Safeguarding in Schools and Counter Extremism Group",PROLOG,4000242783,1434.00,Non-contractor's travel expenses
Department for Education,DEPARTMENT FOR EDUCATION,15/07/2016,Communications,Communications Group,PROLOG,4000242783,11422.80,Marketing services - printing and publication
Department for Education,DEPARTMENT FOR EDUCATION,15/07/2016,Communications,Information Technology Group,PROLOG,4000242783,27000.00,Digital media and web production
Department for Education,DEPARTMENT FOR EDUCATION,15/07/2016,Communications,Ministerial and Public Communications Group,PROLOG,4000242783,81927.36,Digital media and web production
Department for Education,STANDARDS AND TESTING AGENCY,15/07/2016,Professional Services Other,Test Development Division,PROLOG,4000242783,6812.50,"Fees / expenses of professionals, for example to implement advice or changes"
Department for Education,NATIONAL COLLEGE FOR TEACHING AND LEADERSHIP AGENCY,15/07/2016,Communications,Operations Directorate,PROLOG,4000242783,1122.00,Digital media and web production
Department for Education,NATIONAL COLLEGE FOR TEACHING AND LEADERSHIP AGENCY,15/07/2016,Office Solutions,Operations Directorate,PROLOG,4000242783,227.18,Document Storage
Department for Education,NATIONAL COLLEGE FOR TEACHING AND LEADERSHIP AGENCY,15/07/2016,Office Solutions,Operations Directorate,PROLOG,4000242783,881.10,Office Supplies
Department for Education,NATIONAL COLLEGE FOR TEACHING AND LEADERSHIP AGENCY,15/07/2016,Office Solutions,Operations Directorate,PROLOG,4000242783,542.00,Post and courier services
Department for Education,DEPARTMENT FOR EDUCATION,15/07/2016,Professional Services Consultancy and Contingent Labour,Information Technology Group,METHODS PROFESSIONAL SERVICES LTD,4000242793,12492.74,Costs related to temporary workers
Department for Education,DEPARTMENT FOR EDUCATION,15/07/2016,Professional Services Consultancy and Contingent Labour,Information Technology Group,METHODS PROFESSIONAL SERVICES LTD,4000242793,22690.80,Costs related to temporary workers
Department for Education,DEPARTMENT FOR EDUCATION,15/07/2016,Professional Services Consultancy and Contingent Labour,Information Technology Group,METHODS PROFESSIONAL SERVICES LTD,4000242793,11243.82,Costs related to temporary workers
Department for Education,DEPARTMENT FOR EDUCATION,15/07/2016,Programme costs,Children's Services Special Educational Needs Group,I CAN,4000242804,162489.00,Funding to deliver policies (excluding consultancy) paid to third parties via a service delivery contract
Department for Education,DEPARTMENT FOR EDUCATION,15/07/2016,Facilities,Property Asset Management Group,BAM CONSTRUCTION LTD,4000242805,1664162.40,Programme management for construction work
Department for Education,DEPARTMENT FOR EDUCATION,15/07/2016,Grants,"Assessment, Curriculum and General Qualifications Group",CATHOLIC EDUCATION SERVICE,4000242815,78000.00,Grants to educational establishments or not for profit organisations including other businesses
Department for Education,DEPARTMENT FOR EDUCATION,15/07/2016,ICT,Systems and Accountability Group,PROLOG,4000242783,508.20,ICT Services
Department for Education,NATIONAL COLLEGE FOR TEACHING AND LEADERSHIP AGENCY,15/07/2016,Office Solutions,Operations Directorate,TELEPERFORMANCE LTD,4000242819,5364.39,Post and courier services
Department for Education,STANDARDS AND TESTING AGENCY,15/07/2016,Professional Services Other,Test Development Division,PROLOG,4000242783,280.00,"Fees / expenses of professionals, for example to implement advice or changes"
Department for Education,DEPARTMENT FOR EDUCATION,15/07/2016,ICT,Systems and Accountability Group,PROLOG,4000242783,160733.54,ICT Services
Department for Education,DEPARTMENT FOR EDUCATION,15/07/2016,Professional Services Consultancy and Contingent Labour,Information Technology Group,RUSSAM GMS LTD,4000242816,61080.00,Costs related to temporary workers
Department for Education,DEPARTMENT FOR EDUCATION,15/07/2016,Professional Services Consultancy and Contingent Labour,Information Technology Group,RUSSAM GMS LTD,4000242816,8910.00,Costs related to temporary workers
Department for Education,NATIONAL COLLEGE FOR TEACHING AND LEADERSHIP AGENCY,15/07/2016,Professional Services Other,Delivery Directorate,TELEPERFORMANCE LTD,4000242819,408751.76,"Fees / expenses of professionals, for example to implement advice or changes"
Department for Education,DEPARTMENT FOR EDUCATION,15/07/2016,ICT,Finance and Commercial Group,SHARED SERVICES CONNECTED LTD,4000242817,33734.40,ICT Software
Department for Education,DEPARTMENT FOR EDUCATION,18/07/2016,Grants,"Assessment, Curriculum and General Qualifications Group",ENTHUSE CHARITABLE TRUST,4000242831,441556.79,Grants to educational establishments or not for profit organisations including other businesses
Department for Education,DEPARTMENT FOR EDUCATION,18/07/2016,Programme costs,Children's Services Special Educational Needs Group,NATIONAL AUTISTIC SOCIETY,4000242849,187500.00,Funding to deliver policies (excluding consultancy) paid to third parties via a service delivery contract
Department for Education,DEPARTMENT FOR EDUCATION,18/07/2016,Professional Services Consultancy and Contingent Labour,Information Technology Group,PROLOG,4000242857,8800.00,"Advisory services including fees, travel and expenses"
Department for Education,DEPARTMENT FOR EDUCATION,18/07/2016,Communications,Information Technology Group,PROLOG,4000242857,9213.31,Digital media and web production
Department for Education,NATIONAL COLLEGE FOR TEACHING AND LEADERSHIP AGENCY,18/07/2016,Office Solutions,Operations Directorate,PROLOG,4000242857,63.29,Document Storage
Department for Education,NATIONAL COLLEGE FOR TEACHING AND LEADERSHIP AGENCY,18/07/2016,Office Solutions,Operations Directorate,PROLOG,4000242857,8029.83,Post and courier services
Department for Education,DEPARTMENT FOR EDUCATION,18/07/2016,Grants,Academies Regional Delivery Group,GUILDFORD GROVE PRIMARY SCHOOL,4000242868,25000.00,Grants to educational establishments or not for profit organisations including other businesses
Department for Education,DEPARTMENT FOR EDUCATION,18/07/2016,Grants,Academies Regional Delivery Group,PORTREATH COMMUNITY PRIMARY SCHOOL,4000242889,27000.00,Grants to educational establishments or not for profit organisations including other businesses
Department for Education,DEPARTMENT FOR EDUCATION,18/07/2016,Grants,Academies Regional Delivery Group,REACH4 ACADEMY TRUST,4000242895,45000.00,Grants to educational establishments or not for profit organisations including other businesses
Department for Education,DEPARTMENT FOR EDUCATION,18/07/2016,Grants,Adoption and Children in Care Division,SUFFOLK FAMILY CARERS LTD,4000242897,33165.00,Grants to educational establishments or not for profit organisations including other businesses
Department for Education,DEPARTMENT FOR EDUCATION,18/07/2016,Grants,Academies Regional Delivery Group,PARC EGLOS SCHOOL,4000242901,521000.00,Grants to educational establishments or not for profit organisations including other businesses
Department for Education,DEPARTMENT FOR EDUCATION,18/07/2016,ICT,Information Technology Group,PROLOG,4000242857,1746.00,ICT Services
Department for Education,DEPARTMENT FOR EDUCATION,19/07/2016,Grants,Free School Group,XP SCHOOL DONCASTER LTD XP EAST,4000242922,90000.00,Grants to educational establishments or not for profit organisations including other businesses
Department for Education,DEPARTMENT FOR EDUCATION,19/07/2016,Grants,Academies Regional Delivery Group,PONTELAND COMMUNITY MIDDLE SCHOOL,4000242924,25000.00,Grants to educational establishments or not for profit organisations including other businesses
Department for Education,NATIONAL COLLEGE FOR TEACHING AND LEADERSHIP AGENCY,19/07/2016,Programme costs,Delivery Directorate,TEACH FIRST INITIAL TEACHER DEVELOPMENT,4000242928,4695922.13,Funding to deliver policies (excluding consultancy) paid to third parties via a service delivery contract
Department for Education,DEPARTMENT FOR EDUCATION,19/07/2016,Grants,Academies Regional Delivery Group,HAMPSTHWAITE CHURCH OF ENGLAND PRIMARY SCHOOL,4000242929,25000.00,Grants to educational establishments or not for profit organisations including other businesses
Department for Education,DEPARTMENT FOR EDUCATION,19/07/2016,Grants,"Children's Services, Equalities and Communication Safeguarding Group",DONCASTER CHILDRENS TRUST,4000242931,222581.00,Grants to educational establishments or not for profit organisations including other businesses
Department for Education,DEPARTMENT FOR EDUCATION,19/07/2016,Grants,Academies Regional Delivery Group,PHILLIMORE COMMUNITY PRIMARY SCHOOL,4000242933,25000.00,Grants to educational establishments or not for profit organisations including other businesses
Department for Education,DEPARTMENT FOR EDUCATION,19/07/2016,Programme costs,Post 16 and Disadvantage Group,MAGIC BREAKFAST,4000242936,243464.40,Funding to deliver policies (excluding consultancy) paid to third parties via a service delivery contract
Department for Education,DEPARTMENT FOR EDUCATION,19/07/2016,Grants,Academies Regional Delivery Group,EBOR ACADEMY TRUST,4000242939,25000.00,Grants to educational establishments or not for profit organisations including other businesses
Department for Education,DEPARTMENT FOR EDUCATION,19/07/2016,Grants,Academies Regional Delivery Group,FLYING HIGH TRUST,4000242941,25000.00,Grants to educational establishments or not for profit organisations including other businesses
Department for Education,DEPARTMENT FOR EDUCATION,19/07/2016,Grants,Academies Regional Delivery Group,DIOCESE OF ELY MULTI ACADEMY TRUST,4000242945,25000.00,Grants to educational establishments or not for profit organisations including other businesses
Department for Education,DEPARTMENT FOR EDUCATION,19/07/2016,Grants,Academies Regional Delivery Group,WOODLANDS PARK PRIMARY SCHOOL,4000242966,25000.00,Grants to educational establishments or not for profit organisations including other businesses
Department for Education,DEPARTMENT FOR EDUCATION,19/07/2016,Grants,Academies Regional Delivery Group,EXCALIBUR ACADEMIES TRUST,4000242981,115000.00,Grants to educational establishments or not for profit organisations including other businesses
Department for Education,DEPARTMENT FOR EDUCATION,19/07/2016,Grants,Academies Regional Delivery Group,KILNHURST PRIMARY SCHOOL,4000242982,25000.00,Grants to educational establishments or not for profit organisations including other businesses
Department for Education,DEPARTMENT FOR EDUCATION,19/07/2016,Grants,Academies Regional Delivery Group,ISTEAD RISE PRIMARY SCHOOL,4000242983,70000.00,Grants to educational establishments or not for profit organisations including other businesses
Department for Education,DEPARTMENT FOR EDUCATION,19/07/2016,Grants,Academies Regional Delivery Group,JAMES MONTGOMERY ACADEMY TRUST,4000242985,70000.00,Grants to educational establishments or not for profit organisations including other businesses
Department for Education,DEPARTMENT FOR EDUCATION,19/07/2016,Professional Services Other,Children's Services Special Educational Needs Group,UNIVERSITY OF WARWICK,4000242960,41237.50,Research and evaluation activities
Department for Education,DEPARTMENT FOR EDUCATION,20/07/2016,Facilities,Property Asset Management Group,GVA GRIMLEY LTD DCLG,4000242990,398332.40,"Business rates. From 2016/17 financial year DCLG and DECC will use the DfE's finance system, reflecting the shared services arrangement for property asset management that already exists across the three departments. DfE will recharge DCLG and DECC on a quarterly basis."
Department for Education,DEPARTMENT FOR EDUCATION,20/07/2016,Professional Services Other,Strategic Analysis and Research Group,NATIONAL FOUNDATION FOR EDUCATIONAL RESEARCH,4000243039,40515.00,Research and evaluation activities
Department for Education,DEPARTMENT FOR EDUCATION,20/07/2016,Professional Services Consultancy and Contingent Labour,Information Technology Group,METHODS PROFESSIONAL SERVICES LTD,4000242989,43882.92,Costs related to temporary workers
Department for Education,DEPARTMENT FOR EDUCATION,20/07/2016,Grants,Adoption and Children in Care Division,INTERCOUNTRY ADOPTION CENTRE,4000242991,25285.00,Grants to educational establishments or not for profit organisations including other businesses
Department for Education,DEPARTMENT FOR EDUCATION,20/07/2016,Programme costs,"Assessment, Curriculum and General Qualifications Group",STEM LEARNING LTD,4000242999,170253.75,Funding to deliver policies (excluding consultancy) paid to third parties via a service delivery contract
Department for Education,DEPARTMENT FOR EDUCATION,20/07/2016,Grants,Adoption and Children in Care Division,THE SHARE FOUNDATION 3RD PARTY TRUST,4000243015,92200.00,Grants to educational establishments or not for profit organisations including other businesses
Department for Education,STANDARDS AND TESTING AGENCY,20/07/2016,Programme costs,Test Development Division,LEARN DIRECT,4000243023,60991.40,Funding to deliver policies (excluding consultancy) paid to third parties via a service delivery contract
Department for Education,STANDARDS AND TESTING AGENCY,20/07/2016,Programme costs,Test Operations Division,NATIONAL FOUNDATION FOR EDUCATIONAL RESEARCH,4000243039,475432.57,Funding to deliver policies (excluding consultancy) paid to third parties via a service delivery contract
Department for Education,DEPARTMENT FOR EDUCATION,20/07/2016,Facilities,Property Asset Management Group,HUDDLE,4000242986,28800.00,Property management
Department for Education,DEPARTMENT FOR EDUCATION,20/07/2016,Programme costs,Adoption and Children in Care Division,DELOITTE,4000243071,178037.16,Funding to deliver policies (excluding consultancy) paid to third parties via a service delivery contract
Department for Education,DEPARTMENT FOR EDUCATION,20/07/2016,Facilities,Property Asset Management Group,INTERSERVE FACILITIES MANAGEMENT LTD,4000243041,48683.46,Property management
Department for Education,DEPARTMENT FOR EDUCATION,20/07/2016,ICT,Information Technology Group,VODAFONE LTD,4000243022,94890.86,ICT Services
Department for Education,DEPARTMENT FOR EDUCATION,20/07/2016,Professional Services Other,Children's Services Special Educational Needs Group,WARWICK UNIVERSITY SERVICES LTD,4000243037,31252.75,Research and evaluation activities
Department for Education,DEPARTMENT FOR EDUCATION,21/07/2016,Professional Services Consultancy and Contingent Labour,Information Technology Group,FDM GROUP LTD,4000243202,22800.00,Costs related to temporary workers
Department for Education,DEPARTMENT FOR EDUCATION,21/07/2016,Professional Services Consultancy and Contingent Labour,Information Technology Group,FDM GROUP LTD,4000243202,41847.00,Costs related to temporary workers
Department for Education,NATIONAL COLLEGE FOR TEACHING AND LEADERSHIP AGENCY,21/07/2016,Professional Services Other,Operations Directorate,EVERSHEDS LLP,4000243126,21980.00,Legal services provided externally (excluding Treasury Solicitor) 
Department for Education,DEPARTMENT FOR EDUCATION,21/07/2016,Professional Services Consultancy and Contingent Labour,Information Technology Group,METHODS PROFESSIONAL SERVICES LTD,4000243192,35441.16,Costs related to temporary workers
Department for Education,DEPARTMENT FOR EDUCATION,21/07/2016,Professional Services Consultancy and Contingent Labour,Information Technology Group,METHODS PROFESSIONAL SERVICES LTD,4000243192,35815.93,Costs related to temporary workers
Department for Education,DEPARTMENT FOR EDUCATION,21/07/2016,Grants,Academies Regional Delivery Group,ROBIN HOOD ACADEMY,4000243111,45000.00,Grants to educational establishments or not for profit organisations including other businesses
Department for Education,DEPARTMENT FOR EDUCATION,21/07/2016,Grants,Academies Regional Delivery Group,DIOCESE OF CHICHESTER ACADEMY TRUST,4000243113,110000.00,Grants to educational establishments or not for profit organisations including other businesses
Department for Education,DEPARTMENT FOR EDUCATION,21/07/2016,Communications,"Children's Services, Equalities and Communication Safeguarding Group",CARAT,4000243115,148654.80,Marketing services
Department for Education,NATIONAL COLLEGE FOR TEACHING AND LEADERSHIP AGENCY,21/07/2016,Communications,Operations Directorate,CARAT,4000243115,766.21,"Publicity, advertising, media advertising campaigns (excluding recruitment adverts)"
Department for Education,NATIONAL COLLEGE FOR TEACHING AND LEADERSHIP AGENCY,21/07/2016,Communications,Operations Directorate,CARAT,4000243115,88833.35,Marketing services
Department for Education,NATIONAL COLLEGE FOR TEACHING AND LEADERSHIP AGENCY,21/07/2016,Communications,Operations Directorate,CARAT,4000243115,5384.58,Marketing services
Department for Education,DEPARTMENT FOR EDUCATION,21/07/2016,Personnel Related,"Children's Services, Equalities and Communication Safeguarding Group",DELOITTE LLP,4000243120,179086.00,"Personnel costs including staff recruitment, staff restaurant subsidies, family care expenses"
Department for Education,DEPARTMENT FOR EDUCATION,21/07/2016,Grants,Academies Regional Delivery Group,FLYING HIGH TRUST,4000243124,50000.00,Grants to educational establishments or not for profit organisations including other businesses
Department for Education,DEPARTMENT FOR EDUCATION,21/07/2016,Grants,Academies Regional Delivery Group,DIOCESE OF ELY MULTI ACADEMY TRUST,4000243125,40000.00,Grants to educational establishments or not for profit organisations including other businesses
Department for Education,DEPARTMENT FOR EDUCATION,21/07/2016,Grants,Academies Regional Delivery Group,BATH & WELLS MULTI ACADEMY TRUST,4000243131,50000.00,Grants to educational establishments or not for profit organisations including other businesses
Department for Education,DEPARTMENT FOR EDUCATION,21/07/2016,Grants,Academies Regional Delivery Group,HUSBANDS BOSWORTH PRIMARY C OF E SCHOOL,4000243136,30000.00,Grants to educational establishments or not for profit organisations including other businesses
Department for Education,DEPARTMENT FOR EDUCATION,21/07/2016,Grants,Academies Regional Delivery Group,ST LEONARDS RCVA COMPREHENSIVE SCHOOL,4000243160,25000.00,Grants to educational establishments or not for profit organisations including other businesses
Department for Education,DEPARTMENT FOR EDUCATION,21/07/2016,Grants,Academies Regional Delivery Group,HAYWOOD ACADEMY,4000243163,50000.00,Grants to educational establishments or not for profit organisations including other businesses
Department for Education,DEPARTMENT FOR EDUCATION,21/07/2016,Grants,Academies Regional Delivery Group,MANOR LODGE SCHOOL,4000243182,25000.00,Grants to educational establishments or not for profit organisations including other businesses
Department for Education,DEPARTMENT FOR EDUCATION,21/07/2016,Grants,Academies Regional Delivery Group,PREES CE PRIMARY SCHOOL,4000243186,25000.00,Grants to educational establishments or not for profit organisations including other businesses
Department for Education,DEPARTMENT FOR EDUCATION,21/07/2016,Travel,Finance and Commercial Group,REDFERN TRAVEL LTD,4000243193,402550.11,"Staff business travel including air, coach, ferry, rail, taxi and car hire"
Department for Education,DEPARTMENT FOR EDUCATION,21/07/2016,Programme costs,"Assessment, Curriculum and General Qualifications Group",STEM LEARNING LTD,4000243196,65872.63,Funding to deliver policies (excluding consultancy) paid to third parties via a service delivery contract
Department for Education,DEPARTMENT FOR EDUCATION,21/07/2016,Programme costs,Government Equalities Office,SITEL UK LTD,4000243200,339198.01,Funding to deliver policies (excluding consultancy) paid to third parties via a service delivery contract
Department for Education,DEPARTMENT FOR EDUCATION,21/07/2016,Professional Services Consultancy and Contingent Labour,Information Technology Group,RUSSAM GMS LTD,4000243123,10032.00,Costs related to temporary workers
Department for Education,DEPARTMENT FOR EDUCATION,21/07/2016,Professional Services Consultancy and Contingent Labour,Information Technology Group,RUSSAM GMS LTD,4000243123,30470.10,Costs related to temporary workers
Department for Education,NATIONAL COLLEGE FOR TEACHING AND LEADERSHIP AGENCY,22/07/2016,Professional Services Other,Operations Directorate,BLAKE MORGAN,4000243239,24151.20,Legal services provided externally (excluding Treasury Solicitor) 
Department for Education,DEPARTMENT FOR EDUCATION,22/07/2016,Professional Services Consultancy and Contingent Labour,Information Technology Group,FDM GROUP LTD,4000243248,12312.00,Costs related to temporary workers
Department for Education,DEPARTMENT FOR EDUCATION,22/07/2016,Professional Services Consultancy and Contingent Labour,Information Technology Group,FDM GROUP LTD,4000243248,30202.20,Costs related to temporary workers
Department for Education,DEPARTMENT FOR EDUCATION,22/07/2016,ICT,Information Technology Group,CAPRICORN VENTIS LTD,4000243242,67842.83,ICT Services
Department for Education,DEPARTMENT FOR EDUCATION,22/07/2016,Facilities,Property Asset Management Group,MACE LTD,4000243255,31906.80,Programme management for construction work
Department for Education,DEPARTMENT FOR EDUCATION,22/07/2016,Professional Services Consultancy and Contingent Labour,Information Technology Group,METHODS PROFESSIONAL SERVICES LTD,4000243241,9240.00,Costs related to temporary workers
Department for Education,DEPARTMENT FOR EDUCATION,22/07/2016,Professional Services Consultancy and Contingent Labour,Information Technology Group,METHODS PROFESSIONAL SERVICES LTD,4000243241,81120.64,Costs related to temporary workers
Department for Education,DEPARTMENT FOR EDUCATION,22/07/2016,Professional Services Consultancy and Contingent Labour,Information Technology Group,METHODS PROFESSIONAL SERVICES LTD,4000243241,13480.20,Costs related to temporary workers
Department for Education,DEPARTMENT FOR EDUCATION,22/07/2016,Grants,Adoption and Children in Care Division,HAMPSHIRE COUNTY COUNCIL,4000243206,46605.75,Grants to local authorities / other establishments within aggregate external funding or aggregate exchequer grant
Department for Education,NATIONAL COLLEGE FOR TEACHING AND LEADERSHIP AGENCY,22/07/2016,Programme costs,Delivery Directorate,FUTURE LEADERS CHARITABLE TRUST SCHOLARSHIPS,4000243210,384807.00,Funding to deliver policies (excluding consultancy) paid to third parties via a service delivery contract
Department for Education,DEPARTMENT FOR EDUCATION,22/07/2016,Grants,Academies Regional Delivery Group,LARWOOD SCHOOL,4000243224,25000.00,Grants to educational establishments or not for profit organisations including other businesses
Department for Education,DEPARTMENT FOR EDUCATION,22/07/2016,Programme costs,Adoption and Children in Care Division,NYAS,4000243229,37500.00,Funding to deliver policies (excluding consultancy) paid to third parties via a service delivery contract
Department for Education,DEPARTMENT FOR EDUCATION,22/07/2016,Grants,Academies Regional Delivery Group,SWECET T/A CHADWELL ST MARY PRIMARY SCHOOL,4000243230,70000.00,Grants to educational establishments or not for profit organisations including other businesses
Department for Education,DEPARTMENT FOR EDUCATION,22/07/2016,Grants,Academies Regional Delivery Group,THE HOLY FAMILY CATHOLIC MULTI ACADEMY TRUST,4000243231,80000.00,Grants to educational establishments or not for profit organisations including other businesses
Department for Education,DEPARTMENT FOR EDUCATION,22/07/2016,Grants,Academies Regional Delivery Group,GREENLAND COMMUNITY PRIMARY SCHOOL,4000243232,25000.00,Grants to educational establishments or not for profit organisations including other businesses
Department for Education,DEPARTMENT FOR EDUCATION,22/07/2016,Grants,Academies Regional Delivery Group,SOUTH STANLEY INFANT & NURSERY SCHOOL,4000243233,25000.00,Grants to educational establishments or not for profit organisations including other businesses
Department for Education,DEPARTMENT FOR EDUCATION,22/07/2016,Grants,Academies Regional Delivery Group,CHANGE SCHOOLS PARTNERSHIP,4000243243,25000.00,Grants to educational establishments or not for profit organisations including other businesses
Department for Education,DEPARTMENT FOR EDUCATION,22/07/2016,Facilities,Property Asset Management Group,MACE LTD,4000243255,161564.40,Property management
Department for Education,DEPARTMENT FOR EDUCATION,25/07/2016,ICT,Information Technology Group,CAPGEMINI UK PLC,4000243333,92398.62,ICT Services
Department for Education,DEPARTMENT FOR EDUCATION,25/07/2016,Professional Services Other,Adoption and Children in Care Division,CAPGEMINI UK PLC,4000243333,24000.00,"Fees / expenses of professionals, for example to implement advice or changes"
Department for Education,DEPARTMENT FOR EDUCATION,25/07/2016,Professional Services Other,"Assessment, Curriculum and General Qualifications Group",CAPGEMINI UK PLC,4000243333,15556.75,"Fees / expenses of professionals, for example to implement advice or changes"
Department for Education,DEPARTMENT FOR EDUCATION,25/07/2016,ICT,Information Technology Group,CAPGEMINI UK PLC,4000243333,195.20,ICT Services - hardware maintenance and support
Department for Education,DEPARTMENT FOR EDUCATION,25/07/2016,ICT,Systems and Accountability Group,CAPGEMINI UK PLC,4000243333,112622.40,ICT Services
Department for Education,DEPARTMENT FOR EDUCATION,25/07/2016,ICT,Change Team,CAPGEMINI UK PLC,4000243333,580.00,ICT Services - hardware maintenance and support
Department for Education,DEPARTMENT FOR EDUCATION,25/07/2016,Professional Services Consultancy and Contingent Labour,Information Technology Group,METHODS CONSULTING LTD,4000243341,15624.00,Costs related to temporary workers
Department for Education,NATIONAL COLLEGE FOR TEACHING AND LEADERSHIP AGENCY,25/07/2016,Professional Services Other,Delivery Directorate,MM TELEPERFORMANCE,4000243308,74295.00,"Fees / expenses of professionals, for example to implement advice or changes"
Department for Education,DEPARTMENT FOR EDUCATION,25/07/2016,Facilities,Property Asset Management Group,METHODS CONSULTING LTD,4000243341,76610.53,Programme management for construction work
Department for Education,DEPARTMENT FOR EDUCATION,25/07/2016,Programme costs,"Assessment, Curriculum and General Qualifications Group",EDUCATION DEVELOPMENT TRUST,4000243292,241366.80,Funding to deliver policies (excluding consultancy) paid to third parties via a service delivery contract
Department for Education,DEPARTMENT FOR EDUCATION,25/07/2016,Programme costs,Adoption and Children in Care Division,CORAM,4000243296,36438.40,Funding to deliver policies (excluding consultancy) paid to third parties via a service delivery contract
Department for Education,STANDARDS AND TESTING AGENCY,25/07/2016,Programme costs,Test Development Division,LEARN DIRECT,4000243301,57817.22,Funding to deliver policies (excluding consultancy) paid to third parties via a service delivery contract
Department for Education,DEPARTMENT FOR EDUCATION,25/07/2016,Communications,Early Years Group,CAPGEMINI UK PLC,4000243333,2928.00,Marketing services - printing and publication
Department for Education,DEPARTMENT FOR EDUCATION,25/07/2016,Professional Services Other,Academies Regional Delivery Group,VEREDUS TA CAPITA RESOURCING LTD,4000243291,26338.14,"Fees / expenses of professionals, for example to implement advice or changes"
Department for Education,DEPARTMENT FOR EDUCATION,25/07/2016,Programme costs,Adoption and Children in Care Division,MOTT MACDONALD LTD,4000243339,558870.68,Funding to deliver policies (excluding consultancy) paid to third parties via a service delivery contract
Department for Education,DEPARTMENT FOR EDUCATION,25/07/2016,Facilities,Property Asset Management Group,METHODS CONSULTING LTD,4000243341,10315.20,Property management
Department for Education,DEPARTMENT FOR EDUCATION,25/07/2016,Facilities,Property Asset Management Group,METHODS CONSULTING LTD,4000243341,0.00,Property management
Department for Education,DEPARTMENT FOR EDUCATION,26/07/2016,Personnel Related,Academies Regional Delivery Group,ESSEX COUNTY COUNCIL,4000243384,48756.99,Payments made to other government departments or organisations for staff seconded to DfE
Department for Education,DEPARTMENT FOR EDUCATION,26/07/2016,Facilities,Property Asset Management Group,SITEC BUILDING & MAINTENANCE LTD,4000243434,26914.14,Property management
Department for Education,DEPARTMENT FOR EDUCATION,26/07/2016,Grants,Academies Regional Delivery Group,ASH GREEN PRIMARY SCHOOL,4000243365,25000.00,Grants to educational establishments or not for profit organisations including other businesses
Department for Education,DEPARTMENT FOR EDUCATION,26/07/2016,Grants,Academies Regional Delivery Group,BATH & WELLS MULTI ACADEMY TRUST,4000243366,70000.00,Grants to educational establishments or not for profit organisations including other businesses
Department for Education,NATIONAL COLLEGE FOR TEACHING AND LEADERSHIP AGENCY,26/07/2016,Programme costs,Operations Directorate,HESA,4000243371,26190.00,Funding to deliver policies (excluding consultancy) paid to third parties via a service delivery contract
Department for Education,DEPARTMENT FOR EDUCATION,26/07/2016,Grants,Academies Regional Delivery Group,WELLSPRING ACADEMY TRUST,4000243378,40000.00,Capital grants paid to an educational establishment
Department for Education,DEPARTMENT FOR EDUCATION,26/07/2016,Programme costs,Post 16 and Disadvantage Group,ATKINS LTD,4000243408,96398.25,Funding to deliver policies (excluding consultancy) paid to third parties via a service delivery contract
Department for Education,DEPARTMENT FOR EDUCATION,26/07/2016,Grants,Academies Regional Delivery Group,CHESTERTON ACADEMY TRUST,4000243419,50000.00,Grants to educational establishments or not for profit organisations including other businesses
Department for Education,DEPARTMENT FOR EDUCATION,26/07/2016,Grants,Academies Regional Delivery Group,WYBOURN COMMUNITY PRIMARY SCHOOL,4000243421,25000.00,Grants to educational establishments or not for profit organisations including other businesses
Department for Education,DEPARTMENT FOR EDUCATION,26/07/2016,Grants,Academies Regional Delivery Group,THE SIR DONALD BAILEY ACADEMY,4000243428,25000.00,Grants to educational establishments or not for profit organisations including other businesses
Department for Education,DEPARTMENT FOR EDUCATION,26/07/2016,Grants,Free School Group,THE BOXING ACADEMY,4000243441,38864.00,Grants to educational establishments or not for profit organisations including other businesses
Department for Education,DEPARTMENT FOR EDUCATION,26/07/2016,Grants,Academies Regional Delivery Group,BISHOP ANTHONY EDUCATIONAL TRUST,4000243449,50000.00,Grants to educational establishments or not for profit organisations including other businesses
Department for Education,DEPARTMENT FOR EDUCATION,26/07/2016,ICT,Systems and Accountability Group,ZINET DATA SOLUTIONS LTD,4000243435,55843.65,ICT Services
Department for Education,DEPARTMENT FOR EDUCATION,26/07/2016,Miscellaneous Expenditure,Finance and Commercial Group,N/A � Risk Protection Arrangement (RPA) member,005921-000640-RB-01,28532.04,Property claim paid out to an academy trust by Gallagher Bassett on behalf of the Department as part of the Department's Risk Protection Arrangement (RPA).
Department for Education,NATIONAL COLLEGE FOR TEACHING AND LEADERSHIP AGENCY,27/07/2016,Professional Services Other,Operations Directorate,BLAKE MORGAN,4000243546,26816.45,Legal services provided externally (excluding Treasury Solicitor) 
Department for Education,DEPARTMENT FOR EDUCATION,27/07/2016,Energy and Fuels,Property Asset Management Group,CORONA ENERGY,4000243457,39609.13,Gas supply
Department for Education,DEPARTMENT FOR EDUCATION,27/07/2016,Programme costs,Children's Services Special Educational Needs Group,MOTT MACDONALD LTD,4000243483,376695.20,Funding to deliver policies (excluding consultancy) paid to third parties via a service delivery contract
Department for Education,NATIONAL COLLEGE FOR TEACHING AND LEADERSHIP AGENCY,27/07/2016,Grants,Delivery Directorate,CARMEL TEACHER TRAINING PARTNERSHIP,4000243488,43000.00,Grants to educational establishments or not for profit organisations including other businesses
Department for Education,DEPARTMENT FOR EDUCATION,27/07/2016,Grants,Academies Regional Delivery Group,FOREST OF GALTRES ANGLICAN METHODIST PRIMARY SCHOOL,4000243495,47000.00,Grants to educational establishments or not for profit organisations including other businesses
